﻿Department Family,Entity,Date,Expense Type,Expense Area,Supplier,Transaction Number,Amount,Item Description
BEIS,UKRI - AHRC,01/06/2023,T&S UK - Other Charges,Strategy and Evidence,Unspecified,99967343,169.99,T&S UK - Other Charges
BEIS,UKRI - AHRC,01/06/2023,T&S UK - Other Charges,"Health, Environmental & Urban Humanities (HEUH)",Unspecified,99967344,12.28,T&S UK - Other Charges
BEIS,UKRI - AHRC,01/06/2023,T&S UK - Subsistence,"Health, Environmental & Urban Humanities (HEUH)",Unspecified,99967344,20.45,T&S UK - Subsistence
BEIS,UKRI - AHRC,02/06/2023,T&S UK - Subsistence,Executive Office,Unspecified,99968064,25,T&S UK - Subsistence
BEIS,UKRI - AHRC,02/06/2023,T&S UK - Public Transport,Executive Office,Unspecified,99968065,46.6,T&S UK - Public Transport
BEIS,UKRI - AHRC,02/06/2023,T&S UK - Subsistence,Executive Office,Unspecified,99968065,7,T&S UK - Subsistence
BEIS,UKRI - AHRC,05/06/2023,Other Programme Costs,World Class Labs (WCL),University of Sussex,99953045,5794,Other Programme Costs
BEIS,UKRI - AHRC,05/06/2023,Unspecified,SMT,University of St Andrews,99963777,20533.79,Secondments
BEIS,UKRI - AHRC,05/06/2023,Fees (Including College Members),Infrastructure Fund - CoSTAR,Unspecified,99967876,1020,Fees (Including College Members)
BEIS,UKRI - AHRC,05/06/2023,Non-staff travel and subsistance,Infrastructure Fund - CoSTAR,Unspecified,99967877,151.4,Non-staff travel and subsistance
BEIS,UKRI - AHRC,05/06/2023,Fees (Including College Members),Infrastructure Fund - CoSTAR,Unspecified,99967878,680,Fees (Including College Members)
BEIS,UKRI - AHRC,05/06/2023,Non-staff travel and subsistance,Infrastructure Fund - CoSTAR,Unspecified,99968091,617.87,Non-staff travel and subsistance
BEIS,UKRI - AHRC,05/06/2023,Fees (Including College Members),Infrastructure Fund - CoSTAR,Unspecified,99968092,510,Fees (Including College Members)
BEIS,UKRI - AHRC,05/06/2023,T&S UK - Subsistence,SMT,Unspecified,99968426,25,T&S UK - Subsistence
BEIS,UKRI - AHRC,05/06/2023,T&S UK - Other Charges,Programme Management Office,Unspecified,99968427,5.51,T&S UK - Other Charges
BEIS,UKRI - AHRC,05/06/2023,T&S UK - Other Charges,Executive Office,Unspecified,99968428,30.98,T&S UK - Other Charges
BEIS,UKRI - AHRC,05/06/2023,T&S UK - Subsistence,Executive Office,Unspecified,99968428,9.55,T&S UK - Subsistence
BEIS,UKRI - AHRC,05/06/2023,T&S UK - Public Transport,SMT,Unspecified,99968430,53.9,T&S UK - Public Transport
BEIS,UKRI - AHRC,05/06/2023,T&S UK - Accommodation,Infrastruture Roadmap,Unspecified,99968431,22.13,T&S UK - Accommodation
BEIS,UKRI - AHRC,05/06/2023,T&S UK - Public Transport,Infrastruture Roadmap,Unspecified,99968431,132.59,T&S UK - Public Transport
BEIS,UKRI - AHRC,05/06/2023,T&S UK - Subsistence,Infrastruture Roadmap,Unspecified,99968431,7.5,T&S UK - Subsistence
BEIS,UKRI - AHRC,05/06/2023,T&S UK - Subsistence,Infrastruture Roadmap,Unspecified,99968431,11.29,T&S UK - Subsistence
BEIS,UKRI - AHRC,06/06/2023,Conferences & Seminars,SMT,NESTA,99968675,9969.42,Conferences & Seminars
BEIS,UKRI - AHRC,06/06/2023,Research Grant Expenditure,Infrastructure Fund - CoSTAR,Alexander Mann Solutions Ltd,99969971,3465.3,Research Grant Expenditure
BEIS,UKRI - AHRC,06/06/2023,T&S UK - Other Charges,"Heritage, Culture & Creative Arts (HCCA)",Unspecified,99970024,15,T&S UK - Other Charges
BEIS,UKRI - AHRC,06/06/2023,T&S UK - Subsistence,"Heritage, Culture & Creative Arts (HCCA)",Unspecified,99970024,6.5,T&S UK - Subsistence
BEIS,UKRI - AHRC,06/06/2023,T&S UK - Subsistence,"Heritage, Culture & Creative Arts (HCCA)",Unspecified,99970024,14.5,T&S UK - Subsistence
BEIS,UKRI - AHRC,06/06/2023,T&S UK - Subsistence,"Heritage, Culture & Creative Arts (HCCA)",Unspecified,99970024,13.08,T&S UK - Subsistence
BEIS,UKRI - AHRC,07/06/2023,Research Grant Expenditure,Infrastruture Roadmap,ICF Consulting Services Ltd,99967042,39960,Research Grant Expenditure
BEIS,UKRI - AHRC,07/06/2023,T&S UK - Subsistence,SMT,Unspecified,99970352,4.64,T&S UK - Subsistence
BEIS,UKRI - AHRC,07/06/2023,T&S UK - Subsistence,SMT,Unspecified,99970352,17.03,T&S UK - Subsistence
BEIS,UKRI - AHRC,08/06/2023,Staff Training,SMT,Civil Service College,99968047,714,Staff Training
BEIS,UKRI - AHRC,08/06/2023,Staff Training,SMT,Civil Service College,99968050,714,Staff Training
BEIS,UKRI - AHRC,09/06/2023,Conferences & Seminars,Cultural Value EDI,University of Edinburgh,99956547,8000,Conferences & Seminars
BEIS,UKRI - AHRC,09/06/2023,Meetings & Catering,Executive Office,Compass Contract Services (UK) Ltd,99975512,255,Meetings & Catering
BEIS,UKRI - AHRC,09/06/2023,T&S UK - Subsistence,HERA JRP Project,Unspecified,99975524,82.13,T&S UK - Subsistence
BEIS,UKRI - AHRC,09/06/2023,T&S UK - Subsistence,HERA JRP Project,Unspecified,99975524,20.62,T&S UK - Subsistence
BEIS,UKRI - AHRC,09/06/2023,Non-staff travel and subsistance,"Health, Environmental & Urban Humanities (HEUH)",Unspecified,99977500,100.09,Non-staff travel and subsistance
BEIS,UKRI - AHRC,12/06/2023,Research Grant Expenditure,NPIF Research Talent (RCUK Innovation Fellowships),UKRI - Engineering & Physical Sciences Research Council,99933312,-4854.4,Research Grant Expenditure
BEIS,UKRI - AHRC,12/06/2023,Consultancy Services,Cultural Value EDI,Just Sign Ltd,99975432,1056,Consultancy Services
BEIS,UKRI - AHRC,12/06/2023,Other Programme Costs,Commissioned Research,UKRI - Engineering & Physical Sciences Research Council,99977876,100000,Other Programme Costs
BEIS,UKRI - AHRC,12/06/2023,Non-staff travel and subsistance,AHRC - Creative Industries,Unspecified,99978077,293.69,Non-staff travel and subsistance
BEIS,UKRI - AHRC,12/06/2023,T&S UK - Flights,Executive Office,Unspecified,99978316,105.97,T&S UK - Flights
BEIS,UKRI - AHRC,12/06/2023,T&S UK - Public Transport,Executive Office,Unspecified,99978316,95.91,T&S UK - Public Transport
BEIS,UKRI - AHRC,12/06/2023,T&S UK - Subsistence,Executive Office,Unspecified,99978316,7,T&S UK - Subsistence
BEIS,UKRI - AHRC,12/06/2023,T&S UK - Subsistence,Executive Office,Unspecified,99978316,37.77,T&S UK - Subsistence
BEIS,UKRI - AHRC,12/06/2023,T&S UK - Subsistence,Executive Office,Unspecified,99978316,3.9,T&S UK - Subsistence
BEIS,UKRI - AHRC,12/06/2023,T&S UK - Mileage,Executive Office,Unspecified,99978317,49.05,T&S UK - Mileage
BEIS,UKRI - AHRC,13/06/2023,Conferences & Seminars,"Health, Environmental & Urban Humanities (HEUH)",Interpreting Solutions 2UK Ltd,99970800,198,Conferences & Seminars
BEIS,UKRI - AHRC,13/06/2023,Conferences & Seminars,"Health, Environmental & Urban Humanities (HEUH)",Interpreting Solutions 2UK Ltd,99970800,432,Conferences & Seminars
BEIS,UKRI - AHRC,13/06/2023,Fees (Including College Members),Infrastructure Fund - CoSTAR,Unspecified,99978735,680,Fees (Including College Members)
BEIS,UKRI - AHRC,13/06/2023,Other Programme Costs,World Class Labs (WCL),University of Cambridge,99980185,613955,Other Programme Costs
BEIS,UKRI - AHRC,13/06/2023,Fees (Including College Members),Operations,Unspecified,99980189,170,Fees (Including College Members)
BEIS,UKRI - AHRC,13/06/2023,T&S UK - Other Charges,Operations,Unspecified,99980426,198.99,T&S UK - Other Charges
BEIS,UKRI - AHRC,13/06/2023,T&S UK - Other Charges,Operations,Unspecified,99980427,275,T&S UK - Other Charges
BEIS,UKRI - AHRC,14/06/2023,Unspecified,Balance Sheet,HM Revenue & Customs,99980114,61924,NI Payable Salaries
BEIS,UKRI - AHRC,14/06/2023,Unspecified,Balance Sheet,HM Revenue & Customs,99980115,45902.83,PAYE Payable Salaries
BEIS,UKRI - AHRC,14/06/2023,Unspecified,Balance Sheet,HM Revenue & Customs,99980116,4819,Student Loans
BEIS,UKRI - AHRC,14/06/2023,Unspecified,Corporate Services,HM Revenue & Customs,99980117,1666,Apprenticeship Levy
BEIS,UKRI - AHRC,14/06/2023,Non-staff travel and subsistance,Infrastructure Fund - CoSTAR,Unspecified,99983449,25,Non-staff travel and subsistance
BEIS,UKRI - AHRC,14/06/2023,Fees (Including College Members),Infrastructure Fund - CoSTAR,Unspecified,99983450,680,Fees (Including College Members)
BEIS,UKRI - AHRC,14/06/2023,Non-staff travel and subsistance,Infrastructure Fund - CoSTAR,Unspecified,99983451,16.8,Non-staff travel and subsistance
BEIS,UKRI - AHRC,14/06/2023,Fees (Including College Members),Infrastructure Fund - CoSTAR,Unspecified,99983452,340,Fees (Including College Members)
BEIS,UKRI - AHRC,14/06/2023,T&S UK - Flights,Executive Office,Unspecified,99983501,39.99,T&S UK - Flights
BEIS,UKRI - AHRC,14/06/2023,T&S UK - Subsistence,Executive Office,Unspecified,99983501,7.5,T&S UK - Subsistence
BEIS,UKRI - AHRC,14/06/2023,T&S UK - Subsistence,Executive Office,Unspecified,99983501,39.29,T&S UK - Subsistence
BEIS,UKRI - AHRC,14/06/2023,T&S UK - Subsistence,Executive Office,Unspecified,99983501,3.9,T&S UK - Subsistence
BEIS,UKRI - AHRC,15/06/2023,T&S UK - Other Charges,Operations,Unspecified,99970351,100,T&S UK - Other Charges
BEIS,UKRI - AHRC,15/06/2023,T&S UK - Other Charges,Executive Office,Unspecified,99970851,17.1,T&S UK - Other Charges
BEIS,UKRI - AHRC,15/06/2023,Voluntary Deductions,Balance Sheet,Swindon Office Sports and Social Club,99980118,30,Voluntary Deductions
BEIS,UKRI - AHRC,15/06/2023,Union Deductions,Balance Sheet,PCS Union,99980119,79.84,Union Deductions
BEIS,UKRI - AHRC,15/06/2023,Unspecified,Balance Sheet,Unspecified,99980120,7581.11,Ees Pension Deductions - JSS
BEIS,UKRI - AHRC,15/06/2023,Unspecified,Balance Sheet,Unspecified,99980121,32146.35,Ers Pension Deductions - JSS
BEIS,UKRI - AHRC,15/06/2023,Unspecified,Balance Sheet,Scottish Widows,99980122,193.37,Partnership Pension Deductions
BEIS,UKRI - AHRC,15/06/2023,Unspecified,Balance Sheet,Cabinet Office RM Shared Services,99980123,12316.99,Ees Pension Deductions - MyCSP
BEIS,UKRI - AHRC,15/06/2023,Unspecified,Balance Sheet,Cabinet Office RM Shared Services,99980124,59221.68,Ers Pension Deductions - MyCSP
BEIS,UKRI - AHRC,15/06/2023,Unspecified,Balance Sheet,Unspecified,99980125,556.17,Ees Pension Deductions - MRC
BEIS,UKRI - AHRC,15/06/2023,Unspecified,Balance Sheet,Unspecified,99980126,1369.04,Ers Pension Deductions - MRC
BEIS,UKRI - AHRC,15/06/2023,Nursery Deductions,Balance Sheet,UKRI - Engineering & Physical Sciences Research Council,99980127,986,Nursery Deductions
BEIS,UKRI - AHRC,15/06/2023,Voluntary Deductions,Balance Sheet,Civil Service Benevolent Fund,99980128,5,Voluntary Deductions
BEIS,UKRI - AHRC,15/06/2023,Research Grant Expenditure,Infrastructure Fund - CoSTAR,Alexander Mann Solutions Ltd,99981506,3465.3,Research Grant Expenditure
BEIS,UKRI - AHRC,15/06/2023,Fees (Including College Members),Executive Office,Unspecified,99981599,500,Fees (Including College Members)
BEIS,UKRI - AHRC,15/06/2023,Fees (Including College Members),Executive Office,Unspecified,99981600,500,Fees (Including College Members)
BEIS,UKRI - AHRC,15/06/2023,Fees (Including College Members),Executive Office,Unspecified,99981601,500,Fees (Including College Members)
BEIS,UKRI - AHRC,15/06/2023,Fees (Including College Members),Executive Office,Unspecified,99981602,500,Fees (Including College Members)
BEIS,UKRI - AHRC,15/06/2023,Fees (Including College Members),Executive Office,Unspecified,99981603,500,Fees (Including College Members)
BEIS,UKRI - AHRC,15/06/2023,Fees (Including College Members),Executive Office,Unspecified,99981604,500,Fees (Including College Members)
BEIS,UKRI - AHRC,15/06/2023,Fees (Including College Members),Executive Office,Unspecified,99981605,371.3,Fees (Including College Members)
BEIS,UKRI - AHRC,15/06/2023,Fees (Including College Members),Executive Office,Unspecified,99981606,500,Fees (Including College Members)
BEIS,UKRI - AHRC,15/06/2023,Fees (Including College Members),Executive Office,Unspecified,99981607,344.09,Fees (Including College Members)
BEIS,UKRI - AHRC,15/06/2023,Fees (Including College Members),Executive Office,Unspecified,99981608,500,Fees (Including College Members)
BEIS,UKRI - AHRC,15/06/2023,Fees (Including College Members),Executive Office,Unspecified,99981609,500,Fees (Including College Members)
BEIS,UKRI - AHRC,15/06/2023,Fees (Including College Members),Executive Office,Unspecified,99981610,119.3,Fees (Including College Members)
BEIS,UKRI - AHRC,15/06/2023,Fees (Including College Members),Executive Office,Unspecified,99981611,500,Fees (Including College Members)
BEIS,UKRI - AHRC,15/06/2023,Fees (Including College Members),Operations,Unspecified,99983726,170,Fees (Including College Members)
BEIS,UKRI - AHRC,16/06/2023,T&S UK - Subsistence,Executive Office,Unspecified,99970025,10.98,T&S UK - Subsistence
BEIS,UKRI - AHRC,16/06/2023,T&S UK - Subsistence,Executive Office,Unspecified,99970025,30,T&S UK - Subsistence
BEIS,UKRI - AHRC,19/06/2023,Fellowships,International Other,Brunel University London,99975539,42392.86,Fellowships
BEIS,UKRI - AHRC,19/06/2023,Fellowships,Research Fellowships,University of the West of England,99975540,23322.57,Fellowships
BEIS,UKRI - AHRC,19/06/2023,Fellowships,Research Fellowships,King's College London,99975541,40323.91,Fellowships
BEIS,UKRI - AHRC,19/06/2023,Fellowships,Research Fellowships,University of Bristol GRANT,99975542,43574.37,Fellowships
BEIS,UKRI - AHRC,19/06/2023,Fellowships,Research Fellowships,University of Sheffield,99975543,21106.9,Fellowships
BEIS,UKRI - AHRC,19/06/2023,Fellowships,Research Fellowships,University of Leeds,99975544,33859.78,Fellowships
BEIS,UKRI - AHRC,19/06/2023,Fellowships,Public Policy,Institute of Development Studies,99975545,22795.56,Fellowships
BEIS,UKRI - AHRC,19/06/2023,Fellowships,Public Policy,University of Sheffield,99975546,20662.76,Fellowships
BEIS,UKRI - AHRC,19/06/2023,Fellowships,Research Fellowships,University of Oxford,99975547,34852.94,Fellowships
BEIS,UKRI - AHRC,19/06/2023,Fellowships,Research Fellowships,University of Exeter,99975548,24579.7,Fellowships
BEIS,UKRI - AHRC,19/06/2023,Fellowships,Research Fellowships,University of Exeter,99975548,24579.7,Fellowships
BEIS,UKRI - AHRC,19/06/2023,Fellowships,Research Fellowships,University of Exeter,99975548,24579.7,Fellowships
BEIS,UKRI - AHRC,19/06/2023,Fellowships,Research Fellowships,Northumbria University,99975549,27986.99,Fellowships
BEIS,UKRI - AHRC,19/06/2023,Fellowships,Research Fellowships,Northumbria University,99975549,34848.52,Fellowships
BEIS,UKRI - AHRC,19/06/2023,Fellowships,Research Fellowships,Northumbria University,99975549,27986.99,Fellowships
BEIS,UKRI - AHRC,19/06/2023,Fellowships,Research Fellowships,Bath Spa University,99975550,24339.34,Fellowships
BEIS,UKRI - AHRC,19/06/2023,Fellowships,Research Fellowships,University of Bristol GRANT,99975551,28755.68,Fellowships
BEIS,UKRI - AHRC,19/06/2023,Fellowships,Research Fellowships,The Open University,99975552,35291.04,Fellowships
BEIS,UKRI - AHRC,19/06/2023,Fellowships,Research Fellowships,Queen's University Belfast GRANT,99975553,38467.48,Fellowships
BEIS,UKRI - AHRC,19/06/2023,Fellowships,Research Fellowships,Queen's University Belfast GRANT,99975553,43968.85,Fellowships
BEIS,UKRI - AHRC,19/06/2023,Fellowships,Research Fellowships,Queen's University Belfast GRANT,99975553,43968.9,Fellowships
BEIS,UKRI - AHRC,19/06/2023,Fellowships,Research Fellowships,University of Edinburgh,99975554,25199.79,Fellowships
BEIS,UKRI - AHRC,19/06/2023,Fellowships,Research Fellowships,University of Edinburgh,99975554,25199.8,Fellowships
BEIS,UKRI - AHRC,19/06/2023,Fellowships,Research Fellowships,University of Edinburgh,99975554,25199.79,Fellowships
BEIS,UKRI - AHRC,19/06/2023,Fellowships,Research Fellowships,University of Glasgow,99975555,34686.28,Fellowships
BEIS,UKRI - AHRC,19/06/2023,Fellowships,Research Fellowships,University of York,99975556,21753.1,Fellowships
BEIS,UKRI - AHRC,19/06/2023,Fellowships,Research Fellowships,Coventry University,99975557,22549.54,Fellowships
BEIS,UKRI - AHRC,19/06/2023,Fellowships,Research Fellowships,Coventry University,99975557,22549.58,Fellowships
BEIS,UKRI - AHRC,19/06/2023,Fellowships,Research Fellowships,Coventry University,99975557,22549.54,Fellowships
BEIS,UKRI - AHRC,19/06/2023,Fellowships,Research Fellowships,Loughborough University,99975558,31990.45,Fellowships
BEIS,UKRI - AHRC,19/06/2023,Fellowships,Research Fellowships,Loughborough University,99975558,31990.4,Fellowships
BEIS,UKRI - AHRC,19/06/2023,Fellowships,Research Fellowships,Northumbria University,99975559,28071.56,Fellowships
BEIS,UKRI - AHRC,19/06/2023,Fellowships,Research Fellowships,Northumbria University,99975559,28071.57,Fellowships
BEIS,UKRI - AHRC,19/06/2023,Fellowships,Research Fellowships,Northumbria University,99975559,28071.56,Fellowships
BEIS,UKRI - AHRC,19/06/2023,Fellowships,Research Fellowships,University of Edinburgh,99975560,27393.57,Fellowships
BEIS,UKRI - AHRC,19/06/2023,Fellowships,Research Fellowships,University of Kent,99975561,29033.08,Fellowships
BEIS,UKRI - AHRC,19/06/2023,Fellowships,Research Fellowships,University of Kent,99975561,29033.06,Fellowships
BEIS,UKRI - AHRC,19/06/2023,Fellowships,Research Fellowships,Royal College of Art,99975562,30066.51,Fellowships
BEIS,UKRI - AHRC,19/06/2023,Fellowships,Mobilising Cultural and Natural Assets,University College London,99975563,124242.55,Fellowships
BEIS,UKRI - AHRC,19/06/2023,Fellowships,Research Fellowships,University of Brighton,99975564,39041.08,Fellowships
BEIS,UKRI - AHRC,19/06/2023,Fellowships,Research Fellowships,Northumbria University,99975565,19362.99,Fellowships
BEIS,UKRI - AHRC,19/06/2023,Fellowships,Research Fellowships,Northumbria University,99975565,19363.04,Fellowships
BEIS,UKRI - AHRC,19/06/2023,Fellowships,Research Fellowships,Northumbria University,99975565,19362.99,Fellowships
BEIS,UKRI - AHRC,19/06/2023,Fellowships,Research Fellowships,University of Glasgow,99975566,34560.43,Fellowships
BEIS,UKRI - AHRC,19/06/2023,Fellowships,Research Fellowships,University of Glasgow,99975566,31694.37,Fellowships
BEIS,UKRI - AHRC,19/06/2023,Fellowships,Research Fellowships,University of Glasgow,99975566,31694.42,Fellowships
BEIS,UKRI - AHRC,19/06/2023,Fellowships,Research Fellowships,"SOAS, University of London",99975567,19381.12,Fellowships
BEIS,UKRI - AHRC,19/06/2023,Fellowships,Research Fellowships,"Royal Holloway, University of London",99975568,25141.92,Fellowships
BEIS,UKRI - AHRC,19/06/2023,Fellowships,Research Fellowships,National Museums of Scotland,99975569,12520.9,Fellowships
BEIS,UKRI - AHRC,19/06/2023,Fellowships,Research Fellowships,Northumbria University,99975570,27192.22,Fellowships
BEIS,UKRI - AHRC,19/06/2023,Fellowships,Research Fellowships,Northumbria University,99975570,27192.22,Fellowships
BEIS,UKRI - AHRC,19/06/2023,Fellowships,Research Fellowships,University of Bristol GRANT,99975571,22648.78,Fellowships
BEIS,UKRI - AHRC,19/06/2023,Fellowships,Research Fellowships,"Royal Holloway, University of London",99975572,25110.65,Fellowships
BEIS,UKRI - AHRC,19/06/2023,Fellowships,Research Fellowships,The Royal Central School of Speech and Drama,99975573,21577.14,Fellowships
BEIS,UKRI - AHRC,19/06/2023,Fellowships,Research Fellowships,University of Leeds,99975574,39845.63,Fellowships
BEIS,UKRI - AHRC,19/06/2023,Fellowships,Research Fellowships,University of Liverpool,99975575,39989.85,Fellowships
BEIS,UKRI - AHRC,19/06/2023,Fellowships,Research Fellowships,University of Liverpool,99975575,39989.84,Fellowships
BEIS,UKRI - AHRC,19/06/2023,Fellowships,Research Fellowships,University College London,99975576,29259.76,Fellowships
BEIS,UKRI - AHRC,19/06/2023,Fellowships,Research Fellowships,University of Liverpool,99975577,18142.07,Fellowships
BEIS,UKRI - AHRC,19/06/2023,Fellowships,Research Fellowships,University of Liverpool,99975578,20684.39,Fellowships
BEIS,UKRI - AHRC,19/06/2023,Fellowships,Research Fellowships,University of Liverpool,99975579,20687.34,Fellowships
BEIS,UKRI - AHRC,19/06/2023,Fellowships,Research Fellowships,University of the West of England,99975580,25385.31,Fellowships
BEIS,UKRI - AHRC,19/06/2023,Fellowships,Research Fellowships,University of Leicester,99975581,26165.29,Fellowships
BEIS,UKRI - AHRC,19/06/2023,Fellowships,Research Fellowships,University of Bristol GRANT,99975582,28688,Fellowships
BEIS,UKRI - AHRC,19/06/2023,Fellowships,Research Fellowships,"Royal Holloway, University of London",99975583,27490.93,Fellowships
BEIS,UKRI - AHRC,19/06/2023,Fellowships,Research Fellowships,University of Warwick,99975584,22175.62,Fellowships
BEIS,UKRI - AHRC,19/06/2023,Fellowships,Research Fellowships,University of Sheffield,99975585,21272.77,Fellowships
BEIS,UKRI - AHRC,19/06/2023,Fellowships,Research Fellowships,University of York,99975586,21586.29,Fellowships
BEIS,UKRI - AHRC,19/06/2023,Fellowships,Research Fellowships,University of Lincoln,99975587,19673.13,Fellowships
BEIS,UKRI - AHRC,19/06/2023,Fellowships,Research Fellowships,University of Leeds,99975588,27317.03,Fellowships
BEIS,UKRI - AHRC,19/06/2023,Fellowships,Research Fellowships,Birkbeck College,99975589,22629.72,Fellowships
BEIS,UKRI - AHRC,19/06/2023,Fellowships,Research Fellowships,Queen Mary University of London,99975590,27822.65,Fellowships
BEIS,UKRI - AHRC,19/06/2023,Fellowships,Research Fellowships,University of Leeds,99975591,33705.45,Fellowships
BEIS,UKRI - AHRC,19/06/2023,Fellowships,Commissioned Research,Aston University,99975592,1333,Fellowships
BEIS,UKRI - AHRC,19/06/2023,Fellowships,Research Fellowships,Bath Spa University,99975593,20556.75,Fellowships
BEIS,UKRI - AHRC,19/06/2023,Research Grant Expenditure,Design Council,Design Council,99975594,526666.66,Research Grant Expenditure
BEIS,UKRI - AHRC,19/06/2023,Research Grant Expenditure,Commissioned Research,Royal United Services Institute (RUSI),99975595,49398.51,Research Grant Expenditure
BEIS,UKRI - AHRC,19/06/2023,Research Grant Expenditure,Design: Strategic Initiatives,Manchester Metropolitan University,99975596,7868.54,Research Grant Expenditure
BEIS,UKRI - AHRC,19/06/2023,Research Grant Expenditure,Design: Strategic Initiatives,University of the Arts London,99975597,16101.75,Research Grant Expenditure
BEIS,UKRI - AHRC,19/06/2023,Research Grant Expenditure,Design: Strategic Initiatives,Imperial College London,99975598,15252.37,Research Grant Expenditure
BEIS,UKRI - AHRC,19/06/2023,Research Grant Expenditure,Design: Strategic Initiatives,University of the Arts London,99975599,16116.21,Research Grant Expenditure
BEIS,UKRI - AHRC,19/06/2023,Research Grant Expenditure,Design: Strategic Initiatives,University of Plymouth,99975600,7811.57,Research Grant Expenditure
BEIS,UKRI - AHRC,19/06/2023,Research Grant Expenditure,Design: Strategic Initiatives,University of Plymouth,99975600,7811.58,Research Grant Expenditure
BEIS,UKRI - AHRC,19/06/2023,Research Grant Expenditure,Design: Strategic Initiatives,University of Hertfordshire,99975601,14113.18,Research Grant Expenditure
BEIS,UKRI - AHRC,19/06/2023,Research Grant Expenditure,Design: Strategic Initiatives,University of Hertfordshire,99975601,14113.18,Research Grant Expenditure
BEIS,UKRI - AHRC,19/06/2023,Research Grant Expenditure,Design: Strategic Initiatives,University of the Highlands and Islands,99975602,11660.93,Research Grant Expenditure
BEIS,UKRI - AHRC,19/06/2023,Research Grant Expenditure,JPI Cultural Heritage,University of Stirling,99975603,20976.01,Research Grant Expenditure
BEIS,UKRI - AHRC,19/06/2023,Research Grant Expenditure,Design: Strategic Initiatives,University of Hertfordshire,99975604,14113.34,Research Grant Expenditure
BEIS,UKRI - AHRC,19/06/2023,Research Grant Expenditure,Design: Strategic Initiatives,University of Hertfordshire,99975604,14113.36,Research Grant Expenditure
BEIS,UKRI - AHRC,19/06/2023,Research Grant Expenditure,Design: Strategic Initiatives,Northumbria University,99975605,8026.96,Research Grant Expenditure
BEIS,UKRI - AHRC,19/06/2023,Research Grant Expenditure,Design: Strategic Initiatives,Northumbria University,99975605,8026.99,Research Grant Expenditure
BEIS,UKRI - AHRC,19/06/2023,Research Grant Expenditure,Design: Strategic Initiatives,University of Ulster,99975606,15818.61,Research Grant Expenditure
BEIS,UKRI - AHRC,19/06/2023,Research Grant Expenditure,Design: Strategic Initiatives,Royal College of Art,99975607,8057.4,Research Grant Expenditure
BEIS,UKRI - AHRC,19/06/2023,Research Grant Expenditure,Design: Strategic Initiatives,Coventry University,99975608,14246.18,Research Grant Expenditure
BEIS,UKRI - AHRC,19/06/2023,Research Grant Expenditure,JPI Cultural Heritage,University of the Highlands and Islands,99975609,5753.63,Research Grant Expenditure
BEIS,UKRI - AHRC,19/06/2023,Research Grant Expenditure,Design: Strategic Initiatives,University of Plymouth,99975610,5603.6,Research Grant Expenditure
BEIS,UKRI - AHRC,19/06/2023,Research Grant Expenditure,Design: Strategic Initiatives,University of Plymouth,99975610,5603.61,Research Grant Expenditure
BEIS,UKRI - AHRC,19/06/2023,Research Grant Expenditure,Follow-on Fund,University of Southampton GRANT,99975611,27734.08,Research Grant Expenditure
BEIS,UKRI - AHRC,19/06/2023,Research Grant Expenditure,Networks & Workshops,University of Wales Trinity St David,99975612,4728.56,Research Grant Expenditure
BEIS,UKRI - AHRC,19/06/2023,Research Grant Expenditure,World Class Labs (WCL),University of the West of England,99975613,382152,Research Grant Expenditure
BEIS,UKRI - AHRC,19/06/2023,Research Grant Expenditure,World Class Labs (WCL),University of the Arts London,99975614,284897.57,Research Grant Expenditure
BEIS,UKRI - AHRC,19/06/2023,Research Grant Expenditure,World Class Labs (WCL),Royal College of Music,99975615,218922,Research Grant Expenditure
BEIS,UKRI - AHRC,19/06/2023,Research Grant Expenditure,Networks & Workshops,Bournemouth University,99975616,19251.63,Research Grant Expenditure
BEIS,UKRI - AHRC,19/06/2023,Research Grant Expenditure,Networks & Workshops,University of Central Lancashire,99975617,9847.47,Research Grant Expenditure
BEIS,UKRI - AHRC,19/06/2023,Research Grant Expenditure,Networks & Workshops,University of Central Lancashire,99975618,13074.05,Research Grant Expenditure
BEIS,UKRI - AHRC,19/06/2023,Research Grant Expenditure,Networks & Workshops,University of Warwick,99975619,10296.81,Research Grant Expenditure
BEIS,UKRI - AHRC,19/06/2023,Research Grant Expenditure,Networks & Workshops,University of Warwick,99975620,13688.36,Research Grant Expenditure
BEIS,UKRI - AHRC,19/06/2023,Research Grant Expenditure,Networks & Workshops,London School of Hygiene & Tropical Medicine,99975621,9645.41,Research Grant Expenditure
BEIS,UKRI - AHRC,19/06/2023,Research Grant Expenditure,Networks & Workshops,De Montfort University,99975622,15265.47,Research Grant Expenditure
BEIS,UKRI - AHRC,19/06/2023,Research Grant Expenditure,Networks & Workshops,University of Leeds,99975623,13972.77,Research Grant Expenditure
BEIS,UKRI - AHRC,19/06/2023,Research Grant Expenditure,Networks & Workshops,University of Birmingham GRANT,99975624,21017.06,Research Grant Expenditure
BEIS,UKRI - AHRC,19/06/2023,Research Grant Expenditure,Networks & Workshops,London School of Hygiene & Tropical Medicine,99975625,12683.52,Research Grant Expenditure
BEIS,UKRI - AHRC,19/06/2023,Research Grant Expenditure,Follow-on Fund,University of Reading,99975626,12280.8,Research Grant Expenditure
BEIS,UKRI - AHRC,19/06/2023,Research Grant Expenditure,Follow-on Fund,University of Brighton,99975627,16929.33,Research Grant Expenditure
BEIS,UKRI - AHRC,19/06/2023,Research Grant Expenditure,Follow-on Fund,University of Exeter,99975628,22430,Research Grant Expenditure
BEIS,UKRI - AHRC,19/06/2023,Research Grant Expenditure,Indigenous Methods,Coventry University,99975629,13258.96,Research Grant Expenditure
BEIS,UKRI - AHRC,19/06/2023,Research Grant Expenditure,Indigenous Methods,University of Exeter,99975630,15313.8,Research Grant Expenditure
BEIS,UKRI - AHRC,19/06/2023,Research Grant Expenditure,Indigenous Methods,University of East London,99975631,12925.91,Research Grant Expenditure
BEIS,UKRI - AHRC,19/06/2023,Research Grant Expenditure,Indigenous Methods,University of Cambridge,99975632,12557.92,Research Grant Expenditure
BEIS,UKRI - AHRC,19/06/2023,Research Grant Expenditure,Indigenous Methods,University of Birmingham GRANT,99975633,14302.33,Research Grant Expenditure
BEIS,UKRI - AHRC,19/06/2023,Research Grant Expenditure,Indigenous Methods,University of Edinburgh,99975634,14722.46,Research Grant Expenditure
BEIS,UKRI - AHRC,19/06/2023,Research Grant Expenditure,Indigenous Methods,University of Kent,99975635,14351.59,Research Grant Expenditure
BEIS,UKRI - AHRC,19/06/2023,Research Grant Expenditure,Indigenous Methods,University of Greenwich,99975636,16462.6,Research Grant Expenditure
BEIS,UKRI - AHRC,19/06/2023,Research Grant Expenditure,Indigenous Methods,"SOAS, University of London",99975637,12353.09,Research Grant Expenditure
BEIS,UKRI - AHRC,19/06/2023,Research Grant Expenditure,Networks & Workshops,De Montfort University,99975638,4657.65,Research Grant Expenditure
BEIS,UKRI - AHRC,19/06/2023,Research Grant Expenditure,DRI (Digital Research Infrastructure),University of Exeter,99975639,59624.81,Research Grant Expenditure
BEIS,UKRI - AHRC,19/06/2023,Research Grant Expenditure,DRI (Digital Research Infrastructure),University of Brighton,99975640,79760.15,Research Grant Expenditure
BEIS,UKRI - AHRC,19/06/2023,Research Grant Expenditure,Networks & Workshops,Science Museum Group,99975641,12006.27,Research Grant Expenditure
BEIS,UKRI - AHRC,19/06/2023,Research Grant Expenditure,DRI (Digital Research Infrastructure),University of the Arts London,99975642,94800.22,Research Grant Expenditure
BEIS,UKRI - AHRC,19/06/2023,Research Grant Expenditure,DRI (Digital Research Infrastructure),University of Durham,99975643,50675.22,Research Grant Expenditure
BEIS,UKRI - AHRC,19/06/2023,Research Grant Expenditure,Artificial Intelligence,University of Edinburgh,99975644,190029.65,Research Grant Expenditure
BEIS,UKRI - AHRC,19/06/2023,Research Grant Expenditure,HERA Joint Research Programme,Museum of London Archaeology,99975645,44712.33,Research Grant Expenditure
BEIS,UKRI - AHRC,19/06/2023,Research Grant Expenditure,Indigenous Methods,University of Leicester,99975646,15512.37,Research Grant Expenditure
BEIS,UKRI - AHRC,19/06/2023,Research Grant Expenditure,AHRC - DCMS International Heritage Partnership,University of Durham,99975648,18768.79,Research Grant Expenditure
BEIS,UKRI - AHRC,19/06/2023,Research Grant Expenditure,ECR Fellowships in GLAM,Victoria and Albert Museum,99975650,19313.26,Research Grant Expenditure
BEIS,UKRI - AHRC,19/06/2023,Research Grant Expenditure,AHRC - DCMS International Heritage Partnership,University of Edinburgh,99975651,21625.6,Research Grant Expenditure
BEIS,UKRI - AHRC,19/06/2023,Research Grant Expenditure,HERA Joint Research Programme,University of Durham,99975652,27559.07,Research Grant Expenditure
BEIS,UKRI - AHRC,19/06/2023,Research Grant Expenditure,Networks & Workshops,The Open University,99975653,4190.74,Research Grant Expenditure
BEIS,UKRI - AHRC,19/06/2023,Research Grant Expenditure,HERA Joint Research Programme,University of Plymouth,99975654,18708.31,Research Grant Expenditure
BEIS,UKRI - AHRC,19/06/2023,Research Grant Expenditure,Mobilising Cultural and Natural Assets,University of Southampton GRANT,99975655,66751.91,Research Grant Expenditure
BEIS,UKRI - AHRC,19/06/2023,Research Grant Expenditure,HERA Joint Research Programme,London School of Economics and Political Science,99975656,29170.16,Research Grant Expenditure
BEIS,UKRI - AHRC,19/06/2023,Research Grant Expenditure,Mobilising Cultural and Natural Assets,University of Huddersfield,99975657,62044.85,Research Grant Expenditure
BEIS,UKRI - AHRC,19/06/2023,Research Grant Expenditure,Mobilising Cultural and Natural Assets,"City, University of London",99975658,62766.68,Research Grant Expenditure
BEIS,UKRI - AHRC,19/06/2023,Research Grant Expenditure,Mobilising Cultural and Natural Assets,University of Essex,99975659,63346.21,Research Grant Expenditure
BEIS,UKRI - AHRC,19/06/2023,Research Grant Expenditure,Mobilising Cultural and Natural Assets,The University of Manchester,99975660,64549.77,Research Grant Expenditure
BEIS,UKRI - AHRC,19/06/2023,Research Grant Expenditure,Mobilising Cultural and Natural Assets,University of Bristol GRANT,99975661,65971.35,Research Grant Expenditure
BEIS,UKRI - AHRC,19/06/2023,Research Grant Expenditure,Mobilising Cultural and Natural Assets,University of Edinburgh,99975662,64737.93,Research Grant Expenditure
BEIS,UKRI - AHRC,19/06/2023,Research Grant Expenditure,Mobilising Cultural and Natural Assets,Institute of Development Studies,99975663,66390.81,Research Grant Expenditure
BEIS,UKRI - AHRC,19/06/2023,Research Grant Expenditure,Mobilising Cultural and Natural Assets,University of Plymouth,99975664,61051.06,Research Grant Expenditure
BEIS,UKRI - AHRC,19/06/2023,Research Grant Expenditure,HERA Joint Research Programme,Manchester Metropolitan University,99975665,47518.71,Research Grant Expenditure
BEIS,UKRI - AHRC,19/06/2023,Research Grant Expenditure,Mobilising Cultural and Natural Assets,University College London,99975666,65678.19,Research Grant Expenditure
BEIS,UKRI - AHRC,19/06/2023,Research Grant Expenditure,Follow-on Fund,Lancaster University,99975667,26262.15,Research Grant Expenditure
BEIS,UKRI - AHRC,19/06/2023,Research Grant Expenditure,Follow-on Fund,Lancaster University,99975667,26262.17,Research Grant Expenditure
BEIS,UKRI - AHRC,19/06/2023,Research Grant Expenditure,Mobilising Cultural and Natural Assets,University of Dundee,99975668,40582.85,Research Grant Expenditure
BEIS,UKRI - AHRC,19/06/2023,Research Grant Expenditure,Mobilising Cultural and Natural Assets,University of Liverpool,99975669,64915.42,Research Grant Expenditure
BEIS,UKRI - AHRC,19/06/2023,Research Grant Expenditure,Mobilising Cultural and Natural Assets,University of Ulster,99975670,60881.38,Research Grant Expenditure
BEIS,UKRI - AHRC,19/06/2023,Research Grant Expenditure,Mobilising Cultural and Natural Assets,Northumbria University,99975671,60234.38,Research Grant Expenditure
BEIS,UKRI - AHRC,19/06/2023,Research Grant Expenditure,Mobilising Cultural and Natural Assets,Glasgow Caledonian University,99975672,57033.73,Research Grant Expenditure
BEIS,UKRI - AHRC,19/06/2023,Research Grant Expenditure,HERA Joint Research Programme,Sheffield Hallam University,99975673,50274.81,Research Grant Expenditure
BEIS,UKRI - AHRC,19/06/2023,Research Grant Expenditure,HERA Joint Research Programme,University of Huddersfield,99975674,39562.26,Research Grant Expenditure
BEIS,UKRI - AHRC,19/06/2023,Research Grant Expenditure,Mobilising Cultural and Natural Assets,Liverpool School of Tropical Medicine,99975675,63867.99,Research Grant Expenditure
BEIS,UKRI - AHRC,19/06/2023,Research Grant Expenditure,HERA Joint Research Programme,University of Edinburgh,99975676,44619.85,Research Grant Expenditure
BEIS,UKRI - AHRC,19/06/2023,Research Grant Expenditure,HERA Joint Research Programme,University of Birmingham GRANT,99975677,15189.93,Research Grant Expenditure
BEIS,UKRI - AHRC,19/06/2023,Research Grant Expenditure,Follow-on Fund,University of Nottingham,99975678,26304.54,Research Grant Expenditure
BEIS,UKRI - AHRC,19/06/2023,Research Grant Expenditure,Follow-on Fund,King's College London,99975679,28701.33,Research Grant Expenditure
BEIS,UKRI - AHRC,19/06/2023,Research Grant Expenditure,Innovation Scholars,University of Sheffield,99975680,12356.58,Research Grant Expenditure
BEIS,UKRI - AHRC,19/06/2023,Research Grant Expenditure,Innovation Scholars,Manchester Metropolitan University,99975681,14372.48,Research Grant Expenditure
BEIS,UKRI - AHRC,19/06/2023,Research Grant Expenditure,Innovation Scholars,Bath Spa University,99975682,8657.69,Research Grant Expenditure
BEIS,UKRI - AHRC,19/06/2023,Research Grant Expenditure,Innovation Scholars,Lancaster University,99975683,16680.63,Research Grant Expenditure
BEIS,UKRI - AHRC,19/06/2023,Research Grant Expenditure,Innovation Scholars,Lancaster University,99975683,16680.63,Research Grant Expenditure
BEIS,UKRI - AHRC,19/06/2023,Research Grant Expenditure,Innovation Scholars,Cullinan Studio Ltd,99975684,16530.6,Research Grant Expenditure
BEIS,UKRI - AHRC,19/06/2023,Research Grant Expenditure,Innovation Scholars,University of Sheffield,99975685,10605.21,Research Grant Expenditure
BEIS,UKRI - AHRC,19/06/2023,Research Grant Expenditure,Innovation Scholars,University of Sheffield,99975685,10605.2,Research Grant Expenditure
BEIS,UKRI - AHRC,19/06/2023,Research Grant Expenditure,Research Grants,University of Reading,99975686,61289.46,Research Grant Expenditure
BEIS,UKRI - AHRC,19/06/2023,Research Grant Expenditure,International Other,"SOAS, University of London",99975687,24678.7,Research Grant Expenditure
BEIS,UKRI - AHRC,19/06/2023,Research Grant Expenditure,Follow-on Fund,Queen Mary University of London,99975688,26874.43,Research Grant Expenditure
BEIS,UKRI - AHRC,19/06/2023,Research Grant Expenditure,Research Grants,"Royal Holloway, University of London",99975689,89334.02,Research Grant Expenditure
BEIS,UKRI - AHRC,19/06/2023,Research Grant Expenditure,Follow-on Fund,University of the Arts London,99975690,20161.99,Research Grant Expenditure
BEIS,UKRI - AHRC,19/06/2023,Research Grant Expenditure,Follow-on Fund,Liverpool John Moores University,99975691,16563.94,Research Grant Expenditure
BEIS,UKRI - AHRC,19/06/2023,Research Grant Expenditure,Research Grants,Roehampton University (University of Roehampton),99975692,80054.68,Research Grant Expenditure
BEIS,UKRI - AHRC,19/06/2023,Research Grant Expenditure,Follow-on Fund,University of Newcastle Upon Tyne,99975693,19906.84,Research Grant Expenditure
BEIS,UKRI - AHRC,19/06/2023,Research Grant Expenditure,Networks & Workshops,University of Brighton,99975694,3143.91,Research Grant Expenditure
BEIS,UKRI - AHRC,19/06/2023,Research Grant Expenditure,Follow-on Fund,The University of Manchester,99975695,25825.24,Research Grant Expenditure
BEIS,UKRI - AHRC,19/06/2023,Research Grant Expenditure,Networks & Workshops,University of Worcester,99975696,5893.7,Research Grant Expenditure
BEIS,UKRI - AHRC,19/06/2023,Research Grant Expenditure,Networks & Workshops,University of Sheffield,99975697,6199.71,Research Grant Expenditure
BEIS,UKRI - AHRC,19/06/2023,Research Grant Expenditure,Networks & Workshops,University of Lincoln,99975698,3842.61,Research Grant Expenditure
BEIS,UKRI - AHRC,19/06/2023,Research Grant Expenditure,Impact Accelerator Accounts (IAA's),University College London,99975699,57450,Research Grant Expenditure
BEIS,UKRI - AHRC,19/06/2023,Research Grant Expenditure,Networks & Workshops,King's College London,99975700,4780,Research Grant Expenditure
BEIS,UKRI - AHRC,19/06/2023,Research Grant Expenditure,Networks & Workshops,York St John University,99975701,2630.31,Research Grant Expenditure
BEIS,UKRI - AHRC,19/06/2023,Research Grant Expenditure,Research Grants,York St John University,99975702,47069.72,Research Grant Expenditure
BEIS,UKRI - AHRC,19/06/2023,Research Grant Expenditure,Impact Accelerator Accounts (IAA's),Lancaster University,99975703,54675.2,Research Grant Expenditure
BEIS,UKRI - AHRC,19/06/2023,Research Grant Expenditure,Impact Accelerator Accounts (IAA's),University of the West of England,99975704,55039.71,Research Grant Expenditure
BEIS,UKRI - AHRC,19/06/2023,Research Grant Expenditure,Impact Accelerator Accounts (IAA's),Cardiff University,99975705,37500,Research Grant Expenditure
BEIS,UKRI - AHRC,19/06/2023,Research Grant Expenditure,Impact Accelerator Accounts (IAA's),University of Cambridge,99975706,57497.6,Research Grant Expenditure
BEIS,UKRI - AHRC,19/06/2023,Research Grant Expenditure,Impact Accelerator Accounts (IAA's),Swansea University,99975707,53701.2,Research Grant Expenditure
BEIS,UKRI - AHRC,19/06/2023,Research Grant Expenditure,Impact Accelerator Accounts (IAA's),University of Sussex,99975708,37500,Research Grant Expenditure
BEIS,UKRI - AHRC,19/06/2023,Research Grant Expenditure,Impact Accelerator Accounts (IAA's),Museum of London Archaeology,99975709,37500,Research Grant Expenditure
BEIS,UKRI - AHRC,19/06/2023,Research Grant Expenditure,Impact Accelerator Accounts (IAA's),The University of Manchester,99975710,37500,Research Grant Expenditure
BEIS,UKRI - AHRC,19/06/2023,Research Grant Expenditure,Impact Accelerator Accounts (IAA's),King's College London,99975711,37500,Research Grant Expenditure
BEIS,UKRI - AHRC,19/06/2023,Research Grant Expenditure,Impact Accelerator Accounts (IAA's),University of Brighton,99975712,37500,Research Grant Expenditure
BEIS,UKRI - AHRC,19/06/2023,Research Grant Expenditure,Impact Accelerator Accounts (IAA's),University of Reading,99975713,37500,Research Grant Expenditure
BEIS,UKRI - AHRC,19/06/2023,Research Grant Expenditure,Impact Accelerator Accounts (IAA's),University of East Anglia,99975714,37500,Research Grant Expenditure
BEIS,UKRI - AHRC,19/06/2023,Research Grant Expenditure,Impact Accelerator Accounts (IAA's),University of Huddersfield,99975715,57485.2,Research Grant Expenditure
BEIS,UKRI - AHRC,19/06/2023,Research Grant Expenditure,Impact Accelerator Accounts (IAA's),Queen's University Belfast GRANT,99975716,37500,Research Grant Expenditure
BEIS,UKRI - AHRC,19/06/2023,Research Grant Expenditure,Impact Accelerator Accounts (IAA's),The Royal Central School of Speech and Drama,99975717,37500,Research Grant Expenditure
BEIS,UKRI - AHRC,19/06/2023,Research Grant Expenditure,Impact Accelerator Accounts (IAA's),University of Glasgow,99975718,37500,Research Grant Expenditure
BEIS,UKRI - AHRC,19/06/2023,Research Grant Expenditure,Impact Accelerator Accounts (IAA's),University of Birmingham GRANT,99975719,49605.2,Research Grant Expenditure
BEIS,UKRI - AHRC,19/06/2023,Research Grant Expenditure,Impact Accelerator Accounts (IAA's),Royal College of Art,99975720,37500,Research Grant Expenditure
BEIS,UKRI - AHRC,19/06/2023,Research Grant Expenditure,Impact Accelerator Accounts (IAA's),University of Ulster,99975721,37500,Research Grant Expenditure
BEIS,UKRI - AHRC,19/06/2023,Research Grant Expenditure,Impact Accelerator Accounts (IAA's),Teesside University,99975722,37500,Research Grant Expenditure
BEIS,UKRI - AHRC,19/06/2023,Research Grant Expenditure,Impact Accelerator Accounts (IAA's),University of Southampton GRANT,99975723,37500,Research Grant Expenditure
BEIS,UKRI - AHRC,19/06/2023,Research Grant Expenditure,Impact Accelerator Accounts (IAA's),University of Hull,99975724,37500,Research Grant Expenditure
BEIS,UKRI - AHRC,19/06/2023,Research Grant Expenditure,Impact Accelerator Accounts (IAA's),University of Exeter,99975725,37500,Research Grant Expenditure
BEIS,UKRI - AHRC,19/06/2023,Research Grant Expenditure,Networks & Workshops,University College London,99975726,9047.29,Research Grant Expenditure
BEIS,UKRI - AHRC,19/06/2023,Research Grant Expenditure,Impact Accelerator Accounts (IAA's),Bath Spa University,99975727,37500,Research Grant Expenditure
BEIS,UKRI - AHRC,19/06/2023,Research Grant Expenditure,Impact Accelerator Accounts (IAA's),University of Kent,99975728,37500,Research Grant Expenditure
BEIS,UKRI - AHRC,19/06/2023,Research Grant Expenditure,Impact Accelerator Accounts (IAA's),University for the Creative Arts,99975729,55865.6,Research Grant Expenditure
BEIS,UKRI - AHRC,19/06/2023,Research Grant Expenditure,Impact Accelerator Accounts (IAA's),University of Liverpool,99975730,37500,Research Grant Expenditure
BEIS,UKRI - AHRC,19/06/2023,Research Grant Expenditure,Impact Accelerator Accounts (IAA's),University of Plymouth,99975731,37500,Research Grant Expenditure
BEIS,UKRI - AHRC,19/06/2023,Research Grant Expenditure,Impact Accelerator Accounts (IAA's),University of Bristol GRANT,99975732,37500,Research Grant Expenditure
BEIS,UKRI - AHRC,19/06/2023,Research Grant Expenditure,Storycraft fellowship (Bambo Soyinka),Bath Spa University,99975733,78535.25,Research Grant Expenditure
BEIS,UKRI - AHRC,19/06/2023,Research Grant Expenditure,Impact Accelerator Accounts (IAA's),University of Nottingham,99975734,37500,Research Grant Expenditure
BEIS,UKRI - AHRC,19/06/2023,Research Grant Expenditure,Impact Accelerator Accounts (IAA's),University of Hertfordshire,99975735,57383.2,Research Grant Expenditure
BEIS,UKRI - AHRC,19/06/2023,Research Grant Expenditure,Follow-on Fund,University of Birmingham GRANT,99975736,18956.96,Research Grant Expenditure
BEIS,UKRI - AHRC,19/06/2023,Research Grant Expenditure,AHRC - DFG Collaborative Research Grant,University of Brighton,99975737,27783.44,Research Grant Expenditure
BEIS,UKRI - AHRC,19/06/2023,Research Grant Expenditure,AHRC - DFG Collaborative Research Grant,University of Central Lancashire,99975738,22140.44,Research Grant Expenditure
BEIS,UKRI - AHRC,19/06/2023,Research Grant Expenditure,AHRC - DFG Collaborative Research Grant,University of Exeter,99975739,30690.21,Research Grant Expenditure
BEIS,UKRI - AHRC,19/06/2023,Research Grant Expenditure,AHRC - DFG Collaborative Research Grant,University of Bristol GRANT,99975740,22939.74,Research Grant Expenditure
BEIS,UKRI - AHRC,19/06/2023,Research Grant Expenditure,AHRC - DFG Collaborative Research Grant,University of Huddersfield,99975741,23499.32,Research Grant Expenditure
BEIS,UKRI - AHRC,19/06/2023,Research Grant Expenditure,AHRC - DFG Collaborative Research Grant,Goldsmiths College University of London,99975742,26910.9,Research Grant Expenditure
BEIS,UKRI - AHRC,19/06/2023,Research Grant Expenditure,AHRC - DFG Collaborative Research Grant,Goldsmiths College University of London,99975742,21412.5,Research Grant Expenditure
BEIS,UKRI - AHRC,19/06/2023,Research Grant Expenditure,AHRC - DFG Collaborative Research Grant,Bournemouth University,99975743,24190.01,Research Grant Expenditure
BEIS,UKRI - AHRC,19/06/2023,Research Grant Expenditure,AHRC - DFG Collaborative Research Grant,University of Glasgow,99975744,17667.99,Research Grant Expenditure
BEIS,UKRI - AHRC,19/06/2023,Research Grant Expenditure,AHRC - DFG Collaborative Research Grant,University of Newcastle Upon Tyne,99975745,23986.81,Research Grant Expenditure
BEIS,UKRI - AHRC,19/06/2023,Research Grant Expenditure,AHRC - DFG Collaborative Research Grant,University of Oxford,99975746,23475.02,Research Grant Expenditure
BEIS,UKRI - AHRC,19/06/2023,Research Grant Expenditure,AHRC - DFG Collaborative Research Grant,University of Birmingham GRANT,99975747,36408.4,Research Grant Expenditure
BEIS,UKRI - AHRC,19/06/2023,Research Grant Expenditure,AHRC - DFG Collaborative Research Grant,University of Leeds,99975748,18422.94,Research Grant Expenditure
BEIS,UKRI - AHRC,19/06/2023,Research Grant Expenditure,AHRC - DFG Collaborative Research Grant,University of Bristol GRANT,99975749,18204.21,Research Grant Expenditure
BEIS,UKRI - AHRC,19/06/2023,Research Grant Expenditure,AHRC - DFG Collaborative Research Grant,University of St Andrews,99975750,23841.88,Research Grant Expenditure
BEIS,UKRI - AHRC,19/06/2023,Research Grant Expenditure,International Other,University of East Anglia,99975751,21468.5,Research Grant Expenditure
BEIS,UKRI - AHRC,19/06/2023,Research Grant Expenditure,AHRC - DFG Collaborative Research Grant,University of St Andrews,99975752,23128.27,Research Grant Expenditure
BEIS,UKRI - AHRC,19/06/2023,Research Grant Expenditure,AHRC - DFG Collaborative Research Grant,University of Reading,99975753,22536.11,Research Grant Expenditure
BEIS,UKRI - AHRC,19/06/2023,Research Grant Expenditure,Follow-on Fund,University of the West of England,99975754,20149.83,Research Grant Expenditure
BEIS,UKRI - AHRC,19/06/2023,Research Grant Expenditure,AHRC - DFG Collaborative Research Grant,Sheffield Hallam University,99975755,27505.66,Research Grant Expenditure
BEIS,UKRI - AHRC,19/06/2023,Research Grant Expenditure,Public Policy,Northumbria University,99975756,107631.34,Research Grant Expenditure
BEIS,UKRI - AHRC,19/06/2023,Research Grant Expenditure,Research Grants,University of Bristol GRANT,99975757,72414.76,Research Grant Expenditure
BEIS,UKRI - AHRC,19/06/2023,Research Grant Expenditure,AHRC - DFG Collaborative Research Grant,"SOAS, University of London",99975758,16154.54,Research Grant Expenditure
BEIS,UKRI - AHRC,19/06/2023,Research Grant Expenditure,AHRC - DFG Collaborative Research Grant,University College London,99975759,28122.58,Research Grant Expenditure
BEIS,UKRI - AHRC,19/06/2023,Research Grant Expenditure,Research Grants,University of Glasgow,99975760,22080.9,Research Grant Expenditure
BEIS,UKRI - AHRC,19/06/2023,Research Grant Expenditure,Networks & Workshops,University of Westminster,99975761,6793.99,Research Grant Expenditure
BEIS,UKRI - AHRC,19/06/2023,Research Grant Expenditure,International Other,University of Sheffield,99975762,25068.49,Research Grant Expenditure
BEIS,UKRI - AHRC,19/06/2023,Research Grant Expenditure,Research Grants,University of Warwick,99975763,66217.2,Research Grant Expenditure
BEIS,UKRI - AHRC,19/06/2023,Research Grant Expenditure,International Other,Queen's University Belfast GRANT,99975764,21976.65,Research Grant Expenditure
BEIS,UKRI - AHRC,19/06/2023,Research Grant Expenditure,Research Grants,Bournemouth University,99975765,59090.59,Research Grant Expenditure
BEIS,UKRI - AHRC,19/06/2023,Research Grant Expenditure,Research Grants,University of Durham,99975766,59139.45,Research Grant Expenditure
BEIS,UKRI - AHRC,19/06/2023,Research Grant Expenditure,Research Grants,Historic Royal Palaces,99975767,66838.5,Research Grant Expenditure
BEIS,UKRI - AHRC,19/06/2023,Research Grant Expenditure,Networks & Workshops,University of Edinburgh,99975768,4921.31,Research Grant Expenditure
BEIS,UKRI - AHRC,19/06/2023,Research Grant Expenditure,Follow-on Fund,University of the West of England,99975769,20147.97,Research Grant Expenditure
BEIS,UKRI - AHRC,19/06/2023,Research Grant Expenditure,Networks & Workshops,University of Liverpool,99975770,4705.01,Research Grant Expenditure
BEIS,UKRI - AHRC,19/06/2023,Research Grant Expenditure,Research Grants,University of Leeds,99975771,53944.89,Research Grant Expenditure
BEIS,UKRI - AHRC,19/06/2023,Research Grant Expenditure,Networks & Workshops,Lancaster University,99975772,4597.98,Research Grant Expenditure
BEIS,UKRI - AHRC,19/06/2023,Research Grant Expenditure,Networks & Workshops,University of York,99975773,2733.72,Research Grant Expenditure
BEIS,UKRI - AHRC,19/06/2023,Research Grant Expenditure,AHRC - DFG Collaborative Research Grant,Cardiff University,99975774,22900.28,Research Grant Expenditure
BEIS,UKRI - AHRC,19/06/2023,Research Grant Expenditure,AHRC - DFG Collaborative Research Grant,University of Durham,99975775,26421.97,Research Grant Expenditure
BEIS,UKRI - AHRC,19/06/2023,Research Grant Expenditure,AHRC - DFG Collaborative Research Grant,University of Edinburgh,99975776,25966.22,Research Grant Expenditure
BEIS,UKRI - AHRC,19/06/2023,Research Grant Expenditure,AHRC - DFG Collaborative Research Grant,University of Cambridge,99975777,16515.74,Research Grant Expenditure
BEIS,UKRI - AHRC,19/06/2023,Research Grant Expenditure,AHRC - DFG Collaborative Research Grant,University of Edinburgh,99975778,26414.45,Research Grant Expenditure
BEIS,UKRI - AHRC,19/06/2023,Research Grant Expenditure,AHRC - DFG Collaborative Research Grant,University of Essex,99975779,28157.11,Research Grant Expenditure
BEIS,UKRI - AHRC,19/06/2023,Research Grant Expenditure,AHRC - DFG Collaborative Research Grant,University of the Highlands and Islands,99975780,25224.34,Research Grant Expenditure
BEIS,UKRI - AHRC,19/06/2023,Research Grant Expenditure,AHRC - DFG Collaborative Research Grant,University of Oxford,99975781,35567.16,Research Grant Expenditure
BEIS,UKRI - AHRC,19/06/2023,Research Grant Expenditure,AHRC - DFG Collaborative Research Grant,Teesside University,99975782,30508.78,Research Grant Expenditure
BEIS,UKRI - AHRC,19/06/2023,Research Grant Expenditure,AHRC - DFG Collaborative Research Grant,University of Oxford,99975783,21000.78,Research Grant Expenditure
BEIS,UKRI - AHRC,19/06/2023,Research Grant Expenditure,AHRC - DFG Collaborative Research Grant,University of Newcastle Upon Tyne,99975784,23629,Research Grant Expenditure
BEIS,UKRI - AHRC,19/06/2023,Research Grant Expenditure,AHRC - DFG Collaborative Research Grant,University of Liverpool,99975785,21951.8,Research Grant Expenditure
BEIS,UKRI - AHRC,19/06/2023,Research Grant Expenditure,AHRC - DFG Collaborative Research Grant,University of Warwick,99975786,35566.44,Research Grant Expenditure
BEIS,UKRI - AHRC,19/06/2023,Research Grant Expenditure,AHRC - DFG Collaborative Research Grant,University of Birmingham GRANT,99975787,25941.9,Research Grant Expenditure
BEIS,UKRI - AHRC,19/06/2023,Research Grant Expenditure,AHRC - DFG Collaborative Research Grant,University of Bristol GRANT,99975788,33941.17,Research Grant Expenditure
BEIS,UKRI - AHRC,19/06/2023,Research Grant Expenditure,AHRC - DFG Collaborative Research Grant,University of Exeter,99975789,23928.11,Research Grant Expenditure
BEIS,UKRI - AHRC,19/06/2023,Research Grant Expenditure,AHRC - DFG Collaborative Research Grant,University of Southampton GRANT,99975790,30089.83,Research Grant Expenditure
BEIS,UKRI - AHRC,19/06/2023,Research Grant Expenditure,AHRC - DFG Collaborative Research Grant,University of Stirling,99975791,27283.6,Research Grant Expenditure
BEIS,UKRI - AHRC,19/06/2023,Research Grant Expenditure,Networks & Workshops,London School of Economics and Political Science,99975792,7156.47,Research Grant Expenditure
BEIS,UKRI - AHRC,19/06/2023,Research Grant Expenditure,Research Grants,University of Wales Trinity St David,99975793,69772.83,Research Grant Expenditure
BEIS,UKRI - AHRC,19/06/2023,Research Grant Expenditure,Networks & Workshops,Goldsmiths College University of London,99975794,6037.38,Research Grant Expenditure
BEIS,UKRI - AHRC,19/06/2023,Research Grant Expenditure,Networks & Workshops,Goldsmiths College University of London,99975794,6037.4,Research Grant Expenditure
BEIS,UKRI - AHRC,19/06/2023,Research Grant Expenditure,Networks & Workshops,Goldsmiths College University of London,99975794,6037.4,Research Grant Expenditure
BEIS,UKRI - AHRC,19/06/2023,Research Grant Expenditure,Research Grants,Birmingham City University,99975795,59030.73,Research Grant Expenditure
BEIS,UKRI - AHRC,19/06/2023,Research Grant Expenditure,Research Grants,University of Edinburgh,99975796,56144.38,Research Grant Expenditure
BEIS,UKRI - AHRC,19/06/2023,Research Grant Expenditure,Research Grants,University of Edinburgh,99975796,56144.39,Research Grant Expenditure
BEIS,UKRI - AHRC,19/06/2023,Research Grant Expenditure,Research Grants,University of Edinburgh,99975796,56144.38,Research Grant Expenditure
BEIS,UKRI - AHRC,19/06/2023,Research Grant Expenditure,Research Grants,Queen's University Belfast GRANT,99975797,40721.79,Research Grant Expenditure
BEIS,UKRI - AHRC,19/06/2023,Research Grant Expenditure,Research Grants,Queen's University Belfast GRANT,99975797,40721.81,Research Grant Expenditure
BEIS,UKRI - AHRC,19/06/2023,Research Grant Expenditure,Research Grants,University of Durham,99975798,64153.7,Research Grant Expenditure
BEIS,UKRI - AHRC,19/06/2023,Research Grant Expenditure,Networks & Workshops,London School of Economics and Political Science,99975799,12079.48,Research Grant Expenditure
BEIS,UKRI - AHRC,19/06/2023,Research Grant Expenditure,Networks & Workshops,University of the Arts London,99975800,13023.73,Research Grant Expenditure
BEIS,UKRI - AHRC,19/06/2023,Research Grant Expenditure,Research Grants,University of Bristol GRANT,99975801,66688.87,Research Grant Expenditure
BEIS,UKRI - AHRC,19/06/2023,Research Grant Expenditure,Follow-on Fund,University of Bath,99975802,20157.77,Research Grant Expenditure
BEIS,UKRI - AHRC,19/06/2023,Research Grant Expenditure,Research Grants,University of London,99975803,53605.51,Research Grant Expenditure
BEIS,UKRI - AHRC,19/06/2023,Research Grant Expenditure,Networks & Workshops,University of the Arts London,99975804,4052.61,Research Grant Expenditure
BEIS,UKRI - AHRC,19/06/2023,Research Grant Expenditure,Research Grants,University College London,99975805,48387.68,Research Grant Expenditure
BEIS,UKRI - AHRC,19/06/2023,Research Grant Expenditure,Networks & Workshops,University of Oxford,99975806,4222.18,Research Grant Expenditure
BEIS,UKRI - AHRC,19/06/2023,Research Grant Expenditure,Labex,University of Exeter,99975807,16872.84,Research Grant Expenditure
BEIS,UKRI - AHRC,19/06/2023,Research Grant Expenditure,Hidden Histories,University of Strathclyde,99975808,7123.56,Research Grant Expenditure
BEIS,UKRI - AHRC,19/06/2023,Research Grant Expenditure,Research Grants,University of the Arts London,99975809,25940.13,Research Grant Expenditure
BEIS,UKRI - AHRC,19/06/2023,Research Grant Expenditure,Research Grants,University of Glasgow,99975810,65903.03,Research Grant Expenditure
BEIS,UKRI - AHRC,19/06/2023,Research Grant Expenditure,Research Grants,University College London,99975811,38306.63,Research Grant Expenditure
BEIS,UKRI - AHRC,19/06/2023,Research Grant Expenditure,Networks & Workshops,University of Bristol GRANT,99975812,4358.7,Research Grant Expenditure
BEIS,UKRI - AHRC,19/06/2023,Research Grant Expenditure,Investment in Place,University of Glasgow,99975813,30000,Research Grant Expenditure
BEIS,UKRI - AHRC,19/06/2023,Research Grant Expenditure,Research Grants,University College London,99975814,25027.12,Research Grant Expenditure
BEIS,UKRI - AHRC,19/06/2023,Research Grant Expenditure,Research Grants,University College London,99975814,25027.16,Research Grant Expenditure
BEIS,UKRI - AHRC,19/06/2023,Research Grant Expenditure,Research Grants,University of Oxford,99975815,31509.3,Research Grant Expenditure
BEIS,UKRI - AHRC,19/06/2023,Research Grant Expenditure,Research Grants,University of Cambridge,99975816,25068.04,Research Grant Expenditure
BEIS,UKRI - AHRC,19/06/2023,Research Grant Expenditure,Networks & Workshops,De Montfort University,99975817,4261.48,Research Grant Expenditure
BEIS,UKRI - AHRC,19/06/2023,Research Grant Expenditure,Research Grants,University of Edinburgh,99975818,66901.15,Research Grant Expenditure
BEIS,UKRI - AHRC,19/06/2023,Research Grant Expenditure,Networks & Workshops,University of East London,99975819,4498.45,Research Grant Expenditure
BEIS,UKRI - AHRC,19/06/2023,Research Grant Expenditure,Networks & Workshops,University of the Arts London,99975820,8441.56,Research Grant Expenditure
BEIS,UKRI - AHRC,19/06/2023,Research Grant Expenditure,Networks & Workshops,University of Exeter,99975821,3797.38,Research Grant Expenditure
BEIS,UKRI - AHRC,19/06/2023,Research Grant Expenditure,Follow-on Fund,Leeds Beckett University,99975822,17577.6,Research Grant Expenditure
BEIS,UKRI - AHRC,19/06/2023,Research Grant Expenditure,Research Grants,Queen Mary University of London,99975823,26712.44,Research Grant Expenditure
BEIS,UKRI - AHRC,19/06/2023,Research Grant Expenditure,Research Grants,International Institute For Environment And Development,99975824,24142.35,Research Grant Expenditure
BEIS,UKRI - AHRC,19/06/2023,Research Grant Expenditure,Research Grants,"Royal Holloway, University of London",99975825,72362.93,Research Grant Expenditure
BEIS,UKRI - AHRC,19/06/2023,Research Grant Expenditure,Funds for International Collaboration (FIC 20 US),University of Oxford,99975826,25247.4,Research Grant Expenditure
BEIS,UKRI - AHRC,19/06/2023,Research Grant Expenditure,Funds for International Collaboration (FIC 20 US),"SOAS, University of London",99975827,15649.27,Research Grant Expenditure
BEIS,UKRI - AHRC,19/06/2023,Research Grant Expenditure,Funds for International Collaboration (FIC 20 US),University of Edinburgh,99975828,19842.84,Research Grant Expenditure
BEIS,UKRI - AHRC,19/06/2023,Research Grant Expenditure,Funds for International Collaboration (FIC 20 US),Brunel University London,99975829,25159.84,Research Grant Expenditure
BEIS,UKRI - AHRC,19/06/2023,Research Grant Expenditure,Funds for International Collaboration (FIC 20 US),Lancaster University,99975830,21954.1,Research Grant Expenditure
BEIS,UKRI - AHRC,19/06/2023,Research Grant Expenditure,Funds for International Collaboration (FIC 20 US),Cardiff University,99975831,19992.92,Research Grant Expenditure
BEIS,UKRI - AHRC,19/06/2023,Research Grant Expenditure,Funds for International Collaboration (FIC 20 US),University of Newcastle Upon Tyne,99975832,13342.49,Research Grant Expenditure
BEIS,UKRI - AHRC,19/06/2023,Research Grant Expenditure,Research Grants,The University of Manchester,99975833,76047.43,Research Grant Expenditure
BEIS,UKRI - AHRC,19/06/2023,Research Grant Expenditure,Networks & Workshops,University of Exeter,99975834,4397.29,Research Grant Expenditure
BEIS,UKRI - AHRC,19/06/2023,Research Grant Expenditure,Networks & Workshops,The University of Manchester,99975835,2854.33,Research Grant Expenditure
BEIS,UKRI - AHRC,19/06/2023,Research Grant Expenditure,Research Grants,University of Oxford,99975836,65462.8,Research Grant Expenditure
BEIS,UKRI - AHRC,19/06/2023,Research Grant Expenditure,Networks & Workshops,University of Central Lancashire,99975837,3038.1,Research Grant Expenditure
BEIS,UKRI - AHRC,19/06/2023,Research Grant Expenditure,Research Grants,"SOAS, University of London",99975838,62557.2,Research Grant Expenditure
BEIS,UKRI - AHRC,19/06/2023,Research Grant Expenditure,Research Grants,The University of Manchester,99975839,45126.38,Research Grant Expenditure
BEIS,UKRI - AHRC,19/06/2023,Research Grant Expenditure,Networks & Workshops,Imperial College London,99975840,3946.06,Research Grant Expenditure
BEIS,UKRI - AHRC,19/06/2023,Research Grant Expenditure,Research Grants,University of Southampton GRANT,99975841,67034.4,Research Grant Expenditure
BEIS,UKRI - AHRC,19/06/2023,Research Grant Expenditure,Networks & Workshops,Goldsmiths College University of London,99975842,5918.85,Research Grant Expenditure
BEIS,UKRI - AHRC,19/06/2023,Research Grant Expenditure,Networks & Workshops,Northumbria University,99975843,3024.29,Research Grant Expenditure
BEIS,UKRI - AHRC,19/06/2023,Research Grant Expenditure,Networks & Workshops,The University of Manchester,99975844,6314.53,Research Grant Expenditure
BEIS,UKRI - AHRC,19/06/2023,Research Grant Expenditure,Networks & Workshops,University of Westminster,99975845,5763.77,Research Grant Expenditure
BEIS,UKRI - AHRC,19/06/2023,Research Grant Expenditure,Research Grants,Bournemouth University,99975846,54976.93,Research Grant Expenditure
BEIS,UKRI - AHRC,19/06/2023,Research Grant Expenditure,Research Grants,University of Oxford,99975847,50791.4,Research Grant Expenditure
BEIS,UKRI - AHRC,19/06/2023,Research Grant Expenditure,Towards a National Collection (SPF),University College London,99975848,238516.6,Research Grant Expenditure
BEIS,UKRI - AHRC,19/06/2023,Research Grant Expenditure,Towards a National Collection (SPF),University of the Arts London,99975850,244689.72,Research Grant Expenditure
BEIS,UKRI - AHRC,19/06/2023,Research Grant Expenditure,Research Grants,University of Bradford,99975851,70255.22,Research Grant Expenditure
BEIS,UKRI - AHRC,19/06/2023,Research Grant Expenditure,Towards a National Collection (SPF),Science Museum Group,99975852,247201.6,Research Grant Expenditure
BEIS,UKRI - AHRC,19/06/2023,Research Grant Expenditure,Towards a National Collection (SPF),University of Glasgow,99975853,251383.66,Research Grant Expenditure
BEIS,UKRI - AHRC,19/06/2023,Research Grant Expenditure,Research Grants,Royal College of Art,99975854,41124.18,Research Grant Expenditure
BEIS,UKRI - AHRC,19/06/2023,Research Grant Expenditure,Research Grants,University of York,99975855,68932.25,Research Grant Expenditure
BEIS,UKRI - AHRC,19/06/2023,Research Grant Expenditure,Research Grants,University of Kent,99975856,92537.57,Research Grant Expenditure
BEIS,UKRI - AHRC,19/06/2023,Research Grant Expenditure,Research Grants,The University of Manchester,99975857,68869.76,Research Grant Expenditure
BEIS,UKRI - AHRC,19/06/2023,Research Grant Expenditure,Research Grants,University of Southampton GRANT,99975858,48347.06,Research Grant Expenditure
BEIS,UKRI - AHRC,19/06/2023,Research Grant Expenditure,Research Grants,University of Ulster,99975859,37530.28,Research Grant Expenditure
BEIS,UKRI - AHRC,19/06/2023,Research Grant Expenditure,Research Grants,Northumbria University,99975860,61131.7,Research Grant Expenditure
BEIS,UKRI - AHRC,19/06/2023,Research Grant Expenditure,Research Grants,University of Oxford,99975861,67395.51,Research Grant Expenditure
BEIS,UKRI - AHRC,19/06/2023,Research Grant Expenditure,Networks & Workshops,Northumbria University,99975862,4030.77,Research Grant Expenditure
BEIS,UKRI - AHRC,19/06/2023,Research Grant Expenditure,Networks & Workshops,Anglia Ruskin University,99975863,3974.49,Research Grant Expenditure
BEIS,UKRI - AHRC,19/06/2023,Research Grant Expenditure,Funds for International Collaboration (FIC2-06 Ireland),University of Oxford,99975864,23543.15,Research Grant Expenditure
BEIS,UKRI - AHRC,19/06/2023,Research Grant Expenditure,Funds for International Collaboration (FIC2-06 Ireland),University of Glasgow,99975865,27085.07,Research Grant Expenditure
BEIS,UKRI - AHRC,19/06/2023,Research Grant Expenditure,Funds for International Collaboration (FIC2-06 Ireland),University of Edinburgh,99975866,27217.64,Research Grant Expenditure
BEIS,UKRI - AHRC,19/06/2023,Research Grant Expenditure,Funds for International Collaboration (FIC2-06 Ireland),Loughborough University,99975867,27099.48,Research Grant Expenditure
BEIS,UKRI - AHRC,19/06/2023,Research Grant Expenditure,Funds for International Collaboration (FIC2-06 Ireland),Queen's University Belfast GRANT,99975868,22435.27,Research Grant Expenditure
BEIS,UKRI - AHRC,19/06/2023,Research Grant Expenditure,Funds for International Collaboration (FIC2-06 Ireland),University of Sussex,99975869,32229.93,Research Grant Expenditure
BEIS,UKRI - AHRC,19/06/2023,Research Grant Expenditure,Funds for International Collaboration (FIC2-06 Ireland),University of Brighton,99975870,34766.52,Research Grant Expenditure
BEIS,UKRI - AHRC,19/06/2023,Research Grant Expenditure,Funds for International Collaboration (FIC2-06 Ireland),Cardiff University,99975871,31572.24,Research Grant Expenditure
BEIS,UKRI - AHRC,19/06/2023,Research Grant Expenditure,Funds for International Collaboration (FIC2-06 Ireland),University of Sheffield,99975872,33213.4,Research Grant Expenditure
BEIS,UKRI - AHRC,19/06/2023,Research Grant Expenditure,Research Grants,University College London,99975873,30193.16,Research Grant Expenditure
BEIS,UKRI - AHRC,19/06/2023,Research Grant Expenditure,Research Grants,King's College London,99975874,18644.88,Research Grant Expenditure
BEIS,UKRI - AHRC,19/06/2023,Research Grant Expenditure,Research Grants,University of Newcastle Upon Tyne,99975875,33165.49,Research Grant Expenditure
BEIS,UKRI - AHRC,19/06/2023,Research Grant Expenditure,Networks & Workshops,The Open University,99975876,5259.55,Research Grant Expenditure
BEIS,UKRI - AHRC,19/06/2023,Research Grant Expenditure,Research Grants,Cardiff University,99975877,59666.46,Research Grant Expenditure
BEIS,UKRI - AHRC,19/06/2023,Research Grant Expenditure,Networks & Workshops,University of Warwick,99975878,4570.94,Research Grant Expenditure
BEIS,UKRI - AHRC,19/06/2023,Research Grant Expenditure,JPI Cultural Heritage,Sheffield Hallam University,99975879,15793.08,Research Grant Expenditure
BEIS,UKRI - AHRC,19/06/2023,Research Grant Expenditure,JPI Cultural Heritage,University of the Highlands and Islands,99975880,12148.7,Research Grant Expenditure
BEIS,UKRI - AHRC,19/06/2023,Research Grant Expenditure,JPI Cultural Heritage,Falmouth University,99975881,17997.84,Research Grant Expenditure
BEIS,UKRI - AHRC,19/06/2023,Research Grant Expenditure,JPI Cultural Heritage,"SOAS, University of London",99975882,10288.98,Research Grant Expenditure
BEIS,UKRI - AHRC,19/06/2023,Research Grant Expenditure,Networks & Workshops,The Open University,99975883,3675.66,Research Grant Expenditure
BEIS,UKRI - AHRC,19/06/2023,Research Grant Expenditure,JPI Cultural Heritage,Kingston University,99975884,8762.76,Research Grant Expenditure
BEIS,UKRI - AHRC,19/06/2023,Research Grant Expenditure,Research Grants,King's College London,99975885,45334.59,Research Grant Expenditure
BEIS,UKRI - AHRC,19/06/2023,Research Grant Expenditure,Research Grants,University of York,99975886,54520.79,Research Grant Expenditure
BEIS,UKRI - AHRC,19/06/2023,Research Grant Expenditure,Research Grants,King's College London,99975887,21955.11,Research Grant Expenditure
BEIS,UKRI - AHRC,19/06/2023,Research Grant Expenditure,Research Grants,Northumbria University,99975888,42259.86,Research Grant Expenditure
BEIS,UKRI - AHRC,19/06/2023,Research Grant Expenditure,Research Grants,University of Cambridge,99975889,71974.61,Research Grant Expenditure
BEIS,UKRI - AHRC,19/06/2023,Research Grant Expenditure,Research Grants,Northumbria University,99975890,64121.62,Research Grant Expenditure
BEIS,UKRI - AHRC,19/06/2023,Research Grant Expenditure,Research Grants,University College London,99975891,47839.19,Research Grant Expenditure
BEIS,UKRI - AHRC,19/06/2023,Research Grant Expenditure,Research Grants,Staffordshire University GRANT,99975892,8905.93,Research Grant Expenditure
BEIS,UKRI - AHRC,19/06/2023,Fellowships,Public and Stakeholder Engagement,Loughborough University,99977757,-4636.79,Fellowships
BEIS,UKRI - AHRC,19/06/2023,Fellowships,Public and Stakeholder Engagement,University of Edinburgh,99977758,-2465.61,Fellowships
BEIS,UKRI - AHRC,19/06/2023,Fellowships,Research Fellowships,University of St Andrews,99977759,7417.99,Fellowships
BEIS,UKRI - AHRC,19/06/2023,Fellowships,Research Fellowships,University of Southampton GRANT,99977760,25324.42,Fellowships
BEIS,UKRI - AHRC,19/06/2023,Fellowships,Research Fellowships,University of Sheffield,99977761,30846.77,Fellowships
BEIS,UKRI - AHRC,19/06/2023,Fellowships,Research Fellowships,Goldsmiths College University of London,99977762,23811.12,Fellowships
BEIS,UKRI - AHRC,19/06/2023,Fellowships,Research Fellowships,University of Leeds,99977763,24609.85,Fellowships
BEIS,UKRI - AHRC,19/06/2023,Fellowships,Research Fellowships,University of Leeds,99977764,16075.02,Fellowships
BEIS,UKRI - AHRC,19/06/2023,Fellowships,Research Fellowships,University of Exeter,99977766,27349.67,Fellowships
BEIS,UKRI - AHRC,19/06/2023,Fellowships,Research Fellowships,University of Leeds,99977767,1068.97,Fellowships
BEIS,UKRI - AHRC,19/06/2023,Fellowships,Research Fellowships,Queen Mary University of London,99977768,3394.66,Fellowships
BEIS,UKRI - AHRC,19/06/2023,Fellowships,NPIF Research Talent (RCUK Innovation Fellowships),University of Glasgow,99977769,32874.31,Fellowships
BEIS,UKRI - AHRC,19/06/2023,Fellowships,Research Fellowships,University of Durham,99977770,2937.69,Fellowships
BEIS,UKRI - AHRC,19/06/2023,Research Grant Expenditure,World Class Labs (WCL),University of Leeds,99977771,-48301.81,Research Grant Expenditure
BEIS,UKRI - AHRC,19/06/2023,Research Grant Expenditure,World Class Labs (WCL),University of Southampton GRANT,99977772,-79.54,Research Grant Expenditure
BEIS,UKRI - AHRC,19/06/2023,Research Grant Expenditure,Follow-on Fund,University of Sheffield,99977773,7321.21,Research Grant Expenditure
BEIS,UKRI - AHRC,19/06/2023,Research Grant Expenditure,Public and Stakeholder Engagement,University of Southampton GRANT,99977774,8250.26,Research Grant Expenditure
BEIS,UKRI - AHRC,19/06/2023,Research Grant Expenditure,Public and Stakeholder Engagement,University of Westminster,99977775,-0.08,Research Grant Expenditure
BEIS,UKRI - AHRC,19/06/2023,Research Grant Expenditure,World Class Labs (WCL),University of Leicester,99977776,8000.6,Research Grant Expenditure
BEIS,UKRI - AHRC,19/06/2023,Research Grant Expenditure,World Class Labs (WCL),Museum of London Archaeology,99977777,-173.39,Research Grant Expenditure
BEIS,UKRI - AHRC,19/06/2023,Research Grant Expenditure,International Other,Birmingham City University,99977778,39029.7,Research Grant Expenditure
BEIS,UKRI - AHRC,19/06/2023,Research Grant Expenditure,Mobilising Cultural and Natural Assets,Nottingham Trent University,99977779,-2301.02,Research Grant Expenditure
BEIS,UKRI - AHRC,19/06/2023,Research Grant Expenditure,International Other,Lancaster University,99977780,-2848.73,Research Grant Expenditure
BEIS,UKRI - AHRC,19/06/2023,Research Grant Expenditure,World Class Labs (WCL),Manchester Metropolitan University,99977781,13227.02,Research Grant Expenditure
BEIS,UKRI - AHRC,19/06/2023,Research Grant Expenditure,Networks & Workshops,University of Ulster,99977782,-1198.69,Research Grant Expenditure
BEIS,UKRI - AHRC,19/06/2023,Research Grant Expenditure,Funds for International Collaboration (FIC 21 China),University of Leeds,99977783,19855.44,Research Grant Expenditure
BEIS,UKRI - AHRC,19/06/2023,Research Grant Expenditure,Funds for International Collaboration (FIC 21 China),Bournemouth University,99977784,-7466.49,Research Grant Expenditure
BEIS,UKRI - AHRC,19/06/2023,Research Grant Expenditure,Hidden Histories,University of Southampton GRANT,99977785,-1574.61,Research Grant Expenditure
BEIS,UKRI - AHRC,19/06/2023,Research Grant Expenditure,Mobilising Cultural and Natural Assets,University of Nottingham,99977786,-1554.9,Research Grant Expenditure
BEIS,UKRI - AHRC,19/06/2023,Research Grant Expenditure,Mobilising Cultural and Natural Assets,University College London,99977787,-3696.58,Research Grant Expenditure
BEIS,UKRI - AHRC,19/06/2023,Research Grant Expenditure,Artificial Intelligence,University of Strathclyde,99977788,26802.26,Research Grant Expenditure
BEIS,UKRI - AHRC,19/06/2023,Research Grant Expenditure,Mobilising Cultural and Natural Assets,University of Dundee,99977789,-4591.08,Research Grant Expenditure
BEIS,UKRI - AHRC,19/06/2023,Research Grant Expenditure,Artificial Intelligence,University of the West of England,99977790,3712.25,Research Grant Expenditure
BEIS,UKRI - AHRC,19/06/2023,Research Grant Expenditure,Artificial Intelligence,University of Warwick,99977791,9149.43,Research Grant Expenditure
BEIS,UKRI - AHRC,19/06/2023,Research Grant Expenditure,World Class Labs (WCL),University of Glasgow,99977792,-414.78,Research Grant Expenditure
BEIS,UKRI - AHRC,19/06/2023,Research Grant Expenditure,Follow-on Fund,Northumbria University,99977793,28457.93,Research Grant Expenditure
BEIS,UKRI - AHRC,19/06/2023,Research Grant Expenditure,Follow-on Fund,"SOAS, University of London",99977794,30153.31,Research Grant Expenditure
BEIS,UKRI - AHRC,19/06/2023,Research Grant Expenditure,Follow-on Fund,University of Leeds,99977795,31897.46,Research Grant Expenditure
BEIS,UKRI - AHRC,19/06/2023,Research Grant Expenditure,Follow-on Fund,Goldsmiths College University of London,99977796,30197.87,Research Grant Expenditure
BEIS,UKRI - AHRC,19/06/2023,Research Grant Expenditure,Follow-on Fund,"SOAS, University of London",99977797,5593.52,Research Grant Expenditure
BEIS,UKRI - AHRC,19/06/2023,Research Grant Expenditure,Follow-on Fund,University of Reading,99977798,27925.47,Research Grant Expenditure
BEIS,UKRI - AHRC,19/06/2023,Research Grant Expenditure,Follow-on Fund,University of Leeds,99977799,35091.75,Research Grant Expenditure
BEIS,UKRI - AHRC,19/06/2023,Research Grant Expenditure,Follow-on Fund,Institute of Development Studies,99977800,31712.68,Research Grant Expenditure
BEIS,UKRI - AHRC,19/06/2023,Research Grant Expenditure,Follow-on Fund,University of Oxford,99977801,23921.34,Research Grant Expenditure
BEIS,UKRI - AHRC,19/06/2023,Research Grant Expenditure,Follow-on Fund,University of Birmingham GRANT,99977802,34123.5,Research Grant Expenditure
BEIS,UKRI - AHRC,19/06/2023,Research Grant Expenditure,Follow-on Fund,University of Edinburgh,99977803,27049.78,Research Grant Expenditure
BEIS,UKRI - AHRC,19/06/2023,Research Grant Expenditure,Networks & Workshops,University of Oxford,99977804,594.24,Research Grant Expenditure
BEIS,UKRI - AHRC,19/06/2023,Research Grant Expenditure,Follow-on Fund,University of Glasgow,99977805,21728.85,Research Grant Expenditure
BEIS,UKRI - AHRC,19/06/2023,Research Grant Expenditure,Follow-on Fund,University of Plymouth,99977806,23962.99,Research Grant Expenditure
BEIS,UKRI - AHRC,19/06/2023,Research Grant Expenditure,Networks & Workshops,University of Birmingham GRANT,99977807,7231.72,Research Grant Expenditure
BEIS,UKRI - AHRC,19/06/2023,Research Grant Expenditure,Follow-on Fund,University of Reading,99977808,20150.81,Research Grant Expenditure
BEIS,UKRI - AHRC,19/06/2023,Research Grant Expenditure,Commissioned Research,University of Durham,99977809,53530.11,Research Grant Expenditure
BEIS,UKRI - AHRC,19/06/2023,Research Grant Expenditure,Follow-on Fund,University of Leeds,99977810,18548.97,Research Grant Expenditure
BEIS,UKRI - AHRC,19/06/2023,Research Grant Expenditure,COVID-19 (AHRC funded),University of Exeter,99977811,-36.48,Research Grant Expenditure
BEIS,UKRI - AHRC,19/06/2023,Research Grant Expenditure,Research Grants,Roehampton University (University of Roehampton),99977812,-69003.37,Research Grant Expenditure
BEIS,UKRI - AHRC,19/06/2023,Research Grant Expenditure,Follow-on Fund,University of Bristol GRANT,99977813,18163.21,Research Grant Expenditure
BEIS,UKRI - AHRC,19/06/2023,Research Grant Expenditure,COVID-19 (AHRC funded),University of Edinburgh,99977814,-4404.36,Research Grant Expenditure
BEIS,UKRI - AHRC,19/06/2023,Research Grant Expenditure,Networks & Workshops,National Maritime Museum,99977815,5167.69,Research Grant Expenditure
BEIS,UKRI - AHRC,19/06/2023,Research Grant Expenditure,COVID-19 (AHRC funded),University of Oxford,99977816,101349.17,Research Grant Expenditure
BEIS,UKRI - AHRC,19/06/2023,Research Grant Expenditure,Commissioned Research,University of Nottingham,99977817,-9755.26,Research Grant Expenditure
BEIS,UKRI - AHRC,19/06/2023,Research Grant Expenditure,COVID-19,University of Glasgow,99977818,36968.7,Research Grant Expenditure
BEIS,UKRI - AHRC,19/06/2023,Research Grant Expenditure,Follow-on Fund,University of St Andrews,99977819,-1017.76,Research Grant Expenditure
BEIS,UKRI - AHRC,19/06/2023,Capital Grants & Equipment to HEIs,World Class Labs (WCL),Queen's University Belfast GRANT,99977820,-8256.76,Capital Grants & Equipment to HEIs
BEIS,UKRI - AHRC,19/06/2023,Capital Grants & Equipment to HEIs,World Class Labs (WCL),University College London,99977821,-100758.9,Capital Grants & Equipment to HEIs
BEIS,UKRI - AHRC,19/06/2023,Research Grant Expenditure,Follow-on Fund,University of Edinburgh,99977822,57595.92,Research Grant Expenditure
BEIS,UKRI - AHRC,19/06/2023,Research Grant Expenditure,Funds for International Collaboration (FIC 20 US),University of Oxford,99977824,-56.22,Research Grant Expenditure
BEIS,UKRI - AHRC,19/06/2023,Research Grant Expenditure,Follow-on Fund,University of Sheffield,99977825,3808,Research Grant Expenditure
BEIS,UKRI - AHRC,19/06/2023,Research Grant Expenditure,COVID-19,The University of Manchester,99977826,143012.78,Research Grant Expenditure
BEIS,UKRI - AHRC,19/06/2023,Research Grant Expenditure,COVID-19 (AHRC funded),University of Sheffield,99977827,-1233.99,Research Grant Expenditure
BEIS,UKRI - AHRC,19/06/2023,Research Grant Expenditure,Global Challenges Research Fund (GCRF),University of Durham,99977829,-3963.29,Research Grant Expenditure
BEIS,UKRI - AHRC,19/06/2023,Research Grant Expenditure,Follow-on Fund,The Open University,99977830,-58.97,Research Grant Expenditure
BEIS,UKRI - AHRC,19/06/2023,Research Grant Expenditure,JPI Cultural Heritage,University College London,99977831,-3545.75,Research Grant Expenditure
BEIS,UKRI - AHRC,19/06/2023,Research Grant Expenditure,Funds for International Collaboration (FIC 20 US),University of Glasgow,99977832,-760.19,Research Grant Expenditure
BEIS,UKRI - AHRC,19/06/2023,Research Grant Expenditure,Networks & Workshops,Aberystwyth University,99977833,3840.39,Research Grant Expenditure
BEIS,UKRI - AHRC,19/06/2023,Research Grant Expenditure,RCUK Global Challenges Research Fund (RCUK GCRF),Institute of Development Studies,99977834,-49725.37,Research Grant Expenditure
BEIS,UKRI - AHRC,19/06/2023,Research Grant Expenditure,Funds for International Collaboration (FIC 20 US),University of Southampton GRANT,99977835,3566.33,Research Grant Expenditure
BEIS,UKRI - AHRC,19/06/2023,Research Grant Expenditure,Research Grants,University of York,99977836,17124.36,Research Grant Expenditure
BEIS,UKRI - AHRC,19/06/2023,Research Grant Expenditure,AHRC - DFG Collaborative Research Grant,Roehampton University (University of Roehampton),99977837,-9169.75,Research Grant Expenditure
BEIS,UKRI - AHRC,19/06/2023,Research Grant Expenditure,Landscape Decisions (SPF),University of Reading,99977838,-2664.16,Research Grant Expenditure
BEIS,UKRI - AHRC,19/06/2023,Research Grant Expenditure,Landscape Decisions (SPF),Manchester Metropolitan University,99977839,-7607.32,Research Grant Expenditure
BEIS,UKRI - AHRC,19/06/2023,Research Grant Expenditure,Networks & Workshops,University of Edinburgh,99977840,-15041.7,Research Grant Expenditure
BEIS,UKRI - AHRC,19/06/2023,Research Grant Expenditure,DFID Collaborative Humanitarian Protection Research Programme (CHPRP),London School of Economics and Political Science,99977841,-7686.6,Research Grant Expenditure
BEIS,UKRI - AHRC,19/06/2023,Research Grant Expenditure,DFID Collaborative Humanitarian Protection Research Programme (CHPRP),University of Bath,99977842,-44251.93,Research Grant Expenditure
BEIS,UKRI - AHRC,19/06/2023,Research Grant Expenditure,DFID Collaborative Humanitarian Protection Research Programme (CHPRP),Institute of Development Studies,99977843,-4750.38,Research Grant Expenditure
BEIS,UKRI - AHRC,19/06/2023,Research Grant Expenditure,DFID Collaborative Humanitarian Protection Research Programme (CHPRP),University of Oxford,99977844,-26318.75,Research Grant Expenditure
BEIS,UKRI - AHRC,19/06/2023,Research Grant Expenditure,Research Grants,Bangor University,99977845,8555.47,Research Grant Expenditure
BEIS,UKRI - AHRC,19/06/2023,Research Grant Expenditure,Landscape Decisions (SPF),Manchester Metropolitan University,99977846,-9706.12,Research Grant Expenditure
BEIS,UKRI - AHRC,19/06/2023,Research Grant Expenditure,Networks & Workshops,University of Exeter,99977847,-7288.25,Research Grant Expenditure
BEIS,UKRI - AHRC,19/06/2023,Research Grant Expenditure,Research Grants,University of Kent,99977848,18323.45,Research Grant Expenditure
BEIS,UKRI - AHRC,19/06/2023,Research Grant Expenditure,Funds for International Collaboration (FIC 20 US),Goldsmiths College University of London,99977849,-2780.97,Research Grant Expenditure
BEIS,UKRI - AHRC,19/06/2023,Research Grant Expenditure,Newton Programme,University of Oxford,99977850,5745.15,Research Grant Expenditure
BEIS,UKRI - AHRC,19/06/2023,Research Grant Expenditure,Networks & Workshops,University of Edinburgh,99977851,3713.43,Research Grant Expenditure
BEIS,UKRI - AHRC,19/06/2023,Research Grant Expenditure,Follow-on Fund,University of Liverpool,99977852,17650.08,Research Grant Expenditure
BEIS,UKRI - AHRC,19/06/2023,Research Grant Expenditure,Follow-on Fund,Nottingham Trent University,99977853,-3859.05,Research Grant Expenditure
BEIS,UKRI - AHRC,19/06/2023,Research Grant Expenditure,Follow-on Fund,University of Leeds,99977854,19959.81,Research Grant Expenditure
BEIS,UKRI - AHRC,19/06/2023,Research Grant Expenditure,Networks & Workshops,University of Warwick,99977855,-11629.83,Research Grant Expenditure
BEIS,UKRI - AHRC,19/06/2023,Research Grant Expenditure,Research Grants,Manchester Metropolitan University,99977856,42796.25,Research Grant Expenditure
BEIS,UKRI - AHRC,19/06/2023,Research Grant Expenditure,Research Grants,University of Leeds,99977857,3152.53,Research Grant Expenditure
BEIS,UKRI - AHRC,19/06/2023,Research Grant Expenditure,Research Grants,Bournemouth University,99977858,10057.96,Research Grant Expenditure
BEIS,UKRI - AHRC,19/06/2023,Research Grant Expenditure,Research Grants,University of Exeter,99977859,-4040.39,Research Grant Expenditure
BEIS,UKRI - AHRC,19/06/2023,Research Grant Expenditure,Research Grants,The University of Manchester,99977860,-13396.01,Research Grant Expenditure
BEIS,UKRI - AHRC,19/06/2023,Research Grant Expenditure,Research Grants,University of Exeter,99977861,70405.94,Research Grant Expenditure
BEIS,UKRI - AHRC,19/06/2023,Research Grant Expenditure,Research Grants,The University of Manchester,99977862,21133.68,Research Grant Expenditure
BEIS,UKRI - AHRC,19/06/2023,Research Grant Expenditure,Research Grants,University of Southampton GRANT,99977863,54268.54,Research Grant Expenditure
BEIS,UKRI - AHRC,19/06/2023,Research Grant Expenditure,Research Grants,The University of Manchester,99977864,23068.01,Research Grant Expenditure
BEIS,UKRI - AHRC,19/06/2023,Research Grant Expenditure,Research Grants,University of Wales Trinity St David,99977865,54347.97,Research Grant Expenditure
BEIS,UKRI - AHRC,19/06/2023,Research Grant Expenditure,Research Grants,University of Surrey,99977866,32451.85,Research Grant Expenditure
BEIS,UKRI - AHRC,19/06/2023,Research Grant Expenditure,Global Challenges Research Fund (GCRF),University of Edinburgh,99977867,-187656.21,Research Grant Expenditure
BEIS,UKRI - AHRC,19/06/2023,Research Grant Expenditure,Research Grants,University of Durham,99977868,70958.83,Research Grant Expenditure
BEIS,UKRI - AHRC,19/06/2023,Research Grant Expenditure,Research Grants,University College London,99977869,-1403.36,Research Grant Expenditure
BEIS,UKRI - AHRC,19/06/2023,Research Grant Expenditure,Research Grants,University of Exeter,99977870,-8112,Research Grant Expenditure
BEIS,UKRI - AHRC,19/06/2023,Research Grant Expenditure,Research Grants,University of Oxford,99977871,23630.87,Research Grant Expenditure
BEIS,UKRI - AHRC,19/06/2023,Research Grant Expenditure,Research Grants,University of Birmingham GRANT,99977872,-2203.34,Research Grant Expenditure
BEIS,UKRI - AHRC,19/06/2023,Research Grant Expenditure,COVID-19,University College London,99977893,63321.36,Research Grant Expenditure
BEIS,UKRI - AHRC,19/06/2023,Research Grant Expenditure,Research Grants,University of London,99977894,61974.59,Research Grant Expenditure
BEIS,UKRI - AHRC,19/06/2023,Research Grant Expenditure,Research Grants,University of Sheffield,99977895,43691.43,Research Grant Expenditure
BEIS,UKRI - AHRC,19/06/2023,Research Grant Expenditure,Networks & Workshops,University of Newcastle Upon Tyne,99977896,3818.33,Research Grant Expenditure
BEIS,UKRI - AHRC,19/06/2023,Research Grant Expenditure,Research Grants,The University of Manchester,99977897,8512.79,Research Grant Expenditure
BEIS,UKRI - AHRC,19/06/2023,Research Grant Expenditure,Research Grants,Aberystwyth University,99977898,57805.69,Research Grant Expenditure
BEIS,UKRI - AHRC,19/06/2023,Research Grant Expenditure,Research Grants,University of Edinburgh,99977899,61214.29,Research Grant Expenditure
BEIS,UKRI - AHRC,19/06/2023,Research Grant Expenditure,Research Grants,University of the Arts London,99977900,20308.96,Research Grant Expenditure
BEIS,UKRI - AHRC,19/06/2023,Research Grant Expenditure,Research Grants,Queen's University Belfast GRANT,99977901,48072.22,Research Grant Expenditure
BEIS,UKRI - AHRC,19/06/2023,Research Grant Expenditure,Research Grants,University of Exeter,99977902,43444.72,Research Grant Expenditure
BEIS,UKRI - AHRC,19/06/2023,Research Grant Expenditure,Research Grants,"SOAS, University of London",99977903,49987.38,Research Grant Expenditure
BEIS,UKRI - AHRC,19/06/2023,Research Grant Expenditure,Research Grants,University of Aberdeen,99977904,43034.81,Research Grant Expenditure
BEIS,UKRI - AHRC,19/06/2023,Research Grant Expenditure,Networks & Workshops,The University of Manchester,99977905,4534.72,Research Grant Expenditure
BEIS,UKRI - AHRC,19/06/2023,Research Grant Expenditure,Research Grants,University of London,99977906,50817.84,Research Grant Expenditure
BEIS,UKRI - AHRC,19/06/2023,Research Grant Expenditure,Networks & Workshops,University of York,99977907,3575.07,Research Grant Expenditure
BEIS,UKRI - AHRC,19/06/2023,Research Grant Expenditure,Funds for International Collaboration (FIC 20 US),Nottingham Trent University,99977908,17070.27,Research Grant Expenditure
BEIS,UKRI - AHRC,19/06/2023,Research Grant Expenditure,Funds for International Collaboration (FIC 20 US),"City, University of London",99977909,15235.08,Research Grant Expenditure
BEIS,UKRI - AHRC,19/06/2023,Research Grant Expenditure,Funds for International Collaboration (FIC 20 US),University of Reading,99977910,19506.18,Research Grant Expenditure
BEIS,UKRI - AHRC,19/06/2023,Research Grant Expenditure,Funds for International Collaboration (FIC 20 US),University of Exeter,99977911,23419.19,Research Grant Expenditure
BEIS,UKRI - AHRC,19/06/2023,Research Grant Expenditure,Funds for International Collaboration (FIC 20 US),Lancaster University,99977912,12051.71,Research Grant Expenditure
BEIS,UKRI - AHRC,19/06/2023,Research Grant Expenditure,Funds for International Collaboration (FIC 20 US),Science Museum Group,99977913,17373.68,Research Grant Expenditure
BEIS,UKRI - AHRC,19/06/2023,Research Grant Expenditure,Funds for International Collaboration (FIC 20 US),University of Cambridge,99977914,17509.15,Research Grant Expenditure
BEIS,UKRI - AHRC,19/06/2023,Research Grant Expenditure,Research Grants,Loughborough University,99977915,30642.73,Research Grant Expenditure
BEIS,UKRI - AHRC,19/06/2023,Research Grant Expenditure,Research Grants,Royal College of Art,99977916,33907.26,Research Grant Expenditure
BEIS,UKRI - AHRC,19/06/2023,Research Grant Expenditure,Research Grants,The Open University,99977917,63169.78,Research Grant Expenditure
BEIS,UKRI - AHRC,19/06/2023,Research Grant Expenditure,Research Grants,University of Reading,99977918,65180.11,Research Grant Expenditure
BEIS,UKRI - AHRC,19/06/2023,Research Grant Expenditure,Research Grants,De Montfort University,99977919,19388.16,Research Grant Expenditure
BEIS,UKRI - AHRC,19/06/2023,Research Grant Expenditure,Research Grants,"SOAS, University of London",99977920,39078.33,Research Grant Expenditure
BEIS,UKRI - AHRC,19/06/2023,Research Grant Expenditure,Networks & Workshops,University of Kent,99977921,4508.16,Research Grant Expenditure
BEIS,UKRI - AHRC,19/06/2023,Research Grant Expenditure,Research Grants,Queen's University Belfast GRANT,99977922,60031.22,Research Grant Expenditure
BEIS,UKRI - AHRC,19/06/2023,Research Grant Expenditure,Networks & Workshops,The University of Manchester,99977923,4531.94,Research Grant Expenditure
BEIS,UKRI - AHRC,19/06/2023,Research Grant Expenditure,Research Grants,The University of Manchester,99977924,20432.71,Research Grant Expenditure
BEIS,UKRI - AHRC,19/06/2023,Research Grant Expenditure,Research Grants,University of Warwick,99977925,13556.8,Research Grant Expenditure
BEIS,UKRI - AHRC,19/06/2023,Research Grant Expenditure,Research Grants,Northumbria University,99977926,70517.27,Research Grant Expenditure
BEIS,UKRI - AHRC,19/06/2023,Research Grant Expenditure,Research Grants,Oxford Brookes University,99977927,67517.04,Research Grant Expenditure
BEIS,UKRI - AHRC,19/06/2023,Research Grant Expenditure,Research Grants,University of Sussex,99977928,67203.22,Research Grant Expenditure
BEIS,UKRI - AHRC,19/06/2023,Research Grant Expenditure,Networks & Workshops,University of Southampton GRANT,99977929,4926.76,Research Grant Expenditure
BEIS,UKRI - AHRC,19/06/2023,Research Grant Expenditure,Research Grants,Lancaster University,99977930,37314,Research Grant Expenditure
BEIS,UKRI - AHRC,19/06/2023,Research Grant Expenditure,Research Grants,Northumbria University,99977931,55433.97,Research Grant Expenditure
BEIS,UKRI - AHRC,19/06/2023,Research Grant Expenditure,AHRC - DFG Collaborative Research Grant,University College London,99977932,56695.73,Research Grant Expenditure
BEIS,UKRI - AHRC,19/06/2023,Research Grant Expenditure,AHRC - DFG Collaborative Research Grant,University College London,99977933,56566.45,Research Grant Expenditure
BEIS,UKRI - AHRC,19/06/2023,Research Grant Expenditure,AHRC - DFG Collaborative Research Grant,University of Oxford,99977934,55990.29,Research Grant Expenditure
BEIS,UKRI - AHRC,19/06/2023,Research Grant Expenditure,Research Grants,"City, University of London",99977935,58820.61,Research Grant Expenditure
BEIS,UKRI - AHRC,19/06/2023,Research Grant Expenditure,AHRC - DFG Collaborative Research Grant,University of Dundee,99977936,56710.74,Research Grant Expenditure
BEIS,UKRI - AHRC,19/06/2023,Research Grant Expenditure,AHRC - DFG Collaborative Research Grant,University of the Arts London,99977937,56568.11,Research Grant Expenditure
BEIS,UKRI - AHRC,19/06/2023,Research Grant Expenditure,AHRC - DFG Collaborative Research Grant,"SOAS, University of London",99977938,56845.59,Research Grant Expenditure
BEIS,UKRI - AHRC,19/06/2023,Research Grant Expenditure,AHRC - DFG Collaborative Research Grant,University of Stirling,99977939,56847.5,Research Grant Expenditure
BEIS,UKRI - AHRC,19/06/2023,Research Grant Expenditure,AHRC - DFG Collaborative Research Grant,King's College London,99977940,54257.95,Research Grant Expenditure
BEIS,UKRI - AHRC,19/06/2023,Research Grant Expenditure,AHRC - DFG Collaborative Research Grant,University of Bristol GRANT,99977941,56452.07,Research Grant Expenditure
BEIS,UKRI - AHRC,19/06/2023,Research Grant Expenditure,AHRC - DFG Collaborative Research Grant,University College London,99977942,25981.17,Research Grant Expenditure
BEIS,UKRI - AHRC,19/06/2023,Research Grant Expenditure,AHRC - DFG Collaborative Research Grant,University of Edinburgh,99977943,55305.07,Research Grant Expenditure
BEIS,UKRI - AHRC,19/06/2023,Research Grant Expenditure,AHRC - DFG Collaborative Research Grant,University of Edinburgh,99977944,56944.45,Research Grant Expenditure
BEIS,UKRI - AHRC,19/06/2023,Research Grant Expenditure,AHRC - DFG Collaborative Research Grant,Nottingham Trent University,99977945,40830.84,Research Grant Expenditure
BEIS,UKRI - AHRC,19/06/2023,Research Grant Expenditure,AHRC - DFG Collaborative Research Grant,Loughborough University,99977946,53964.18,Research Grant Expenditure
BEIS,UKRI - AHRC,19/06/2023,Research Grant Expenditure,Research Grants,University of Exeter,99977947,55086.06,Research Grant Expenditure
BEIS,UKRI - AHRC,19/06/2023,Research Grant Expenditure,AHRC - DFG Collaborative Research Grant,University of Sheffield,99977948,55960.19,Research Grant Expenditure
BEIS,UKRI - AHRC,19/06/2023,Research Grant Expenditure,JPI Cultural Heritage,University of Durham,99977949,10916.36,Research Grant Expenditure
BEIS,UKRI - AHRC,19/06/2023,Research Grant Expenditure,AHRC - DFG Collaborative Research Grant,University College London,99977950,56818.2,Research Grant Expenditure
BEIS,UKRI - AHRC,19/06/2023,Research Grant Expenditure,Research Grants,Lancaster University,99977951,56910.38,Research Grant Expenditure
BEIS,UKRI - AHRC,19/06/2023,Research Grant Expenditure,Research Grants,University of Birmingham GRANT,99977952,65584.06,Research Grant Expenditure
BEIS,UKRI - AHRC,19/06/2023,Research Grant Expenditure,Research Grants,Queen Mary University of London,99977953,43409.91,Research Grant Expenditure
BEIS,UKRI - AHRC,19/06/2023,Research Grant Expenditure,Research Grants,The University of Manchester,99977954,69536.96,Research Grant Expenditure
BEIS,UKRI - AHRC,19/06/2023,Research Grant Expenditure,JPI Cultural Heritage,University of York,99977955,7436.43,Research Grant Expenditure
BEIS,UKRI - AHRC,19/06/2023,Research Grant Expenditure,Research Grants,National Museums of Scotland,99977956,67116.84,Research Grant Expenditure
BEIS,UKRI - AHRC,19/06/2023,Research Grant Expenditure,Research Grants,Brunel University London,99977957,23207.94,Research Grant Expenditure
BEIS,UKRI - AHRC,19/06/2023,Research Grant Expenditure,Towards a National Collection (SPF),Historic Environment Scotland (GRANT),99977958,91781.24,Research Grant Expenditure
BEIS,UKRI - AHRC,19/06/2023,Research Grant Expenditure,Research Grants,University of Oxford,99977959,68486.74,Research Grant Expenditure
BEIS,UKRI - AHRC,19/06/2023,Research Grant Expenditure,Research Grants,University of Sheffield,99977960,47898.43,Research Grant Expenditure
BEIS,UKRI - AHRC,19/06/2023,Research Grant Expenditure,AHRC - DFG Collaborative Research Grant,University of Durham,99977961,32035.77,Research Grant Expenditure
BEIS,UKRI - AHRC,19/06/2023,Research Grant Expenditure,Research Grants,The University of Manchester,99977962,66876.14,Research Grant Expenditure
BEIS,UKRI - AHRC,19/06/2023,Research Grant Expenditure,Networks & Workshops,University of Birmingham GRANT,99977963,4523.04,Research Grant Expenditure
BEIS,UKRI - AHRC,19/06/2023,Research Grant Expenditure,Modern Slavery and Human Rights (SPF),British Institute Of International And Comparative Law,99977964,820983.25,Research Grant Expenditure
BEIS,UKRI - AHRC,19/06/2023,Research Grant Expenditure,Landscape Decisions (SPF),Lancaster University,99977965,4347.04,Research Grant Expenditure
BEIS,UKRI - AHRC,19/06/2023,Research Grant Expenditure,Research Grants,National Museums of Scotland,99977966,65722.79,Research Grant Expenditure
BEIS,UKRI - AHRC,19/06/2023,Research Grant Expenditure,Commissioned Research,University of Newcastle Upon Tyne,99977967,4233,Research Grant Expenditure
BEIS,UKRI - AHRC,19/06/2023,Research Grant Expenditure,Research Grants,University of Huddersfield,99977968,16792.93,Research Grant Expenditure
BEIS,UKRI - AHRC,19/06/2023,Research Grant Expenditure,Research Grants,University of Edinburgh,99977969,25349.45,Research Grant Expenditure
BEIS,UKRI - AHRC,19/06/2023,Research Grant Expenditure,Research Grants,University of Newcastle Upon Tyne,99977970,53526.5,Research Grant Expenditure
BEIS,UKRI - AHRC,19/06/2023,Research Grant Expenditure,Research Grants,University of Nottingham,99977971,43950.95,Research Grant Expenditure
BEIS,UKRI - AHRC,19/06/2023,Research Grant Expenditure,Research Grants,University of Salford,99977972,15911.68,Research Grant Expenditure
BEIS,UKRI - AHRC,19/06/2023,Research Grant Expenditure,RCUK Global Challenges Research Fund (RCUK GCRF),University of Exeter,99977973,119541.96,Research Grant Expenditure
BEIS,UKRI - AHRC,19/06/2023,Research Grant Expenditure,RCUK Global Challenges Research Fund (RCUK GCRF),University of Lincoln,99977974,118780.76,Research Grant Expenditure
BEIS,UKRI - AHRC,19/06/2023,Research Grant Expenditure,RCUK Global Challenges Research Fund (RCUK GCRF),The Open University,99977975,127699.27,Research Grant Expenditure
BEIS,UKRI - AHRC,19/06/2023,Research Grant Expenditure,RCUK Global Challenges Research Fund (RCUK GCRF),University of Birmingham GRANT,99977976,118143.01,Research Grant Expenditure
BEIS,UKRI - AHRC,19/06/2023,Research Grant Expenditure,RCUK Global Challenges Research Fund (RCUK GCRF),University of Ulster,99977977,133618.73,Research Grant Expenditure
BEIS,UKRI - AHRC,19/06/2023,Research Grant Expenditure,RCUK Global Challenges Research Fund (RCUK GCRF),University of Bath,99977978,116466.22,Research Grant Expenditure
BEIS,UKRI - AHRC,19/06/2023,Research Grant Expenditure,RCUK Global Challenges Research Fund (RCUK GCRF),Aberystwyth University,99977979,118433.99,Research Grant Expenditure
BEIS,UKRI - AHRC,19/06/2023,Research Grant Expenditure,RCUK Global Challenges Research Fund (RCUK GCRF),Keele University,99977980,118399.01,Research Grant Expenditure
BEIS,UKRI - AHRC,19/06/2023,Research Grant Expenditure,RCUK Global Challenges Research Fund (RCUK GCRF),University of Glasgow,99977981,138017.78,Research Grant Expenditure
BEIS,UKRI - AHRC,19/06/2023,Research Grant Expenditure,RCUK Global Challenges Research Fund (RCUK GCRF),University of Bristol GRANT,99977982,117434.59,Research Grant Expenditure
BEIS,UKRI - AHRC,19/06/2023,Research Grant Expenditure,Research Grants,University of Ulster,99977983,16696.48,Research Grant Expenditure
BEIS,UKRI - AHRC,19/06/2023,Research Grant Expenditure,RCUK Global Challenges Research Fund (RCUK GCRF),University of Birmingham GRANT,99977984,109981.75,Research Grant Expenditure
BEIS,UKRI - AHRC,19/06/2023,Research Grant Expenditure,Research Grants,University of Oxford,99977985,47985.35,Research Grant Expenditure
BEIS,UKRI - AHRC,19/06/2023,Research Grant Expenditure,Research Grants,The British Museum,99977986,18365.36,Research Grant Expenditure
BEIS,UKRI - AHRC,19/06/2023,Research Grant Expenditure,Research Grants,University of Glasgow,99977987,10436.06,Research Grant Expenditure
BEIS,UKRI - AHRC,19/06/2023,Research Grant Expenditure,Research Grants,Cardiff University,99977988,10340.91,Research Grant Expenditure
BEIS,UKRI - AHRC,19/06/2023,Research Grant Expenditure,Research Grants,University of Nottingham,99977989,43899.67,Research Grant Expenditure
BEIS,UKRI - AHRC,19/06/2023,Research Grant Expenditure,Research Grants,Cardiff University,99977990,15925.23,Research Grant Expenditure
BEIS,UKRI - AHRC,19/06/2023,Research Grant Expenditure,Landscape Decisions (SPF),Lancaster University,99977991,5546.36,Research Grant Expenditure
BEIS,UKRI - AHRC,19/06/2023,Research Grant Expenditure,Research Grants,University of Hull,99977992,55757.95,Research Grant Expenditure
BEIS,UKRI - AHRC,19/06/2023,Research Grant Expenditure,Research Grants,The University of Manchester,99977993,63785.63,Research Grant Expenditure
BEIS,UKRI - AHRC,19/06/2023,Research Grant Expenditure,Research Grants,University of Sheffield,99977994,13342.73,Research Grant Expenditure
BEIS,UKRI - AHRC,19/06/2023,Research Grant Expenditure,Research Grants,University of Leicester,99977995,44113.48,Research Grant Expenditure
BEIS,UKRI - AHRC,19/06/2023,Research Grant Expenditure,Research Grants,University of Oxford,99977996,44826.32,Research Grant Expenditure
BEIS,UKRI - AHRC,19/06/2023,Research Grant Expenditure,Research Grants,University of York,99977997,46942.24,Research Grant Expenditure
BEIS,UKRI - AHRC,19/06/2023,Research Grant Expenditure,Research Grants,University of Leeds,99977998,49983.06,Research Grant Expenditure
BEIS,UKRI - AHRC,19/06/2023,Research Grant Expenditure,Cultural Values Project,University of Leeds,99977999,103279.44,Research Grant Expenditure
BEIS,UKRI - AHRC,19/06/2023,Research Grant Expenditure,Living with Machines (SPF),The Alan Turing Institute,99978000,229814.19,Research Grant Expenditure
BEIS,UKRI - AHRC,19/06/2023,Research Grant Expenditure,Research Grants,University of Southampton GRANT,99978001,7899.41,Research Grant Expenditure
BEIS,UKRI - AHRC,19/06/2023,Research Grant Expenditure,Research Grants,University of Cambridge,99978002,41519.41,Research Grant Expenditure
BEIS,UKRI - AHRC,19/06/2023,Research Grant Expenditure,Research Grants,University of Oxford,99978003,46900.2,Research Grant Expenditure
BEIS,UKRI - AHRC,19/06/2023,Research Grant Expenditure,RCUK Global Challenges Research Fund (RCUK GCRF),London School of Economics and Political Science,99978004,672696.6,Research Grant Expenditure
BEIS,UKRI - AHRC,19/06/2023,Research Grant Expenditure,Research Grants,University of Oxford,99978005,32427.3,Research Grant Expenditure
BEIS,UKRI - AHRC,19/06/2023,Research Grant Expenditure,Industrial Strategy Challenge Fund (ISCF) - Creative Clusters,NESTA,99978006,297656.59,Research Grant Expenditure
BEIS,UKRI - AHRC,19/06/2023,Non-staff travel and subsistance,"Health, Environmental & Urban Humanities (HEUH)",Unspecified,99985086,206.64,Non-staff travel and subsistance
BEIS,UKRI - AHRC,19/06/2023,Unspecified,Infrastructure Fund - CoSTAR,Alexander Mann Solutions Ltd,99985148,2772.24,Contract Staff
BEIS,UKRI - AHRC,20/06/2023,Research Grant Expenditure,AHRC - DCMS International Heritage Partnership,Marondera University of Agricultural Sciences and Technology,99975647,24695.93,Research Grant Expenditure
BEIS,UKRI - AHRC,20/06/2023,Research Grant Expenditure,Follow-on Fund,Historic Buildings and Monuments Commission for England T/A Historic England,99975649,20069.25,Research Grant Expenditure
BEIS,UKRI - AHRC,20/06/2023,Research Grant Expenditure,Towards a National Collection (SPF),Historic Buildings and Monuments Commission for England T/A Historic England,99975849,246563.63,Research Grant Expenditure
BEIS,UKRI - AHRC,20/06/2023,Fellowships,Research Fellowships,Historic Buildings and Monuments Commission for England T/A Historic England,99977765,9917.21,Fellowships
BEIS,UKRI - AHRC,20/06/2023,Research Grant Expenditure,Follow-on Fund,The National Archives,99977823,8809.31,Research Grant Expenditure
BEIS,UKRI - AHRC,20/06/2023,Research Grant Expenditure,Global Challenges Research Fund (GCRF),Marondera University of Agricultural Sciences and Technology,99977828,-18834.05,Research Grant Expenditure
BEIS,UKRI - AHRC,20/06/2023,Non-staff travel and subsistance,Public and Stakeholder Engagement,Unspecified,99984772,277.67,Non-staff travel and subsistance
BEIS,UKRI - AHRC,20/06/2023,Non-staff travel and subsistance,Public and Stakeholder Engagement,Unspecified,99984773,235.63,Non-staff travel and subsistance
BEIS,UKRI - AHRC,20/06/2023,Non-staff travel and subsistance,Public and Stakeholder Engagement,Unspecified,99984774,237.56,Non-staff travel and subsistance
BEIS,UKRI - AHRC,20/06/2023,Non-staff travel and subsistance,Public and Stakeholder Engagement,Unspecified,99984775,231.11,Non-staff travel and subsistance
BEIS,UKRI - AHRC,20/06/2023,Meetings & Catering,Infrastruture Roadmap,Compass Contract Services (UK) Ltd,99985536,47.76,Meetings & Catering
BEIS,UKRI - AHRC,21/06/2023,Staff Training,Programme Management Office,Remarkable Women Ltd,99984144,720,Staff Training
BEIS,UKRI - AHRC,21/06/2023,Research Grant Expenditure,International Placement Scheme,University of Cambridge,99986355,523.5,Research Grant Expenditure
BEIS,UKRI - AHRC,21/06/2023,T&S UK - Other Charges,AI&Design,Unspecified,99987051,11.5,T&S UK - Other Charges
BEIS,UKRI - AHRC,21/06/2023,T&S UK - Subsistence,AI&Design,Unspecified,99987051,6.25,T&S UK - Subsistence
BEIS,UKRI - AHRC,21/06/2023,T&S UK - Subsistence,AI&Design,Unspecified,99987051,19.2,T&S UK - Subsistence
BEIS,UKRI - AHRC,21/06/2023,T&S UK - Subsistence,AI&Design,Unspecified,99987051,25,T&S UK - Subsistence
BEIS,UKRI - AHRC,21/06/2023,T&S UK - Public Transport,"Health, Environmental & Urban Humanities (HEUH)",Unspecified,99987052,20.99,T&S UK - Public Transport
BEIS,UKRI - AHRC,21/06/2023,T&S UK - Subsistence,"Health, Environmental & Urban Humanities (HEUH)",Unspecified,99987052,50,T&S UK - Subsistence
BEIS,UKRI - AHRC,21/06/2023,T&S UK - Subsistence,"Health, Environmental & Urban Humanities (HEUH)",Unspecified,99987052,3.7,T&S UK - Subsistence
BEIS,UKRI - AHRC,22/06/2023,Unspecified,Infrastructure Fund - CoSTAR,Alexander Mann Solutions Ltd,99984200,2463.72,Legal & Professional Services
BEIS,UKRI - AHRC,22/06/2023,Meetings & Catering,Infrastructure Fund - CoSTAR,Compass Contract Services (UK) Ltd,99986552,156.6,Meetings & Catering
BEIS,UKRI - AHRC,22/06/2023,Fees (Including College Members),Infrastructure Fund - CoSTAR,Unspecified,99986695,1700,Fees (Including College Members)
BEIS,UKRI - AHRC,22/06/2023,Non-staff travel and subsistance,Infrastruture Roadmap,Unspecified,99986696,45.5,Non-staff travel and subsistance
BEIS,UKRI - AHRC,22/06/2023,Fees (Including College Members),Infrastruture Roadmap,Unspecified,99986697,340,Fees (Including College Members)
BEIS,UKRI - AHRC,22/06/2023,Non-staff travel and subsistance,Infrastructure Fund - CoSTAR,Unspecified,99986698,211.78,Non-staff travel and subsistance
BEIS,UKRI - AHRC,22/06/2023,Fees (Including College Members),Infrastructure Fund - CoSTAR,Unspecified,99986699,1700,Fees (Including College Members)
BEIS,UKRI - AHRC,22/06/2023,T&S UK - Subsistence,AI&Design,Unspecified,99986859,24,T&S UK - Subsistence
BEIS,UKRI - AHRC,22/06/2023,T&S UK - Mileage,AI&Design,Unspecified,99986860,86.4,T&S UK - Mileage
BEIS,UKRI - AHRC,22/06/2023,Unspecified,Infrastructure Fund - CoSTAR,Alexander Mann Solutions Ltd,99986966,3695.58,Legal & Professional Services
BEIS,UKRI - AHRC,22/06/2023,Unspecified,Infrastructure Fund - CoSTAR,Alexander Mann Solutions Ltd,99986970,6159.3,Legal & Professional Services
BEIS,UKRI - AHRC,22/06/2023,Non-staff travel and subsistance,Infrastructure Fund - CoSTAR,Unspecified,99987225,167.15,Non-staff travel and subsistance
BEIS,UKRI - AHRC,22/06/2023,Fees (Including College Members),Infrastructure Fund - CoSTAR,Unspecified,99987226,1000,Fees (Including College Members)
BEIS,UKRI - AHRC,23/06/2023,T&S UK - Other Charges,Strategy and Evidence,Unspecified,99987716,19.99,T&S UK - Other Charges
BEIS,UKRI - AHRC,23/06/2023,T&S UK - Public Transport,Strategy and Evidence,Unspecified,99987716,7.8,T&S UK - Public Transport
BEIS,UKRI - AHRC,23/06/2023,T&S UK - Subsistence,Strategy and Evidence,Unspecified,99987716,10,T&S UK - Subsistence
BEIS,UKRI - AHRC,26/06/2023,Research Grant Expenditure,Design and Healthy Ageing,UKRI - Biotechnology and Biological Sciences Research Council (BBSRC),99988229,18139.33,Research Grant Expenditure
BEIS,UKRI - AHRC,26/06/2023,T&S UK - Accommodation,Infrastructure Fund - CoSTAR,Clarity Travel Ltd t/a Clarity,99988409,5425,T&S UK - Accommodation
BEIS,UKRI - AHRC,26/06/2023,T&S UK - Accommodation,Infrastructure Fund - CoSTAR,Clarity Travel Ltd t/a Clarity,99988409,1085,T&S UK - Accommodation
BEIS,UKRI - AHRC,26/06/2023,T&S UK - Accommodation,Infrastruture Roadmap,Clarity Travel Ltd t/a Clarity,99988409,114.17,T&S UK - Accommodation
BEIS,UKRI - AHRC,26/06/2023,T&S UK - Accommodation,Infrastruture Roadmap,Clarity Travel Ltd t/a Clarity,99988409,22.83,T&S UK - Accommodation
BEIS,UKRI - AHRC,26/06/2023,T&S UK - Accommodation,SMT,Clarity Travel Ltd t/a Clarity,99988409,186.75,T&S UK - Accommodation
BEIS,UKRI - AHRC,26/06/2023,T&S UK - Accommodation,SMT,Clarity Travel Ltd t/a Clarity,99988409,150,T&S UK - Accommodation
BEIS,UKRI - AHRC,26/06/2023,T&S UK - Accommodation,SMT,Clarity Travel Ltd t/a Clarity,99988409,51.25,T&S UK - Accommodation
BEIS,UKRI - AHRC,26/06/2023,T&S UK - Accommodation,SMT,Clarity Travel Ltd t/a Clarity,99988409,78.33,T&S UK - Accommodation
BEIS,UKRI - AHRC,26/06/2023,T&S UK - Accommodation,SMT,Clarity Travel Ltd t/a Clarity,99988409,93.27,T&S UK - Accommodation
BEIS,UKRI - AHRC,26/06/2023,T&S UK - Flights,Executive Office,Clarity Travel Ltd t/a Clarity,99988409,1,T&S UK - Flights
BEIS,UKRI - AHRC,26/06/2023,T&S UK - Flights,Executive Office,Clarity Travel Ltd t/a Clarity,99988409,127.96,T&S UK - Flights
BEIS,UKRI - AHRC,26/06/2023,T&S UK - Flights,Executive Office,Clarity Travel Ltd t/a Clarity,99988409,1,T&S UK - Flights
BEIS,UKRI - AHRC,26/06/2023,T&S UK - Flights,Executive Office,Clarity Travel Ltd t/a Clarity,99988409,127.96,T&S UK - Flights
BEIS,UKRI - AHRC,26/06/2023,T&S UK - Flights,SMT,Clarity Travel Ltd t/a Clarity,99988409,1,T&S UK - Flights
BEIS,UKRI - AHRC,26/06/2023,T&S UK - Flights,SMT,Clarity Travel Ltd t/a Clarity,99988409,306.97,T&S UK - Flights
BEIS,UKRI - AHRC,26/06/2023,T&S UK - Flights,SMT,Clarity Travel Ltd t/a Clarity,99988409,1,T&S UK - Flights
BEIS,UKRI - AHRC,26/06/2023,T&S UK - Flights,SMT,Clarity Travel Ltd t/a Clarity,99988409,285.97,T&S UK - Flights
BEIS,UKRI - AHRC,26/06/2023,T&S UK - Other Charges,Executive Office,Clarity Travel Ltd t/a Clarity,99988409,69.99,T&S UK - Other Charges
BEIS,UKRI - AHRC,26/06/2023,T&S UK - Public Transport,AI&Design,Clarity Travel Ltd t/a Clarity,99988409,1.5,T&S UK - Public Transport
BEIS,UKRI - AHRC,26/06/2023,T&S UK - Public Transport,AI&Design,Clarity Travel Ltd t/a Clarity,99988409,21.2,T&S UK - Public Transport
BEIS,UKRI - AHRC,26/06/2023,T&S UK - Public Transport,AI&Design,Clarity Travel Ltd t/a Clarity,99988409,77.3,T&S UK - Public Transport
BEIS,UKRI - AHRC,26/06/2023,T&S UK - Public Transport,AI&Design,Clarity Travel Ltd t/a Clarity,99988409,15.2,T&S UK - Public Transport
BEIS,UKRI - AHRC,26/06/2023,T&S UK - Public Transport,AI&Design,Clarity Travel Ltd t/a Clarity,99988409,0.5,T&S UK - Public Transport
BEIS,UKRI - AHRC,26/06/2023,T&S UK - Public Transport,AI&Design,Clarity Travel Ltd t/a Clarity,99988409,167,T&S UK - Public Transport
BEIS,UKRI - AHRC,26/06/2023,T&S UK - Public Transport,Executive Office,Clarity Travel Ltd t/a Clarity,99988409,0.5,T&S UK - Public Transport
BEIS,UKRI - AHRC,26/06/2023,T&S UK - Public Transport,Executive Office,Clarity Travel Ltd t/a Clarity,99988409,160.2,T&S UK - Public Transport
BEIS,UKRI - AHRC,26/06/2023,T&S UK - Public Transport,Executive Office,Clarity Travel Ltd t/a Clarity,99988409,1,T&S UK - Public Transport
BEIS,UKRI - AHRC,26/06/2023,T&S UK - Public Transport,Executive Office,Clarity Travel Ltd t/a Clarity,99988409,30.5,T&S UK - Public Transport
BEIS,UKRI - AHRC,26/06/2023,T&S UK - Public Transport,Executive Office,Clarity Travel Ltd t/a Clarity,99988409,80.1,T&S UK - Public Transport
BEIS,UKRI - AHRC,26/06/2023,T&S UK - Public Transport,"Health, Environmental & Urban Humanities (HEUH)",Clarity Travel Ltd t/a Clarity,99988409,1,T&S UK - Public Transport
BEIS,UKRI - AHRC,26/06/2023,T&S UK - Public Transport,"Health, Environmental & Urban Humanities (HEUH)",Clarity Travel Ltd t/a Clarity,99988409,5.7,T&S UK - Public Transport
BEIS,UKRI - AHRC,26/06/2023,T&S UK - Public Transport,"Health, Environmental & Urban Humanities (HEUH)",Clarity Travel Ltd t/a Clarity,99988409,28.4,T&S UK - Public Transport
BEIS,UKRI - AHRC,26/06/2023,T&S UK - Public Transport,"Health, Environmental & Urban Humanities (HEUH)",Clarity Travel Ltd t/a Clarity,99988409,0.5,T&S UK - Public Transport
BEIS,UKRI - AHRC,26/06/2023,T&S UK - Public Transport,"Health, Environmental & Urban Humanities (HEUH)",Clarity Travel Ltd t/a Clarity,99988409,5.7,T&S UK - Public Transport
BEIS,UKRI - AHRC,26/06/2023,T&S UK - Public Transport,"Heritage, Culture & Creative Arts (HCCA)",Clarity Travel Ltd t/a Clarity,99988409,1,T&S UK - Public Transport
BEIS,UKRI - AHRC,26/06/2023,T&S UK - Public Transport,"Heritage, Culture & Creative Arts (HCCA)",Clarity Travel Ltd t/a Clarity,99988409,17.45,T&S UK - Public Transport
BEIS,UKRI - AHRC,26/06/2023,T&S UK - Public Transport,"Heritage, Culture & Creative Arts (HCCA)",Clarity Travel Ltd t/a Clarity,99988409,17.45,T&S UK - Public Transport
BEIS,UKRI - AHRC,26/06/2023,T&S UK - Public Transport,"Heritage, Culture & Creative Arts (HCCA)",Clarity Travel Ltd t/a Clarity,99988409,0.5,T&S UK - Public Transport
BEIS,UKRI - AHRC,26/06/2023,T&S UK - Public Transport,"Heritage, Culture & Creative Arts (HCCA)",Clarity Travel Ltd t/a Clarity,99988409,168.2,T&S UK - Public Transport
BEIS,UKRI - AHRC,26/06/2023,T&S UK - Public Transport,"Heritage, Culture & Creative Arts (HCCA)",Clarity Travel Ltd t/a Clarity,99988409,0.5,T&S UK - Public Transport
BEIS,UKRI - AHRC,26/06/2023,T&S UK - Public Transport,"Heritage, Culture & Creative Arts (HCCA)",Clarity Travel Ltd t/a Clarity,99988409,13.9,T&S UK - Public Transport
BEIS,UKRI - AHRC,26/06/2023,T&S UK - Public Transport,Infrastructure Fund - CoSTAR,Clarity Travel Ltd t/a Clarity,99988409,1,T&S UK - Public Transport
BEIS,UKRI - AHRC,26/06/2023,T&S UK - Public Transport,Infrastructure Fund - CoSTAR,Clarity Travel Ltd t/a Clarity,99988409,62.7,T&S UK - Public Transport
BEIS,UKRI - AHRC,26/06/2023,T&S UK - Public Transport,Infrastructure Fund - CoSTAR,Clarity Travel Ltd t/a Clarity,99988409,24.4,T&S UK - Public Transport
BEIS,UKRI - AHRC,26/06/2023,T&S UK - Public Transport,Infrastructure Fund - CoSTAR,Clarity Travel Ltd t/a Clarity,99988409,-10.2,T&S UK - Public Transport
BEIS,UKRI - AHRC,26/06/2023,T&S UK - Public Transport,Infrastructure Fund - CoSTAR,Clarity Travel Ltd t/a Clarity,99988409,1,T&S UK - Public Transport
BEIS,UKRI - AHRC,26/06/2023,T&S UK - Public Transport,Infrastructure Fund - CoSTAR,Clarity Travel Ltd t/a Clarity,99988409,15.2,T&S UK - Public Transport
BEIS,UKRI - AHRC,26/06/2023,T&S UK - Public Transport,Infrastructure Fund - CoSTAR,Clarity Travel Ltd t/a Clarity,99988409,80.5,T&S UK - Public Transport
BEIS,UKRI - AHRC,26/06/2023,T&S UK - Public Transport,Infrastructure Fund - CoSTAR,Clarity Travel Ltd t/a Clarity,99988409,0.5,T&S UK - Public Transport
BEIS,UKRI - AHRC,26/06/2023,T&S UK - Public Transport,Infrastructure Fund - CoSTAR,Clarity Travel Ltd t/a Clarity,99988409,80.5,T&S UK - Public Transport
BEIS,UKRI - AHRC,26/06/2023,T&S UK - Public Transport,Infrastruture Roadmap,Clarity Travel Ltd t/a Clarity,99988409,0.5,T&S UK - Public Transport
BEIS,UKRI - AHRC,26/06/2023,T&S UK - Public Transport,Infrastruture Roadmap,Clarity Travel Ltd t/a Clarity,99988409,93.9,T&S UK - Public Transport
BEIS,UKRI - AHRC,26/06/2023,T&S UK - Public Transport,Infrastruture Roadmap,Clarity Travel Ltd t/a Clarity,99988409,0.5,T&S UK - Public Transport
BEIS,UKRI - AHRC,26/06/2023,T&S UK - Public Transport,Infrastruture Roadmap,Clarity Travel Ltd t/a Clarity,99988409,19.2,T&S UK - Public Transport
BEIS,UKRI - AHRC,26/06/2023,T&S UK - Public Transport,Infrastruture Roadmap,Clarity Travel Ltd t/a Clarity,99988409,0.5,T&S UK - Public Transport
BEIS,UKRI - AHRC,26/06/2023,T&S UK - Public Transport,Infrastruture Roadmap,Clarity Travel Ltd t/a Clarity,99988409,85.3,T&S UK - Public Transport
BEIS,UKRI - AHRC,26/06/2023,T&S UK - Public Transport,Infrastruture Roadmap,Clarity Travel Ltd t/a Clarity,99988409,0.5,T&S UK - Public Transport
BEIS,UKRI - AHRC,26/06/2023,T&S UK - Public Transport,Infrastruture Roadmap,Clarity Travel Ltd t/a Clarity,99988409,166.2,T&S UK - Public Transport
BEIS,UKRI - AHRC,26/06/2023,T&S UK - Public Transport,Infrastruture Roadmap,Clarity Travel Ltd t/a Clarity,99988409,0.5,T&S UK - Public Transport
BEIS,UKRI - AHRC,26/06/2023,T&S UK - Public Transport,Infrastruture Roadmap,Clarity Travel Ltd t/a Clarity,99988409,187.8,T&S UK - Public Transport
BEIS,UKRI - AHRC,26/06/2023,T&S UK - Public Transport,Infrastruture Roadmap,Clarity Travel Ltd t/a Clarity,99988409,0.5,T&S UK - Public Transport
BEIS,UKRI - AHRC,26/06/2023,T&S UK - Public Transport,Infrastruture Roadmap,Clarity Travel Ltd t/a Clarity,99988409,166.2,T&S UK - Public Transport
BEIS,UKRI - AHRC,26/06/2023,T&S UK - Public Transport,Infrastruture Roadmap,Clarity Travel Ltd t/a Clarity,99988409,1,T&S UK - Public Transport
BEIS,UKRI - AHRC,26/06/2023,T&S UK - Public Transport,Infrastruture Roadmap,Clarity Travel Ltd t/a Clarity,99988409,336.4,T&S UK - Public Transport
BEIS,UKRI - AHRC,26/06/2023,T&S UK - Public Transport,Infrastruture Roadmap,Clarity Travel Ltd t/a Clarity,99988409,0.5,T&S UK - Public Transport
BEIS,UKRI - AHRC,26/06/2023,T&S UK - Public Transport,Infrastruture Roadmap,Clarity Travel Ltd t/a Clarity,99988409,85.3,T&S UK - Public Transport
BEIS,UKRI - AHRC,26/06/2023,T&S UK - Public Transport,Infrastruture Roadmap,Clarity Travel Ltd t/a Clarity,99988409,0.5,T&S UK - Public Transport
BEIS,UKRI - AHRC,26/06/2023,T&S UK - Public Transport,Infrastruture Roadmap,Clarity Travel Ltd t/a Clarity,99988409,168.2,T&S UK - Public Transport
BEIS,UKRI - AHRC,26/06/2023,T&S UK - Public Transport,Infrastruture Roadmap,Clarity Travel Ltd t/a Clarity,99988409,0.5,T&S UK - Public Transport
BEIS,UKRI - AHRC,26/06/2023,T&S UK - Public Transport,Infrastruture Roadmap,Clarity Travel Ltd t/a Clarity,99988409,43.1,T&S UK - Public Transport
BEIS,UKRI - AHRC,26/06/2023,T&S UK - Public Transport,Infrastruture Roadmap,Clarity Travel Ltd t/a Clarity,99988409,1,T&S UK - Public Transport
BEIS,UKRI - AHRC,26/06/2023,T&S UK - Public Transport,Infrastruture Roadmap,Clarity Travel Ltd t/a Clarity,99988409,42,T&S UK - Public Transport
BEIS,UKRI - AHRC,26/06/2023,T&S UK - Public Transport,Infrastruture Roadmap,Clarity Travel Ltd t/a Clarity,99988409,42,T&S UK - Public Transport
BEIS,UKRI - AHRC,26/06/2023,T&S UK - Public Transport,International Partnership and Engagement,Clarity Travel Ltd t/a Clarity,99988409,0.5,T&S UK - Public Transport
BEIS,UKRI - AHRC,26/06/2023,T&S UK - Public Transport,International Partnership and Engagement,Clarity Travel Ltd t/a Clarity,99988409,13.45,T&S UK - Public Transport
BEIS,UKRI - AHRC,26/06/2023,T&S UK - Public Transport,International Partnership and Engagement,Clarity Travel Ltd t/a Clarity,99988409,0.5,T&S UK - Public Transport
BEIS,UKRI - AHRC,26/06/2023,T&S UK - Public Transport,International Partnership and Engagement,Clarity Travel Ltd t/a Clarity,99988409,40.9,T&S UK - Public Transport
BEIS,UKRI - AHRC,26/06/2023,T&S UK - Public Transport,Operations,Clarity Travel Ltd t/a Clarity,99988409,0.5,T&S UK - Public Transport
BEIS,UKRI - AHRC,26/06/2023,T&S UK - Public Transport,Operations,Clarity Travel Ltd t/a Clarity,99988409,21,T&S UK - Public Transport
BEIS,UKRI - AHRC,26/06/2023,T&S UK - Public Transport,Operations,Clarity Travel Ltd t/a Clarity,99988409,0.5,T&S UK - Public Transport
BEIS,UKRI - AHRC,26/06/2023,T&S UK - Public Transport,Operations,Clarity Travel Ltd t/a Clarity,99988409,59.4,T&S UK - Public Transport
BEIS,UKRI - AHRC,26/06/2023,T&S UK - Public Transport,Operations,Clarity Travel Ltd t/a Clarity,99988409,0.5,T&S UK - Public Transport
BEIS,UKRI - AHRC,26/06/2023,T&S UK - Public Transport,Operations,Clarity Travel Ltd t/a Clarity,99988409,23.5,T&S UK - Public Transport
BEIS,UKRI - AHRC,26/06/2023,T&S UK - Public Transport,Programme Management Office,Clarity Travel Ltd t/a Clarity,99988409,1,T&S UK - Public Transport
BEIS,UKRI - AHRC,26/06/2023,T&S UK - Public Transport,Programme Management Office,Clarity Travel Ltd t/a Clarity,99988409,206.6,T&S UK - Public Transport
BEIS,UKRI - AHRC,26/06/2023,T&S UK - Public Transport,Programme Management Office,Clarity Travel Ltd t/a Clarity,99988409,15.2,T&S UK - Public Transport
BEIS,UKRI - AHRC,26/06/2023,T&S UK - Public Transport,Programme Management Office,Clarity Travel Ltd t/a Clarity,99988409,1,T&S UK - Public Transport
BEIS,UKRI - AHRC,26/06/2023,T&S UK - Public Transport,Programme Management Office,Clarity Travel Ltd t/a Clarity,99988409,15.2,T&S UK - Public Transport
BEIS,UKRI - AHRC,26/06/2023,T&S UK - Public Transport,Programme Management Office,Clarity Travel Ltd t/a Clarity,99988409,160.2,T&S UK - Public Transport
BEIS,UKRI - AHRC,26/06/2023,T&S UK - Public Transport,SMT,Clarity Travel Ltd t/a Clarity,99988409,0.5,T&S UK - Public Transport
BEIS,UKRI - AHRC,26/06/2023,T&S UK - Public Transport,SMT,Clarity Travel Ltd t/a Clarity,99988409,104.3,T&S UK - Public Transport
BEIS,UKRI - AHRC,26/06/2023,T&S UK - Public Transport,SMT,Clarity Travel Ltd t/a Clarity,99988409,0.5,T&S UK - Public Transport
BEIS,UKRI - AHRC,26/06/2023,T&S UK - Public Transport,SMT,Clarity Travel Ltd t/a Clarity,99988409,57.9,T&S UK - Public Transport
BEIS,UKRI - AHRC,26/06/2023,T&S UK - Public Transport,SMT,Clarity Travel Ltd t/a Clarity,99988409,1,T&S UK - Public Transport
BEIS,UKRI - AHRC,26/06/2023,T&S UK - Public Transport,SMT,Clarity Travel Ltd t/a Clarity,99988409,53.5,T&S UK - Public Transport
BEIS,UKRI - AHRC,26/06/2023,T&S UK - Public Transport,SMT,Clarity Travel Ltd t/a Clarity,99988409,6.7,T&S UK - Public Transport
BEIS,UKRI - AHRC,26/06/2023,T&S UK - Public Transport,SMT,Clarity Travel Ltd t/a Clarity,99988409,1,T&S UK - Public Transport
BEIS,UKRI - AHRC,26/06/2023,T&S UK - Public Transport,SMT,Clarity Travel Ltd t/a Clarity,99988409,95.4,T&S UK - Public Transport
BEIS,UKRI - AHRC,26/06/2023,T&S UK - Public Transport,SMT,Clarity Travel Ltd t/a Clarity,99988409,21.5,T&S UK - Public Transport
BEIS,UKRI - AHRC,26/06/2023,T&S UK - Public Transport,SMT,Clarity Travel Ltd t/a Clarity,99988409,0.5,T&S UK - Public Transport
BEIS,UKRI - AHRC,26/06/2023,T&S UK - Public Transport,SMT,Clarity Travel Ltd t/a Clarity,99988409,17.5,T&S UK - Public Transport
BEIS,UKRI - AHRC,26/06/2023,T&S UK - Public Transport,SMT,Clarity Travel Ltd t/a Clarity,99988409,0.5,T&S UK - Public Transport
BEIS,UKRI - AHRC,26/06/2023,T&S UK - Public Transport,SMT,Clarity Travel Ltd t/a Clarity,99988409,9.1,T&S UK - Public Transport
BEIS,UKRI - AHRC,26/06/2023,T&S UK - Public Transport,SMT,Clarity Travel Ltd t/a Clarity,99988409,0.5,T&S UK - Public Transport
BEIS,UKRI - AHRC,26/06/2023,T&S UK - Public Transport,SMT,Clarity Travel Ltd t/a Clarity,99988409,31.5,T&S UK - Public Transport
BEIS,UKRI - AHRC,26/06/2023,T&S UK - Public Transport,SMT,Clarity Travel Ltd t/a Clarity,99988409,1,T&S UK - Public Transport
BEIS,UKRI - AHRC,26/06/2023,T&S UK - Public Transport,SMT,Clarity Travel Ltd t/a Clarity,99988409,9.1,T&S UK - Public Transport
BEIS,UKRI - AHRC,26/06/2023,T&S UK - Public Transport,SMT,Clarity Travel Ltd t/a Clarity,99988409,17.5,T&S UK - Public Transport
BEIS,UKRI - AHRC,26/06/2023,T&S UK - Public Transport,SMT,Clarity Travel Ltd t/a Clarity,99988409,0.5,T&S UK - Public Transport
BEIS,UKRI - AHRC,26/06/2023,T&S UK - Public Transport,SMT,Clarity Travel Ltd t/a Clarity,99988409,160.2,T&S UK - Public Transport
BEIS,UKRI - AHRC,26/06/2023,T&S UK - Public Transport,SMT,Clarity Travel Ltd t/a Clarity,99988409,0.5,T&S UK - Public Transport
BEIS,UKRI - AHRC,26/06/2023,T&S UK - Public Transport,SMT,Clarity Travel Ltd t/a Clarity,99988409,17.7,T&S UK - Public Transport
BEIS,UKRI - AHRC,26/06/2023,T&S UK - Public Transport,Strategy and Evidence,Clarity Travel Ltd t/a Clarity,99988409,0.5,T&S UK - Public Transport
BEIS,UKRI - AHRC,26/06/2023,T&S UK - Public Transport,Strategy and Evidence,Clarity Travel Ltd t/a Clarity,99988409,168.2,T&S UK - Public Transport
BEIS,UKRI - AHRC,26/06/2023,T&S UK - Public Transport,Operations,Unspecified,99988455,23.45,T&S UK - Public Transport
BEIS,UKRI - AHRC,26/06/2023,T&S UK - Subsistence,Operations,Unspecified,99988455,22.7,T&S UK - Subsistence
BEIS,UKRI - AHRC,26/06/2023,T&S UK - Other Charges,Public and Stakeholder Engagement,Unspecified,99988456,3.05,T&S UK - Other Charges
BEIS,UKRI - AHRC,26/06/2023,T&S UK - Public Transport,Public and Stakeholder Engagement,Unspecified,99988456,8.5,T&S UK - Public Transport
BEIS,UKRI - AHRC,26/06/2023,T&S UK - Subsistence,Public and Stakeholder Engagement,Unspecified,99988456,3,T&S UK - Subsistence
BEIS,UKRI - AHRC,26/06/2023,T&S UK - Subsistence,Public and Stakeholder Engagement,Unspecified,99988456,27.99,T&S UK - Subsistence
BEIS,UKRI - AHRC,26/06/2023,T&S UK - Subsistence,Public and Stakeholder Engagement,Unspecified,99988456,23.6,T&S UK - Subsistence
BEIS,UKRI - AHRC,26/06/2023,Non-staff travel and subsistance,Executive Office,Unspecified,99988898,698.61,Non-staff travel and subsistance
BEIS,UKRI - AHRC,26/06/2023,Fees (Including College Members),Operations,Unspecified,99988899,170,Fees (Including College Members)
BEIS,UKRI - AHRC,26/06/2023,Fees (Including College Members),Operations,Unspecified,99988900,230,Fees (Including College Members)
BEIS,UKRI - AHRC,26/06/2023,Fees (Including College Members),Operations,Unspecified,99988901,170,Fees (Including College Members)
BEIS,UKRI - AHRC,26/06/2023,Fees (Including College Members),Operations,Unspecified,99988902,170,Fees (Including College Members)
BEIS,UKRI - AHRC,27/06/2023,T&S UK - Accommodation,Board and Committee,Clarity Travel Ltd t/a Clarity,99989437,191.25,T&S UK - Accommodation
BEIS,UKRI - AHRC,27/06/2023,T&S UK - Accommodation,Board and Committee,Clarity Travel Ltd t/a Clarity,99989437,215,T&S UK - Accommodation
BEIS,UKRI - AHRC,27/06/2023,T&S UK - Accommodation,Board and Committee,Clarity Travel Ltd t/a Clarity,99989437,81.25,T&S UK - Accommodation
BEIS,UKRI - AHRC,27/06/2023,T&S UK - Accommodation,"Health, Environmental & Urban Humanities (HEUH)",Clarity Travel Ltd t/a Clarity,99989437,59.17,T&S UK - Accommodation
BEIS,UKRI - AHRC,27/06/2023,T&S UK - Accommodation,"Health, Environmental & Urban Humanities (HEUH)",Clarity Travel Ltd t/a Clarity,99989437,11.83,T&S UK - Accommodation
BEIS,UKRI - AHRC,27/06/2023,T&S UK - Accommodation,"Heritage, Culture & Creative Arts (HCCA)",Clarity Travel Ltd t/a Clarity,99989437,136.67,T&S UK - Accommodation
BEIS,UKRI - AHRC,27/06/2023,T&S UK - Accommodation,"Heritage, Culture & Creative Arts (HCCA)",Clarity Travel Ltd t/a Clarity,99989437,27.33,T&S UK - Accommodation
BEIS,UKRI - AHRC,27/06/2023,T&S UK - Accommodation,Infrastructure Fund - CoSTAR,Clarity Travel Ltd t/a Clarity,99989437,177.5,T&S UK - Accommodation
BEIS,UKRI - AHRC,27/06/2023,T&S UK - Accommodation,Infrastructure Fund - CoSTAR,Clarity Travel Ltd t/a Clarity,99989437,127.5,T&S UK - Accommodation
BEIS,UKRI - AHRC,27/06/2023,T&S UK - Accommodation,Infrastructure Fund - CoSTAR,Clarity Travel Ltd t/a Clarity,99989437,61,T&S UK - Accommodation
BEIS,UKRI - AHRC,27/06/2023,T&S UK - Accommodation,Infrastruture Roadmap,Clarity Travel Ltd t/a Clarity,99989437,66.67,T&S UK - Accommodation
BEIS,UKRI - AHRC,27/06/2023,T&S UK - Accommodation,Infrastruture Roadmap,Clarity Travel Ltd t/a Clarity,99989437,123.33,T&S UK - Accommodation
BEIS,UKRI - AHRC,27/06/2023,T&S UK - Accommodation,Infrastruture Roadmap,Clarity Travel Ltd t/a Clarity,99989437,119.17,T&S UK - Accommodation
BEIS,UKRI - AHRC,27/06/2023,T&S UK - Accommodation,Infrastruture Roadmap,Clarity Travel Ltd t/a Clarity,99989437,100,T&S UK - Accommodation
BEIS,UKRI - AHRC,27/06/2023,T&S UK - Accommodation,Infrastruture Roadmap,Clarity Travel Ltd t/a Clarity,99989437,347.49,T&S UK - Accommodation
BEIS,UKRI - AHRC,27/06/2023,T&S UK - Accommodation,Infrastruture Roadmap,Clarity Travel Ltd t/a Clarity,99989437,151.34,T&S UK - Accommodation
BEIS,UKRI - AHRC,27/06/2023,T&S UK - Accommodation,SMT,Clarity Travel Ltd t/a Clarity,99989437,174.17,T&S UK - Accommodation
BEIS,UKRI - AHRC,27/06/2023,T&S UK - Accommodation,SMT,Clarity Travel Ltd t/a Clarity,99989437,96.83,T&S UK - Accommodation
BEIS,UKRI - AHRC,27/06/2023,T&S UK - Accommodation,SMT,Clarity Travel Ltd t/a Clarity,99989437,70.67,T&S UK - Accommodation
BEIS,UKRI - AHRC,27/06/2023,T&S UK - Accommodation,SMT,Clarity Travel Ltd t/a Clarity,99989437,68.33,T&S UK - Accommodation
BEIS,UKRI - AHRC,27/06/2023,T&S UK - Accommodation,SMT,Clarity Travel Ltd t/a Clarity,99989437,82,T&S UK - Accommodation
BEIS,UKRI - AHRC,27/06/2023,T&S UK - Accommodation,Strategy and Evidence,Clarity Travel Ltd t/a Clarity,99989437,119.17,T&S UK - Accommodation
BEIS,UKRI - AHRC,27/06/2023,T&S UK - Accommodation,Strategy and Evidence,Clarity Travel Ltd t/a Clarity,99989437,23.83,T&S UK - Accommodation
BEIS,UKRI - AHRC,27/06/2023,T&S UK - Flights,Operations,Clarity Travel Ltd t/a Clarity,99989437,1,T&S UK - Flights
BEIS,UKRI - AHRC,27/06/2023,T&S UK - Flights,Operations,Clarity Travel Ltd t/a Clarity,99989437,118.8,T&S UK - Flights
BEIS,UKRI - AHRC,27/06/2023,T&S UK - Flights,SMT,Clarity Travel Ltd t/a Clarity,99989437,1,T&S UK - Flights
BEIS,UKRI - AHRC,27/06/2023,T&S UK - Flights,SMT,Clarity Travel Ltd t/a Clarity,99989437,302.68,T&S UK - Flights
BEIS,UKRI - AHRC,27/06/2023,T&S UK - Flights,SMT,Clarity Travel Ltd t/a Clarity,99989437,1,T&S UK - Flights
BEIS,UKRI - AHRC,27/06/2023,T&S UK - Flights,SMT,Clarity Travel Ltd t/a Clarity,99989437,137.2,T&S UK - Flights
BEIS,UKRI - AHRC,27/06/2023,T&S UK - Other Charges,"Heritage, Culture & Creative Arts (HCCA)",Clarity Travel Ltd t/a Clarity,99989437,2.5,T&S UK - Other Charges
BEIS,UKRI - AHRC,27/06/2023,T&S UK - Other Charges,"Heritage, Culture & Creative Arts (HCCA)",Clarity Travel Ltd t/a Clarity,99989437,80.98,T&S UK - Other Charges
BEIS,UKRI - AHRC,27/06/2023,T&S UK - Other Charges,"Heritage, Culture & Creative Arts (HCCA)",Clarity Travel Ltd t/a Clarity,99989437,0.5,T&S UK - Other Charges
BEIS,UKRI - AHRC,27/06/2023,T&S UK - Public Transport,AI&Design,Clarity Travel Ltd t/a Clarity,99989437,0.5,T&S UK - Public Transport
BEIS,UKRI - AHRC,27/06/2023,T&S UK - Public Transport,AI&Design,Clarity Travel Ltd t/a Clarity,99989437,63.1,T&S UK - Public Transport
BEIS,UKRI - AHRC,27/06/2023,T&S UK - Public Transport,AI&Design,Clarity Travel Ltd t/a Clarity,99989437,0.5,T&S UK - Public Transport
BEIS,UKRI - AHRC,27/06/2023,T&S UK - Public Transport,AI&Design,Clarity Travel Ltd t/a Clarity,99989437,168.2,T&S UK - Public Transport
BEIS,UKRI - AHRC,27/06/2023,T&S UK - Public Transport,AI&Design,Clarity Travel Ltd t/a Clarity,99989437,0.5,T&S UK - Public Transport
BEIS,UKRI - AHRC,27/06/2023,T&S UK - Public Transport,AI&Design,Clarity Travel Ltd t/a Clarity,99989437,111,T&S UK - Public Transport
BEIS,UKRI - AHRC,27/06/2023,T&S UK - Public Transport,AI&Design,Clarity Travel Ltd t/a Clarity,99989437,0.5,T&S UK - Public Transport
BEIS,UKRI - AHRC,27/06/2023,T&S UK - Public Transport,AI&Design,Clarity Travel Ltd t/a Clarity,99989437,206.6,T&S UK - Public Transport
BEIS,UKRI - AHRC,27/06/2023,T&S UK - Public Transport,AI&Design,Clarity Travel Ltd t/a Clarity,99989437,1.5,T&S UK - Public Transport
BEIS,UKRI - AHRC,27/06/2023,T&S UK - Public Transport,AI&Design,Clarity Travel Ltd t/a Clarity,99989437,80.1,T&S UK - Public Transport
BEIS,UKRI - AHRC,27/06/2023,T&S UK - Public Transport,AI&Design,Clarity Travel Ltd t/a Clarity,99989437,15.2,T&S UK - Public Transport
BEIS,UKRI - AHRC,27/06/2023,T&S UK - Public Transport,AI&Design,Clarity Travel Ltd t/a Clarity,99989437,74,T&S UK - Public Transport
BEIS,UKRI - AHRC,27/06/2023,T&S UK - Public Transport,Executive Office,Clarity Travel Ltd t/a Clarity,99989437,0.5,T&S UK - Public Transport
BEIS,UKRI - AHRC,27/06/2023,T&S UK - Public Transport,Executive Office,Clarity Travel Ltd t/a Clarity,99989437,81.5,T&S UK - Public Transport
BEIS,UKRI - AHRC,27/06/2023,T&S UK - Public Transport,Executive Office,Clarity Travel Ltd t/a Clarity,99989437,0.5,T&S UK - Public Transport
BEIS,UKRI - AHRC,27/06/2023,T&S UK - Public Transport,Executive Office,Clarity Travel Ltd t/a Clarity,99989437,32,T&S UK - Public Transport
BEIS,UKRI - AHRC,27/06/2023,T&S UK - Public Transport,Executive Office,Clarity Travel Ltd t/a Clarity,99989437,1,T&S UK - Public Transport
BEIS,UKRI - AHRC,27/06/2023,T&S UK - Public Transport,Executive Office,Clarity Travel Ltd t/a Clarity,99989437,32.5,T&S UK - Public Transport
BEIS,UKRI - AHRC,27/06/2023,T&S UK - Public Transport,Executive Office,Clarity Travel Ltd t/a Clarity,99989437,80.1,T&S UK - Public Transport
BEIS,UKRI - AHRC,27/06/2023,T&S UK - Public Transport,Executive Office,Clarity Travel Ltd t/a Clarity,99989437,0.5,T&S UK - Public Transport
BEIS,UKRI - AHRC,27/06/2023,T&S UK - Public Transport,Executive Office,Clarity Travel Ltd t/a Clarity,99989437,83.1,T&S UK - Public Transport
BEIS,UKRI - AHRC,27/06/2023,T&S UK - Public Transport,"Health, Environmental & Urban Humanities (HEUH)",Clarity Travel Ltd t/a Clarity,99989437,0.5,T&S UK - Public Transport
BEIS,UKRI - AHRC,27/06/2023,T&S UK - Public Transport,"Health, Environmental & Urban Humanities (HEUH)",Clarity Travel Ltd t/a Clarity,99989437,25.5,T&S UK - Public Transport
BEIS,UKRI - AHRC,27/06/2023,T&S UK - Public Transport,"Health, Environmental & Urban Humanities (HEUH)",Clarity Travel Ltd t/a Clarity,99989437,0.5,T&S UK - Public Transport
BEIS,UKRI - AHRC,27/06/2023,T&S UK - Public Transport,"Health, Environmental & Urban Humanities (HEUH)",Clarity Travel Ltd t/a Clarity,99989437,140.9,T&S UK - Public Transport
BEIS,UKRI - AHRC,27/06/2023,T&S UK - Public Transport,"Health, Environmental & Urban Humanities (HEUH)",Clarity Travel Ltd t/a Clarity,99989437,0.5,T&S UK - Public Transport
BEIS,UKRI - AHRC,27/06/2023,T&S UK - Public Transport,"Health, Environmental & Urban Humanities (HEUH)",Clarity Travel Ltd t/a Clarity,99989437,98.5,T&S UK - Public Transport
BEIS,UKRI - AHRC,27/06/2023,T&S UK - Public Transport,"Health, Environmental & Urban Humanities (HEUH)",Clarity Travel Ltd t/a Clarity,99989437,0.5,T&S UK - Public Transport
BEIS,UKRI - AHRC,27/06/2023,T&S UK - Public Transport,"Health, Environmental & Urban Humanities (HEUH)",Clarity Travel Ltd t/a Clarity,99989437,3.7,T&S UK - Public Transport
BEIS,UKRI - AHRC,27/06/2023,T&S UK - Public Transport,"Health, Environmental & Urban Humanities (HEUH)",Clarity Travel Ltd t/a Clarity,99989437,1,T&S UK - Public Transport
BEIS,UKRI - AHRC,27/06/2023,T&S UK - Public Transport,"Health, Environmental & Urban Humanities (HEUH)",Clarity Travel Ltd t/a Clarity,99989437,44.3,T&S UK - Public Transport
BEIS,UKRI - AHRC,27/06/2023,T&S UK - Public Transport,"Health, Environmental & Urban Humanities (HEUH)",Clarity Travel Ltd t/a Clarity,99989437,44.3,T&S UK - Public Transport
BEIS,UKRI - AHRC,27/06/2023,T&S UK - Public Transport,Infrastructure Fund - CoSTAR,Clarity Travel Ltd t/a Clarity,99989437,0.5,T&S UK - Public Transport
BEIS,UKRI - AHRC,27/06/2023,T&S UK - Public Transport,Infrastructure Fund - CoSTAR,Clarity Travel Ltd t/a Clarity,99989437,24.9,T&S UK - Public Transport
BEIS,UKRI - AHRC,27/06/2023,T&S UK - Public Transport,Infrastructure Fund - CoSTAR,Clarity Travel Ltd t/a Clarity,99989437,1,T&S UK - Public Transport
BEIS,UKRI - AHRC,27/06/2023,T&S UK - Public Transport,Infrastructure Fund - CoSTAR,Clarity Travel Ltd t/a Clarity,99989437,15.2,T&S UK - Public Transport
BEIS,UKRI - AHRC,27/06/2023,T&S UK - Public Transport,Infrastructure Fund - CoSTAR,Clarity Travel Ltd t/a Clarity,99989437,64.9,T&S UK - Public Transport
BEIS,UKRI - AHRC,27/06/2023,T&S UK - Public Transport,Infrastructure Fund - CoSTAR,Clarity Travel Ltd t/a Clarity,99989437,0.5,T&S UK - Public Transport
BEIS,UKRI - AHRC,27/06/2023,T&S UK - Public Transport,Infrastructure Fund - CoSTAR,Clarity Travel Ltd t/a Clarity,99989437,68.15,T&S UK - Public Transport
BEIS,UKRI - AHRC,27/06/2023,T&S UK - Public Transport,Infrastructure Fund - CoSTAR,Clarity Travel Ltd t/a Clarity,99989437,0.5,T&S UK - Public Transport
BEIS,UKRI - AHRC,27/06/2023,T&S UK - Public Transport,Infrastructure Fund - CoSTAR,Clarity Travel Ltd t/a Clarity,99989437,125.9,T&S UK - Public Transport
BEIS,UKRI - AHRC,27/06/2023,T&S UK - Public Transport,Infrastruture Roadmap,Clarity Travel Ltd t/a Clarity,99989437,0.5,T&S UK - Public Transport
BEIS,UKRI - AHRC,27/06/2023,T&S UK - Public Transport,Infrastruture Roadmap,Clarity Travel Ltd t/a Clarity,99989437,31.7,T&S UK - Public Transport
BEIS,UKRI - AHRC,27/06/2023,T&S UK - Public Transport,Infrastruture Roadmap,Clarity Travel Ltd t/a Clarity,99989437,0.5,T&S UK - Public Transport
BEIS,UKRI - AHRC,27/06/2023,T&S UK - Public Transport,Infrastruture Roadmap,Clarity Travel Ltd t/a Clarity,99989437,27.7,T&S UK - Public Transport
BEIS,UKRI - AHRC,27/06/2023,T&S UK - Public Transport,Infrastruture Roadmap,Clarity Travel Ltd t/a Clarity,99989437,0.5,T&S UK - Public Transport
BEIS,UKRI - AHRC,27/06/2023,T&S UK - Public Transport,Infrastruture Roadmap,Clarity Travel Ltd t/a Clarity,99989437,39.2,T&S UK - Public Transport
BEIS,UKRI - AHRC,27/06/2023,T&S UK - Public Transport,Infrastruture Roadmap,Clarity Travel Ltd t/a Clarity,99989437,1,T&S UK - Public Transport
BEIS,UKRI - AHRC,27/06/2023,T&S UK - Public Transport,Infrastruture Roadmap,Clarity Travel Ltd t/a Clarity,99989437,39.2,T&S UK - Public Transport
BEIS,UKRI - AHRC,27/06/2023,T&S UK - Public Transport,Infrastruture Roadmap,Clarity Travel Ltd t/a Clarity,99989437,31.7,T&S UK - Public Transport
BEIS,UKRI - AHRC,27/06/2023,T&S UK - Public Transport,Infrastruture Roadmap,Clarity Travel Ltd t/a Clarity,99989437,0.5,T&S UK - Public Transport
BEIS,UKRI - AHRC,27/06/2023,T&S UK - Public Transport,Infrastruture Roadmap,Clarity Travel Ltd t/a Clarity,99989437,166.2,T&S UK - Public Transport
BEIS,UKRI - AHRC,27/06/2023,T&S UK - Public Transport,Infrastruture Roadmap,Clarity Travel Ltd t/a Clarity,99989437,1,T&S UK - Public Transport
BEIS,UKRI - AHRC,27/06/2023,T&S UK - Public Transport,Infrastruture Roadmap,Clarity Travel Ltd t/a Clarity,99989437,159.8,T&S UK - Public Transport
BEIS,UKRI - AHRC,27/06/2023,T&S UK - Public Transport,Infrastruture Roadmap,Clarity Travel Ltd t/a Clarity,99989437,2,T&S UK - Public Transport
BEIS,UKRI - AHRC,27/06/2023,T&S UK - Public Transport,Infrastruture Roadmap,Clarity Travel Ltd t/a Clarity,99989437,186.2,T&S UK - Public Transport
BEIS,UKRI - AHRC,27/06/2023,T&S UK - Public Transport,Infrastruture Roadmap,Clarity Travel Ltd t/a Clarity,99989437,30.4,T&S UK - Public Transport
BEIS,UKRI - AHRC,27/06/2023,T&S UK - Public Transport,Infrastruture Roadmap,Clarity Travel Ltd t/a Clarity,99989437,0.5,T&S UK - Public Transport
BEIS,UKRI - AHRC,27/06/2023,T&S UK - Public Transport,Infrastruture Roadmap,Clarity Travel Ltd t/a Clarity,99989437,85.3,T&S UK - Public Transport
BEIS,UKRI - AHRC,27/06/2023,T&S UK - Public Transport,International Development and Area Studies,Clarity Travel Ltd t/a Clarity,99989437,1,T&S UK - Public Transport
BEIS,UKRI - AHRC,27/06/2023,T&S UK - Public Transport,International Development and Area Studies,Clarity Travel Ltd t/a Clarity,99989437,36,T&S UK - Public Transport
BEIS,UKRI - AHRC,27/06/2023,T&S UK - Public Transport,International Development and Area Studies,Clarity Travel Ltd t/a Clarity,99989437,48,T&S UK - Public Transport
BEIS,UKRI - AHRC,27/06/2023,T&S UK - Public Transport,International Partnership and Engagement,Clarity Travel Ltd t/a Clarity,99989437,0.5,T&S UK - Public Transport
BEIS,UKRI - AHRC,27/06/2023,T&S UK - Public Transport,International Partnership and Engagement,Clarity Travel Ltd t/a Clarity,99989437,21,T&S UK - Public Transport
BEIS,UKRI - AHRC,27/06/2023,T&S UK - Public Transport,International Partnership and Engagement,Clarity Travel Ltd t/a Clarity,99989437,0.5,T&S UK - Public Transport
BEIS,UKRI - AHRC,27/06/2023,T&S UK - Public Transport,International Partnership and Engagement,Clarity Travel Ltd t/a Clarity,99989437,24.05,T&S UK - Public Transport
BEIS,UKRI - AHRC,27/06/2023,T&S UK - Public Transport,International Partnership and Engagement,Clarity Travel Ltd t/a Clarity,99989437,1,T&S UK - Public Transport
BEIS,UKRI - AHRC,27/06/2023,T&S UK - Public Transport,International Partnership and Engagement,Clarity Travel Ltd t/a Clarity,99989437,18.45,T&S UK - Public Transport
BEIS,UKRI - AHRC,27/06/2023,T&S UK - Public Transport,International Partnership and Engagement,Clarity Travel Ltd t/a Clarity,99989437,21.1,T&S UK - Public Transport
BEIS,UKRI - AHRC,27/06/2023,T&S UK - Public Transport,International Partnership and Engagement,Clarity Travel Ltd t/a Clarity,99989437,1,T&S UK - Public Transport
BEIS,UKRI - AHRC,27/06/2023,T&S UK - Public Transport,International Partnership and Engagement,Clarity Travel Ltd t/a Clarity,99989437,28.7,T&S UK - Public Transport
BEIS,UKRI - AHRC,27/06/2023,T&S UK - Public Transport,International Partnership and Engagement,Clarity Travel Ltd t/a Clarity,99989437,13.85,T&S UK - Public Transport
BEIS,UKRI - AHRC,27/06/2023,T&S UK - Public Transport,International Partnership and Engagement,Clarity Travel Ltd t/a Clarity,99989437,1,T&S UK - Public Transport
BEIS,UKRI - AHRC,27/06/2023,T&S UK - Public Transport,International Partnership and Engagement,Clarity Travel Ltd t/a Clarity,99989437,21,T&S UK - Public Transport
BEIS,UKRI - AHRC,27/06/2023,T&S UK - Public Transport,International Partnership and Engagement,Clarity Travel Ltd t/a Clarity,99989437,25.7,T&S UK - Public Transport
BEIS,UKRI - AHRC,27/06/2023,T&S UK - Public Transport,International Partnership and Engagement,Clarity Travel Ltd t/a Clarity,99989437,1,T&S UK - Public Transport
BEIS,UKRI - AHRC,27/06/2023,T&S UK - Public Transport,International Partnership and Engagement,Clarity Travel Ltd t/a Clarity,99989437,18.45,T&S UK - Public Transport
BEIS,UKRI - AHRC,27/06/2023,T&S UK - Public Transport,International Partnership and Engagement,Clarity Travel Ltd t/a Clarity,99989437,17.15,T&S UK - Public Transport
BEIS,UKRI - AHRC,27/06/2023,T&S UK - Public Transport,Public and Stakeholder Engagement,Clarity Travel Ltd t/a Clarity,99989437,0.5,T&S UK - Public Transport
BEIS,UKRI - AHRC,27/06/2023,T&S UK - Public Transport,Public and Stakeholder Engagement,Clarity Travel Ltd t/a Clarity,99989437,235.6,T&S UK - Public Transport
BEIS,UKRI - AHRC,27/06/2023,T&S UK - Public Transport,SMT,Clarity Travel Ltd t/a Clarity,99989437,1,T&S UK - Public Transport
BEIS,UKRI - AHRC,27/06/2023,T&S UK - Public Transport,SMT,Clarity Travel Ltd t/a Clarity,99989437,41.7,T&S UK - Public Transport
BEIS,UKRI - AHRC,27/06/2023,T&S UK - Public Transport,SMT,Clarity Travel Ltd t/a Clarity,99989437,65,T&S UK - Public Transport
BEIS,UKRI - AHRC,27/06/2023,T&S UK - Public Transport,SMT,Clarity Travel Ltd t/a Clarity,99989437,0.5,T&S UK - Public Transport
BEIS,UKRI - AHRC,27/06/2023,T&S UK - Public Transport,SMT,Clarity Travel Ltd t/a Clarity,99989437,23,T&S UK - Public Transport
BEIS,UKRI - AHRC,27/06/2023,T&S UK - Public Transport,SMT,Clarity Travel Ltd t/a Clarity,99989437,-155.2,T&S UK - Public Transport
BEIS,UKRI - AHRC,27/06/2023,T&S UK - Public Transport,SMT,Clarity Travel Ltd t/a Clarity,99989437,0.5,T&S UK - Public Transport
BEIS,UKRI - AHRC,27/06/2023,T&S UK - Public Transport,SMT,Clarity Travel Ltd t/a Clarity,99989437,160.2,T&S UK - Public Transport
BEIS,UKRI - AHRC,27/06/2023,T&S UK - Public Transport,SMT,Clarity Travel Ltd t/a Clarity,99989437,0.5,T&S UK - Public Transport
BEIS,UKRI - AHRC,27/06/2023,T&S UK - Public Transport,SMT,Clarity Travel Ltd t/a Clarity,99989437,375.4,T&S UK - Public Transport
BEIS,UKRI - AHRC,27/06/2023,T&S UK - Public Transport,SMT,Clarity Travel Ltd t/a Clarity,99989437,0.5,T&S UK - Public Transport
BEIS,UKRI - AHRC,27/06/2023,T&S UK - Public Transport,SMT,Clarity Travel Ltd t/a Clarity,99989437,217,T&S UK - Public Transport
BEIS,UKRI - AHRC,27/06/2023,T&S UK - Public Transport,SMT,Clarity Travel Ltd t/a Clarity,99989437,0.5,T&S UK - Public Transport
BEIS,UKRI - AHRC,27/06/2023,T&S UK - Public Transport,SMT,Clarity Travel Ltd t/a Clarity,99989437,17.2,T&S UK - Public Transport
BEIS,UKRI - AHRC,27/06/2023,T&S UK - Public Transport,SMT,Clarity Travel Ltd t/a Clarity,99989437,0.5,T&S UK - Public Transport
BEIS,UKRI - AHRC,27/06/2023,T&S UK - Public Transport,SMT,Clarity Travel Ltd t/a Clarity,99989437,83.3,T&S UK - Public Transport
BEIS,UKRI - AHRC,27/06/2023,T&S UK - Public Transport,SMT,Clarity Travel Ltd t/a Clarity,99989437,0.5,T&S UK - Public Transport
BEIS,UKRI - AHRC,27/06/2023,T&S UK - Public Transport,SMT,Clarity Travel Ltd t/a Clarity,99989437,53.9,T&S UK - Public Transport
BEIS,UKRI - AHRC,27/06/2023,T&S UK - Public Transport,SMT,Clarity Travel Ltd t/a Clarity,99989437,1.5,T&S UK - Public Transport
BEIS,UKRI - AHRC,27/06/2023,T&S UK - Public Transport,SMT,Clarity Travel Ltd t/a Clarity,99989437,57,T&S UK - Public Transport
BEIS,UKRI - AHRC,27/06/2023,T&S UK - Public Transport,SMT,Clarity Travel Ltd t/a Clarity,99989437,126.4,T&S UK - Public Transport
BEIS,UKRI - AHRC,27/06/2023,T&S UK - Public Transport,SMT,Clarity Travel Ltd t/a Clarity,99989437,15.2,T&S UK - Public Transport
BEIS,UKRI - AHRC,27/06/2023,T&S UK - Public Transport,SMT,Clarity Travel Ltd t/a Clarity,99989437,0.5,T&S UK - Public Transport
BEIS,UKRI - AHRC,27/06/2023,T&S UK - Public Transport,SMT,Clarity Travel Ltd t/a Clarity,99989437,21.8,T&S UK - Public Transport
BEIS,UKRI - AHRC,27/06/2023,T&S UK - Public Transport,SMT,Clarity Travel Ltd t/a Clarity,99989437,1.5,T&S UK - Public Transport
BEIS,UKRI - AHRC,27/06/2023,T&S UK - Public Transport,SMT,Clarity Travel Ltd t/a Clarity,99989437,58,T&S UK - Public Transport
BEIS,UKRI - AHRC,27/06/2023,T&S UK - Public Transport,SMT,Clarity Travel Ltd t/a Clarity,99989437,126.4,T&S UK - Public Transport
BEIS,UKRI - AHRC,27/06/2023,T&S UK - Public Transport,SMT,Clarity Travel Ltd t/a Clarity,99989437,15.2,T&S UK - Public Transport
BEIS,UKRI - AHRC,27/06/2023,T&S UK - Public Transport,SMT,Clarity Travel Ltd t/a Clarity,99989437,0.5,T&S UK - Public Transport
BEIS,UKRI - AHRC,27/06/2023,T&S UK - Public Transport,SMT,Clarity Travel Ltd t/a Clarity,99989437,27.1,T&S UK - Public Transport
BEIS,UKRI - AHRC,27/06/2023,T&S UK - Public Transport,SMT,Clarity Travel Ltd t/a Clarity,99989437,0.5,T&S UK - Public Transport
BEIS,UKRI - AHRC,27/06/2023,T&S UK - Public Transport,SMT,Clarity Travel Ltd t/a Clarity,99989437,111,T&S UK - Public Transport
BEIS,UKRI - AHRC,27/06/2023,T&S UK - Public Transport,SMT,Clarity Travel Ltd t/a Clarity,99989437,0.5,T&S UK - Public Transport
BEIS,UKRI - AHRC,27/06/2023,T&S UK - Public Transport,SMT,Clarity Travel Ltd t/a Clarity,99989437,27.1,T&S UK - Public Transport
BEIS,UKRI - AHRC,27/06/2023,T&S UK - Public Transport,Strategy and Evidence,Clarity Travel Ltd t/a Clarity,99989437,0.5,T&S UK - Public Transport
BEIS,UKRI - AHRC,27/06/2023,T&S UK - Public Transport,Strategy and Evidence,Clarity Travel Ltd t/a Clarity,99989437,37.75,T&S UK - Public Transport
BEIS,UKRI - AHRC,27/06/2023,T&S UK - Subsistence,Operations,Unspecified,99989650,22.5,T&S UK - Subsistence
BEIS,UKRI - AHRC,27/06/2023,T&S UK - Subsistence,Operations,Unspecified,99989650,7.7,T&S UK - Subsistence
BEIS,UKRI - AHRC,27/06/2023,T&S UK - Public Transport,AI&Design,Unspecified,99989651,5.5,T&S UK - Public Transport
BEIS,UKRI - AHRC,27/06/2023,T&S UK - Subsistence,AI&Design,Unspecified,99989651,1.49,T&S UK - Subsistence
BEIS,UKRI - AHRC,27/06/2023,T&S UK - Subsistence,AI&Design,Unspecified,99989651,16.74,T&S UK - Subsistence
BEIS,UKRI - AHRC,27/06/2023,T&S Overseas - Accommodation,Infrastruture Roadmap,Clarity Travel Ltd t/a Clarity,99990302,326.5,T&S Overseas - Accommodation
BEIS,UKRI - AHRC,27/06/2023,T&S Overseas - Public Transport,International Partnership and Engagement,Clarity Travel Ltd t/a Clarity,99990302,2,T&S Overseas - Public Transport
BEIS,UKRI - AHRC,27/06/2023,T&S Overseas - Public Transport,International Partnership and Engagement,Clarity Travel Ltd t/a Clarity,99990302,129.6,T&S Overseas - Public Transport
BEIS,UKRI - AHRC,27/06/2023,T&S Overseas - Public Transport,International Partnership and Engagement,Clarity Travel Ltd t/a Clarity,99990302,2,T&S Overseas - Public Transport
BEIS,UKRI - AHRC,27/06/2023,T&S Overseas - Public Transport,International Partnership and Engagement,Clarity Travel Ltd t/a Clarity,99990302,117.4,T&S Overseas - Public Transport
BEIS,UKRI - AHRC,27/06/2023,T&S Overseas - Public Transport,Operations,Clarity Travel Ltd t/a Clarity,99990302,2,T&S Overseas - Public Transport
BEIS,UKRI - AHRC,27/06/2023,T&S Overseas - Public Transport,Operations,Clarity Travel Ltd t/a Clarity,99990302,64.8,T&S Overseas - Public Transport
BEIS,UKRI - AHRC,27/06/2023,T&S UK - Accommodation,"Health, Environmental & Urban Humanities (HEUH)",Clarity Travel Ltd t/a Clarity,99990302,119.17,T&S UK - Accommodation
BEIS,UKRI - AHRC,27/06/2023,T&S UK - Accommodation,"Health, Environmental & Urban Humanities (HEUH)",Clarity Travel Ltd t/a Clarity,99990302,23.83,T&S UK - Accommodation
BEIS,UKRI - AHRC,27/06/2023,T&S UK - Accommodation,Infrastructure Fund - CoSTAR,Clarity Travel Ltd t/a Clarity,99990302,382.5,T&S UK - Accommodation
BEIS,UKRI - AHRC,27/06/2023,T&S UK - Accommodation,Infrastructure Fund - CoSTAR,Clarity Travel Ltd t/a Clarity,99990302,382.5,T&S UK - Accommodation
BEIS,UKRI - AHRC,27/06/2023,T&S UK - Accommodation,Infrastructure Fund - CoSTAR,Clarity Travel Ltd t/a Clarity,99990302,265,T&S UK - Accommodation
BEIS,UKRI - AHRC,27/06/2023,T&S UK - Accommodation,Infrastructure Fund - CoSTAR,Clarity Travel Ltd t/a Clarity,99990302,255,T&S UK - Accommodation
BEIS,UKRI - AHRC,27/06/2023,T&S UK - Accommodation,Infrastructure Fund - CoSTAR,Clarity Travel Ltd t/a Clarity,99990302,427.87,T&S UK - Accommodation
BEIS,UKRI - AHRC,27/06/2023,T&S UK - Accommodation,Infrastructure Fund - CoSTAR,Clarity Travel Ltd t/a Clarity,99990302,342.57,T&S UK - Accommodation
BEIS,UKRI - AHRC,27/06/2023,T&S UK - Accommodation,Infrastruture Roadmap,Clarity Travel Ltd t/a Clarity,99990302,165.83,T&S UK - Accommodation
BEIS,UKRI - AHRC,27/06/2023,T&S UK - Accommodation,Infrastruture Roadmap,Clarity Travel Ltd t/a Clarity,99990302,33.17,T&S UK - Accommodation
BEIS,UKRI - AHRC,27/06/2023,T&S UK - Accommodation,SMT,Clarity Travel Ltd t/a Clarity,99990302,473.33,T&S UK - Accommodation
BEIS,UKRI - AHRC,27/06/2023,T&S UK - Accommodation,SMT,Clarity Travel Ltd t/a Clarity,99990302,94.67,T&S UK - Accommodation
BEIS,UKRI - AHRC,27/06/2023,T&S UK - Flights,"Heritage, Culture & Creative Arts (HCCA)",Clarity Travel Ltd t/a Clarity,99990302,1,T&S UK - Flights
BEIS,UKRI - AHRC,27/06/2023,T&S UK - Flights,"Heritage, Culture & Creative Arts (HCCA)",Clarity Travel Ltd t/a Clarity,99990302,117.96,T&S UK - Flights
BEIS,UKRI - AHRC,27/06/2023,T&S UK - Flights,Infrastruture Roadmap,Clarity Travel Ltd t/a Clarity,99990302,1,T&S UK - Flights
BEIS,UKRI - AHRC,27/06/2023,T&S UK - Flights,Infrastruture Roadmap,Clarity Travel Ltd t/a Clarity,99990302,100.98,T&S UK - Flights
BEIS,UKRI - AHRC,27/06/2023,T&S UK - Flights,Infrastruture Roadmap,Clarity Travel Ltd t/a Clarity,99990302,1,T&S UK - Flights
BEIS,UKRI - AHRC,27/06/2023,T&S UK - Flights,Infrastruture Roadmap,Clarity Travel Ltd t/a Clarity,99990302,100.98,T&S UK - Flights
BEIS,UKRI - AHRC,27/06/2023,T&S UK - Flights,International Partnership and Engagement,Clarity Travel Ltd t/a Clarity,99990302,2,T&S UK - Flights
BEIS,UKRI - AHRC,27/06/2023,T&S UK - Flights,International Partnership and Engagement,Clarity Travel Ltd t/a Clarity,99990302,144,T&S UK - Flights
BEIS,UKRI - AHRC,27/06/2023,T&S UK - Flights,International Partnership and Engagement,Clarity Travel Ltd t/a Clarity,99990302,2,T&S UK - Flights
BEIS,UKRI - AHRC,27/06/2023,T&S UK - Flights,International Partnership and Engagement,Clarity Travel Ltd t/a Clarity,99990302,141,T&S UK - Flights
BEIS,UKRI - AHRC,27/06/2023,T&S UK - Flights,Operations,Clarity Travel Ltd t/a Clarity,99990302,2,T&S UK - Flights
BEIS,UKRI - AHRC,27/06/2023,T&S UK - Flights,Operations,Clarity Travel Ltd t/a Clarity,99990302,72,T&S UK - Flights
BEIS,UKRI - AHRC,27/06/2023,T&S UK - Flights,SMT,Clarity Travel Ltd t/a Clarity,99990302,1,T&S UK - Flights
BEIS,UKRI - AHRC,27/06/2023,T&S UK - Flights,SMT,Clarity Travel Ltd t/a Clarity,99990302,52.99,T&S UK - Flights
BEIS,UKRI - AHRC,27/06/2023,T&S UK - Public Transport,HERA JRP Project,Clarity Travel Ltd t/a Clarity,99990302,-70.2,T&S UK - Public Transport
BEIS,UKRI - AHRC,27/06/2023,T&S UK - Public Transport,"Health, Environmental & Urban Humanities (HEUH)",Clarity Travel Ltd t/a Clarity,99990302,1,T&S UK - Public Transport
BEIS,UKRI - AHRC,27/06/2023,T&S UK - Public Transport,"Health, Environmental & Urban Humanities (HEUH)",Clarity Travel Ltd t/a Clarity,99990302,29.7,T&S UK - Public Transport
BEIS,UKRI - AHRC,27/06/2023,T&S UK - Public Transport,"Health, Environmental & Urban Humanities (HEUH)",Clarity Travel Ltd t/a Clarity,99990302,75.5,T&S UK - Public Transport
BEIS,UKRI - AHRC,27/06/2023,T&S UK - Public Transport,"Health, Environmental & Urban Humanities (HEUH)",Clarity Travel Ltd t/a Clarity,99990302,0.5,T&S UK - Public Transport
BEIS,UKRI - AHRC,27/06/2023,T&S UK - Public Transport,"Health, Environmental & Urban Humanities (HEUH)",Clarity Travel Ltd t/a Clarity,99990302,12,T&S UK - Public Transport
BEIS,UKRI - AHRC,27/06/2023,T&S UK - Public Transport,"Heritage, Culture & Creative Arts (HCCA)",Clarity Travel Ltd t/a Clarity,99990302,1,T&S UK - Public Transport
BEIS,UKRI - AHRC,27/06/2023,T&S UK - Public Transport,"Heritage, Culture & Creative Arts (HCCA)",Clarity Travel Ltd t/a Clarity,99990302,86.5,T&S UK - Public Transport
BEIS,UKRI - AHRC,27/06/2023,T&S UK - Public Transport,"Heritage, Culture & Creative Arts (HCCA)",Clarity Travel Ltd t/a Clarity,99990302,55.5,T&S UK - Public Transport
BEIS,UKRI - AHRC,27/06/2023,T&S UK - Public Transport,Infrastruture Roadmap,Clarity Travel Ltd t/a Clarity,99990302,0.5,T&S UK - Public Transport
BEIS,UKRI - AHRC,27/06/2023,T&S UK - Public Transport,Infrastruture Roadmap,Clarity Travel Ltd t/a Clarity,99990302,85.3,T&S UK - Public Transport
BEIS,UKRI - AHRC,27/06/2023,T&S UK - Public Transport,Infrastruture Roadmap,Clarity Travel Ltd t/a Clarity,99990302,0.5,T&S UK - Public Transport
BEIS,UKRI - AHRC,27/06/2023,T&S UK - Public Transport,Infrastruture Roadmap,Clarity Travel Ltd t/a Clarity,99990302,93.9,T&S UK - Public Transport
BEIS,UKRI - AHRC,27/06/2023,T&S UK - Public Transport,Infrastruture Roadmap,Clarity Travel Ltd t/a Clarity,99990302,0.5,T&S UK - Public Transport
BEIS,UKRI - AHRC,27/06/2023,T&S UK - Public Transport,Infrastruture Roadmap,Clarity Travel Ltd t/a Clarity,99990302,93.9,T&S UK - Public Transport
BEIS,UKRI - AHRC,27/06/2023,T&S UK - Public Transport,Infrastruture Roadmap,Clarity Travel Ltd t/a Clarity,99990302,0.5,T&S UK - Public Transport
BEIS,UKRI - AHRC,27/06/2023,T&S UK - Public Transport,Infrastruture Roadmap,Clarity Travel Ltd t/a Clarity,99990302,192.8,T&S UK - Public Transport
BEIS,UKRI - AHRC,27/06/2023,T&S UK - Public Transport,Infrastruture Roadmap,Clarity Travel Ltd t/a Clarity,99990302,0.5,T&S UK - Public Transport
BEIS,UKRI - AHRC,27/06/2023,T&S UK - Public Transport,Infrastruture Roadmap,Clarity Travel Ltd t/a Clarity,99990302,192.8,T&S UK - Public Transport
BEIS,UKRI - AHRC,27/06/2023,T&S UK - Public Transport,Infrastruture Roadmap,Clarity Travel Ltd t/a Clarity,99990302,0.5,T&S UK - Public Transport
BEIS,UKRI - AHRC,27/06/2023,T&S UK - Public Transport,Infrastruture Roadmap,Clarity Travel Ltd t/a Clarity,99990302,168.2,T&S UK - Public Transport
BEIS,UKRI - AHRC,27/06/2023,T&S UK - Public Transport,Infrastruture Roadmap,Clarity Travel Ltd t/a Clarity,99990302,0.5,T&S UK - Public Transport
BEIS,UKRI - AHRC,27/06/2023,T&S UK - Public Transport,Infrastruture Roadmap,Clarity Travel Ltd t/a Clarity,99990302,33.1,T&S UK - Public Transport
BEIS,UKRI - AHRC,27/06/2023,T&S UK - Public Transport,Infrastruture Roadmap,Clarity Travel Ltd t/a Clarity,99990302,0.5,T&S UK - Public Transport
BEIS,UKRI - AHRC,27/06/2023,T&S UK - Public Transport,Infrastruture Roadmap,Clarity Travel Ltd t/a Clarity,99990302,33.1,T&S UK - Public Transport
BEIS,UKRI - AHRC,27/06/2023,T&S UK - Public Transport,Infrastruture Roadmap,Clarity Travel Ltd t/a Clarity,99990302,0.5,T&S UK - Public Transport
BEIS,UKRI - AHRC,27/06/2023,T&S UK - Public Transport,Infrastruture Roadmap,Clarity Travel Ltd t/a Clarity,99990302,154.4,T&S UK - Public Transport
BEIS,UKRI - AHRC,27/06/2023,T&S UK - Public Transport,Infrastruture Roadmap,Clarity Travel Ltd t/a Clarity,99990302,0.5,T&S UK - Public Transport
BEIS,UKRI - AHRC,27/06/2023,T&S UK - Public Transport,Infrastruture Roadmap,Clarity Travel Ltd t/a Clarity,99990302,154.4,T&S UK - Public Transport
BEIS,UKRI - AHRC,27/06/2023,T&S UK - Public Transport,Infrastruture Roadmap,Clarity Travel Ltd t/a Clarity,99990302,1,T&S UK - Public Transport
BEIS,UKRI - AHRC,27/06/2023,T&S UK - Public Transport,Infrastruture Roadmap,Clarity Travel Ltd t/a Clarity,99990302,34.7,T&S UK - Public Transport
BEIS,UKRI - AHRC,27/06/2023,T&S UK - Public Transport,Infrastruture Roadmap,Clarity Travel Ltd t/a Clarity,99990302,73.1,T&S UK - Public Transport
BEIS,UKRI - AHRC,27/06/2023,T&S UK - Public Transport,Infrastruture Roadmap,Clarity Travel Ltd t/a Clarity,99990302,0.5,T&S UK - Public Transport
BEIS,UKRI - AHRC,27/06/2023,T&S UK - Public Transport,Infrastruture Roadmap,Clarity Travel Ltd t/a Clarity,99990302,195.9,T&S UK - Public Transport
BEIS,UKRI - AHRC,27/06/2023,T&S UK - Public Transport,Infrastruture Roadmap,Clarity Travel Ltd t/a Clarity,99990302,0.5,T&S UK - Public Transport
BEIS,UKRI - AHRC,27/06/2023,T&S UK - Public Transport,Infrastruture Roadmap,Clarity Travel Ltd t/a Clarity,99990302,74.4,T&S UK - Public Transport
BEIS,UKRI - AHRC,27/06/2023,T&S UK - Public Transport,Infrastruture Roadmap,Clarity Travel Ltd t/a Clarity,99990302,1.5,T&S UK - Public Transport
BEIS,UKRI - AHRC,27/06/2023,T&S UK - Public Transport,Infrastruture Roadmap,Clarity Travel Ltd t/a Clarity,99990302,44.5,T&S UK - Public Transport
BEIS,UKRI - AHRC,27/06/2023,T&S UK - Public Transport,Infrastruture Roadmap,Clarity Travel Ltd t/a Clarity,99990302,15.2,T&S UK - Public Transport
BEIS,UKRI - AHRC,27/06/2023,T&S UK - Public Transport,Infrastruture Roadmap,Clarity Travel Ltd t/a Clarity,99990302,59,T&S UK - Public Transport
BEIS,UKRI - AHRC,27/06/2023,T&S UK - Public Transport,Infrastruture Roadmap,Clarity Travel Ltd t/a Clarity,99990302,0.5,T&S UK - Public Transport
BEIS,UKRI - AHRC,27/06/2023,T&S UK - Public Transport,Infrastruture Roadmap,Clarity Travel Ltd t/a Clarity,99990302,27.7,T&S UK - Public Transport
BEIS,UKRI - AHRC,27/06/2023,T&S UK - Public Transport,Infrastruture Roadmap,Clarity Travel Ltd t/a Clarity,99990302,0.5,T&S UK - Public Transport
BEIS,UKRI - AHRC,27/06/2023,T&S UK - Public Transport,Infrastruture Roadmap,Clarity Travel Ltd t/a Clarity,99990302,46.5,T&S UK - Public Transport
BEIS,UKRI - AHRC,27/06/2023,T&S UK - Public Transport,Infrastruture Roadmap,Clarity Travel Ltd t/a Clarity,99990302,0.5,T&S UK - Public Transport
BEIS,UKRI - AHRC,27/06/2023,T&S UK - Public Transport,Infrastruture Roadmap,Clarity Travel Ltd t/a Clarity,99990302,111.5,T&S UK - Public Transport
BEIS,UKRI - AHRC,27/06/2023,T&S UK - Public Transport,Infrastruture Roadmap,Clarity Travel Ltd t/a Clarity,99990302,0.5,T&S UK - Public Transport
BEIS,UKRI - AHRC,27/06/2023,T&S UK - Public Transport,Infrastruture Roadmap,Clarity Travel Ltd t/a Clarity,99990302,26,T&S UK - Public Transport
BEIS,UKRI - AHRC,27/06/2023,T&S UK - Public Transport,International Development and Area Studies,Clarity Travel Ltd t/a Clarity,99990302,1,T&S UK - Public Transport
BEIS,UKRI - AHRC,27/06/2023,T&S UK - Public Transport,International Development and Area Studies,Clarity Travel Ltd t/a Clarity,99990302,86.5,T&S UK - Public Transport
BEIS,UKRI - AHRC,27/06/2023,T&S UK - Public Transport,International Development and Area Studies,Clarity Travel Ltd t/a Clarity,99990302,15.2,T&S UK - Public Transport
BEIS,UKRI - AHRC,27/06/2023,T&S UK - Public Transport,International Partnership and Engagement,Clarity Travel Ltd t/a Clarity,99990302,0.5,T&S UK - Public Transport
BEIS,UKRI - AHRC,27/06/2023,T&S UK - Public Transport,International Partnership and Engagement,Clarity Travel Ltd t/a Clarity,99990302,21,T&S UK - Public Transport
BEIS,UKRI - AHRC,27/06/2023,T&S UK - Public Transport,International Partnership and Engagement,Clarity Travel Ltd t/a Clarity,99990302,0.5,T&S UK - Public Transport
BEIS,UKRI - AHRC,27/06/2023,T&S UK - Public Transport,International Partnership and Engagement,Clarity Travel Ltd t/a Clarity,99990302,24.05,T&S UK - Public Transport
BEIS,UKRI - AHRC,27/06/2023,T&S UK - Public Transport,Public and Stakeholder Engagement,Clarity Travel Ltd t/a Clarity,99990302,0.5,T&S UK - Public Transport
BEIS,UKRI - AHRC,27/06/2023,T&S UK - Public Transport,Public and Stakeholder Engagement,Clarity Travel Ltd t/a Clarity,99990302,153.3,T&S UK - Public Transport
BEIS,UKRI - AHRC,27/06/2023,T&S UK - Public Transport,SMT,Clarity Travel Ltd t/a Clarity,99990302,0.5,T&S UK - Public Transport
BEIS,UKRI - AHRC,27/06/2023,T&S UK - Public Transport,SMT,Clarity Travel Ltd t/a Clarity,99990302,260.8,T&S UK - Public Transport
BEIS,UKRI - AHRC,27/06/2023,T&S UK - Public Transport,SMT,Clarity Travel Ltd t/a Clarity,99990302,1.5,T&S UK - Public Transport
BEIS,UKRI - AHRC,27/06/2023,T&S UK - Public Transport,SMT,Clarity Travel Ltd t/a Clarity,99990302,88.7,T&S UK - Public Transport
BEIS,UKRI - AHRC,27/06/2023,T&S UK - Public Transport,SMT,Clarity Travel Ltd t/a Clarity,99990302,33.7,T&S UK - Public Transport
BEIS,UKRI - AHRC,27/06/2023,T&S UK - Public Transport,SMT,Clarity Travel Ltd t/a Clarity,99990302,15.2,T&S UK - Public Transport
BEIS,UKRI - AHRC,27/06/2023,T&S UK - Public Transport,SMT,Clarity Travel Ltd t/a Clarity,99990302,0.5,T&S UK - Public Transport
BEIS,UKRI - AHRC,27/06/2023,T&S UK - Public Transport,SMT,Clarity Travel Ltd t/a Clarity,99990302,53.9,T&S UK - Public Transport
BEIS,UKRI - AHRC,27/06/2023,T&S UK - Public Transport,SMT,Clarity Travel Ltd t/a Clarity,99990302,0.5,T&S UK - Public Transport
BEIS,UKRI - AHRC,27/06/2023,T&S UK - Public Transport,SMT,Clarity Travel Ltd t/a Clarity,99990302,27.1,T&S UK - Public Transport
BEIS,UKRI - AHRC,27/06/2023,T&S UK - Public Transport,SMT,Clarity Travel Ltd t/a Clarity,99990302,0.5,T&S UK - Public Transport
BEIS,UKRI - AHRC,27/06/2023,T&S UK - Public Transport,SMT,Clarity Travel Ltd t/a Clarity,99990302,53.9,T&S UK - Public Transport
BEIS,UKRI - AHRC,27/06/2023,T&S UK - Public Transport,SMT,Clarity Travel Ltd t/a Clarity,99990302,0.5,T&S UK - Public Transport
BEIS,UKRI - AHRC,27/06/2023,T&S UK - Public Transport,SMT,Clarity Travel Ltd t/a Clarity,99990302,160.2,T&S UK - Public Transport
BEIS,UKRI - AHRC,27/06/2023,T&S UK - Public Transport,SMT,Clarity Travel Ltd t/a Clarity,99990302,0.5,T&S UK - Public Transport
BEIS,UKRI - AHRC,27/06/2023,T&S UK - Public Transport,SMT,Clarity Travel Ltd t/a Clarity,99990302,188.8,T&S UK - Public Transport
BEIS,UKRI - AHRC,27/06/2023,T&S UK - Public Transport,SMT,Clarity Travel Ltd t/a Clarity,99990302,1,T&S UK - Public Transport
BEIS,UKRI - AHRC,27/06/2023,T&S UK - Public Transport,SMT,Clarity Travel Ltd t/a Clarity,99990302,30.4,T&S UK - Public Transport
BEIS,UKRI - AHRC,27/06/2023,T&S UK - Public Transport,SMT,Clarity Travel Ltd t/a Clarity,99990302,31.5,T&S UK - Public Transport
BEIS,UKRI - AHRC,27/06/2023,T&S UK - Public Transport,SMT,Clarity Travel Ltd t/a Clarity,99990302,0.5,T&S UK - Public Transport
BEIS,UKRI - AHRC,27/06/2023,T&S UK - Public Transport,SMT,Clarity Travel Ltd t/a Clarity,99990302,32.2,T&S UK - Public Transport
BEIS,UKRI - AHRC,27/06/2023,T&S UK - Public Transport,SMT,Clarity Travel Ltd t/a Clarity,99990302,1.5,T&S UK - Public Transport
BEIS,UKRI - AHRC,27/06/2023,T&S UK - Public Transport,SMT,Clarity Travel Ltd t/a Clarity,99990302,88.7,T&S UK - Public Transport
BEIS,UKRI - AHRC,27/06/2023,T&S UK - Public Transport,SMT,Clarity Travel Ltd t/a Clarity,99990302,88.7,T&S UK - Public Transport
BEIS,UKRI - AHRC,27/06/2023,T&S UK - Public Transport,SMT,Clarity Travel Ltd t/a Clarity,99990302,15.2,T&S UK - Public Transport
BEIS,UKRI - AHRC,27/06/2023,T&S UK - Public Transport,SMT,Clarity Travel Ltd t/a Clarity,99990302,0.5,T&S UK - Public Transport
BEIS,UKRI - AHRC,27/06/2023,T&S UK - Public Transport,SMT,Clarity Travel Ltd t/a Clarity,99990302,32.2,T&S UK - Public Transport
BEIS,UKRI - AHRC,27/06/2023,T&S UK - Public Transport,SMT,Clarity Travel Ltd t/a Clarity,99990302,1,T&S UK - Public Transport
BEIS,UKRI - AHRC,27/06/2023,T&S UK - Public Transport,SMT,Clarity Travel Ltd t/a Clarity,99990302,2.6,T&S UK - Public Transport
BEIS,UKRI - AHRC,27/06/2023,T&S UK - Public Transport,SMT,Clarity Travel Ltd t/a Clarity,99990302,4.1,T&S UK - Public Transport
BEIS,UKRI - AHRC,27/06/2023,T&S UK - Public Transport,Strategy and Evidence,Clarity Travel Ltd t/a Clarity,99990302,1,T&S UK - Public Transport
BEIS,UKRI - AHRC,27/06/2023,T&S UK - Public Transport,Strategy and Evidence,Clarity Travel Ltd t/a Clarity,99990302,48,T&S UK - Public Transport
BEIS,UKRI - AHRC,27/06/2023,T&S UK - Public Transport,Strategy and Evidence,Clarity Travel Ltd t/a Clarity,99990302,48,T&S UK - Public Transport
BEIS,UKRI - AHRC,27/06/2023,T&S UK - Public Transport,Strategy and Evidence,Clarity Travel Ltd t/a Clarity,99990302,1,T&S UK - Public Transport
BEIS,UKRI - AHRC,27/06/2023,T&S UK - Public Transport,Strategy and Evidence,Clarity Travel Ltd t/a Clarity,99990302,38,T&S UK - Public Transport
BEIS,UKRI - AHRC,27/06/2023,T&S UK - Public Transport,Strategy and Evidence,Clarity Travel Ltd t/a Clarity,99990302,60.5,T&S UK - Public Transport
BEIS,UKRI - AHRC,27/06/2023,T&S UK - Public Transport,Strategy and Evidence,Clarity Travel Ltd t/a Clarity,99990302,0.5,T&S UK - Public Transport
BEIS,UKRI - AHRC,27/06/2023,T&S UK - Public Transport,Strategy and Evidence,Clarity Travel Ltd t/a Clarity,99990302,81.1,T&S UK - Public Transport
BEIS,UKRI - AHRC,28/06/2023,Non-staff travel and subsistance,"Health, Environmental & Urban Humanities (HEUH)",Mufti Games Ltd t/a Play Disrupt,99990923,267.72,Non-staff travel and subsistance
BEIS,UKRI - AHRC,30/06/2023,Fees (Including College Members),Operations,Unspecified,99991718,170,Fees (Including College Members)
BEIS,UKRI - AHRC,30/06/2023,Fees (Including College Members),Operations,Unspecified,99991719,170,Fees (Including College Members)
BEIS,UKRI - AHRC,30/06/2023,Fees (Including College Members),Operations,Unspecified,99991720,170,Fees (Including College Members)
BEIS,UKRI - BBSRC,01/06/2023,T&S Overseas - Public Transport,Science Group,Unspecified,99966754,8.42,T&S Overseas - Public Transport
BEIS,UKRI - BBSRC,01/06/2023,T&S Overseas - Public Transport,Science Group,Unspecified,99966754,13.08,T&S Overseas - Public Transport
BEIS,UKRI - BBSRC,01/06/2023,T&S Overseas - Subsistence,Science Group,Unspecified,99966754,8,T&S Overseas - Subsistence
BEIS,UKRI - BBSRC,01/06/2023,T&S Overseas - Subsistence,Science Group,Unspecified,99966754,7.1,T&S Overseas - Subsistence
BEIS,UKRI - BBSRC,01/06/2023,T&S Overseas - Subsistence,Science Group,Unspecified,99966754,6.49,T&S Overseas - Subsistence
BEIS,UKRI - BBSRC,01/06/2023,T&S UK - Public Transport,Science Group,Unspecified,99966755,50,T&S UK - Public Transport
BEIS,UKRI - BBSRC,01/06/2023,T&S UK - Subsistence,Science Group,Unspecified,99966755,7.9,T&S UK - Subsistence
BEIS,UKRI - BBSRC,01/06/2023,T&S UK - Subsistence,Science Group,Unspecified,99966755,26,T&S UK - Subsistence
BEIS,UKRI - BBSRC,01/06/2023,T&S UK - Subsistence,Science Group,Unspecified,99966755,12.3,T&S UK - Subsistence
BEIS,UKRI - BBSRC,01/06/2023,T&S UK - Other Charges,Science Group,Unspecified,99966756,1.67,T&S UK - Other Charges
BEIS,UKRI - BBSRC,01/06/2023,T&S UK - Public Transport,Science Group,Unspecified,99966756,17.3,T&S UK - Public Transport
BEIS,UKRI - BBSRC,01/06/2023,T&S UK - Subsistence,Science Group,Unspecified,99966756,6.2,T&S UK - Subsistence
BEIS,UKRI - BBSRC,01/06/2023,T&S UK - Subsistence,Science Group,Unspecified,99966756,9.39,T&S UK - Subsistence
BEIS,UKRI - BBSRC,01/06/2023,T&S UK - Parking Tolls Congestion Charges,Science Group,Unspecified,99966757,2.4,T&S UK - Parking Tolls Congestion Charges
BEIS,UKRI - BBSRC,01/06/2023,T&S UK - Subsistence,Science Group,Unspecified,99966757,2.9,T&S UK - Subsistence
BEIS,UKRI - BBSRC,01/06/2023,T&S UK - Public Transport,Science Group,Unspecified,99966758,8.93,T&S UK - Public Transport
BEIS,UKRI - BBSRC,01/06/2023,T&S UK - Subsistence,Science Group – Admin Function,Unspecified,99966759,16.25,T&S UK - Subsistence
BEIS,UKRI - BBSRC,01/06/2023,T&S UK - Subsistence,Science Group – Admin Function,Unspecified,99966759,6.99,T&S UK - Subsistence
BEIS,UKRI - BBSRC,01/06/2023,T&S UK - Other Charges,Science Group – Admin Function,Unspecified,99966763,5,T&S UK - Other Charges
BEIS,UKRI - BBSRC,01/06/2023,T&S UK - Subsistence,Science Group – Admin Function,Unspecified,99966763,22.02,T&S UK - Subsistence
BEIS,UKRI - BBSRC,01/06/2023,T&S UK - Subsistence,Science Group – Admin Function,Unspecified,99966763,4.99,T&S UK - Subsistence
BEIS,UKRI - BBSRC,01/06/2023,T&S UK - Other Charges,Science Group – Admin Function,Unspecified,99966764,14.97,T&S UK - Other Charges
BEIS,UKRI - BBSRC,01/06/2023,T&S UK - Public Transport,Science Group – Admin Function,Unspecified,99966764,20,T&S UK - Public Transport
BEIS,UKRI - BBSRC,01/06/2023,T&S UK - Subsistence,Science Group – Admin Function,Unspecified,99966764,7.55,T&S UK - Subsistence
BEIS,UKRI - BBSRC,01/06/2023,T&S UK - Subsistence,Science Group – Admin Function,Unspecified,99966764,13.94,T&S UK - Subsistence
BEIS,UKRI - BBSRC,01/06/2023,Conferences & Seminars,Science Group,Calder Conference Ltd,99966978,6540,Conferences & Seminars
BEIS,UKRI - BBSRC,02/06/2023,Unspecified,Innovation and Skills Group CDSU,The Society of Biology / The Royal Society of Biology,99966352,199,Legal & Professional Services
BEIS,UKRI - BBSRC,02/06/2023,T&S UK - Subsistence,Science Group,Unspecified,99968074,17.07,T&S UK - Subsistence
BEIS,UKRI - BBSRC,02/06/2023,T&S UK - Public Transport,Science Group,Unspecified,99968075,8,T&S UK - Public Transport
BEIS,UKRI - BBSRC,02/06/2023,T&S UK - Subsistence,Science Group,Unspecified,99968075,24,T&S UK - Subsistence
BEIS,UKRI - BBSRC,02/06/2023,T&S UK - Subsistence,Science Group,Unspecified,99968075,12.57,T&S UK - Subsistence
BEIS,UKRI - BBSRC,02/06/2023,T&S UK - Mileage,CE - CPS,Unspecified,99968077,27,T&S UK - Mileage
BEIS,UKRI - BBSRC,02/06/2023,T&S UK - Public Transport,CE - CPS,Unspecified,99968078,29,T&S UK - Public Transport
BEIS,UKRI - BBSRC,02/06/2023,T&S UK - Public Transport,Science Group,Unspecified,99968079,14.6,T&S UK - Public Transport
BEIS,UKRI - BBSRC,02/06/2023,T&S UK - Subsistence,Science Group,Unspecified,99968079,3.3,T&S UK - Subsistence
BEIS,UKRI - BBSRC,02/06/2023,T&S Overseas - Other Charges,Science Group,Unspecified,99968080,4.44,T&S Overseas - Other Charges
BEIS,UKRI - BBSRC,02/06/2023,T&S Overseas - Public Transport,Science Group,Unspecified,99968080,36.55,T&S Overseas - Public Transport
BEIS,UKRI - BBSRC,02/06/2023,T&S Overseas - Subsistence,Science Group,Unspecified,99968080,19.14,T&S Overseas - Subsistence
BEIS,UKRI - BBSRC,02/06/2023,T&S Overseas - Subsistence,Science Group,Unspecified,99968080,55.59,T&S Overseas - Subsistence
BEIS,UKRI - BBSRC,02/06/2023,T&S Overseas - Subsistence,Science Group,Unspecified,99968080,26.26,T&S Overseas - Subsistence
BEIS,UKRI - BBSRC,02/06/2023,T&S UK - Public Transport,Science Group,Unspecified,99968082,11.65,T&S UK - Public Transport
BEIS,UKRI - BBSRC,02/06/2023,T&S UK - Subsistence,Science Group,Unspecified,99968082,22.44,T&S UK - Subsistence
BEIS,UKRI - BBSRC,05/06/2023,T&S UK - Vehicle Hire,FG - Estates,Enterprise Rent-A-Car UK Ltd,99968162,80.68,T&S UK - Vehicle Hire
BEIS,UKRI - BBSRC,05/06/2023,T&S UK - Vehicle Hire,FG - Estates,Enterprise Rent-A-Car UK Ltd,99968162,16.14,T&S UK - Vehicle Hire
BEIS,UKRI - BBSRC,05/06/2023,Research Grant Expenditure,SPF W1 EMBL EBI,EMBL (European Molecular Biology Laboratory),99968211,2161.54,Research Grant Expenditure
BEIS,UKRI - BBSRC,05/06/2023,T&S UK - Mileage,Science Group,Unspecified,99968392,2.6,T&S UK - Mileage
BEIS,UKRI - BBSRC,05/06/2023,T&S UK - Other Charges,Science Group,Unspecified,99968392,8,T&S UK - Other Charges
BEIS,UKRI - BBSRC,05/06/2023,T&S UK - Subsistence,Science Group,Unspecified,99968392,7,T&S UK - Subsistence
BEIS,UKRI - BBSRC,05/06/2023,T&S UK - Subsistence,Science Group,Unspecified,99968392,17.39,T&S UK - Subsistence
BEIS,UKRI - BBSRC,06/06/2023,Unspecified,FG - Estates,Department for Energy Security and Net Zero,99957532,12504,Legal & Professional Services
BEIS,UKRI - BBSRC,06/06/2023,Unspecified,Innovation and Skills Group,Cambridge Policy Consultants Ltd,99968660,14228.6,Legal & Professional Services
BEIS,UKRI - BBSRC,06/06/2023,T&S UK - Subsistence,CE - CPS,Unspecified,99970026,9.45,T&S UK - Subsistence
BEIS,UKRI - BBSRC,06/06/2023,T&S UK - Subsistence,CE - CPS,Unspecified,99970026,4.8,T&S UK - Subsistence
BEIS,UKRI - BBSRC,06/06/2023,T&S UK - Other Charges,Innovation and Skills Group,Unspecified,99970027,6.9,T&S UK - Other Charges
BEIS,UKRI - BBSRC,06/06/2023,T&S UK - Public Transport,Innovation and Skills Group,Unspecified,99970027,43.1,T&S UK - Public Transport
BEIS,UKRI - BBSRC,06/06/2023,T&S UK - Subsistence,Innovation and Skills Group,Unspecified,99970027,15,T&S UK - Subsistence
BEIS,UKRI - BBSRC,07/06/2023,T&S UK - Subsistence,Innovation and Skills Group,Unspecified,99968076,9.03,T&S UK - Subsistence
BEIS,UKRI - BBSRC,07/06/2023,Non-staff travel and subsistance,CIMG - Director,Unspecified,99968107,1069.71,Non-staff travel and subsistance
BEIS,UKRI - BBSRC,07/06/2023,Unspecified,Science Group,Abbey Business Interiors Ltd,99974062,422.4,Legal & Professional Services
BEIS,UKRI - BBSRC,08/06/2023,Research Grant Expenditure,Impact & Knowledge Exchange,Agriculture And Horticulture Development Board (AHDB),99944329,-2658.79,Research Grant Expenditure
BEIS,UKRI - BBSRC,08/06/2023,Research Grant Expenditure,Impact & Knowledge Exchange,Agriculture And Horticulture Development Board (AHDB),99944332,-70847.39,Research Grant Expenditure
BEIS,UKRI - BBSRC,08/06/2023,Fees (Including College Members),OpEx SPF W2 Food Systems,Unspecified,99970463,600,Fees (Including College Members)
BEIS,UKRI - BBSRC,08/06/2023,Non-staff travel and subsistance,CE - Chief Executive,Unspecified,99974302,11.1,Non-staff travel and subsistance
BEIS,UKRI - BBSRC,08/06/2023,Non-staff travel and subsistance,CE - Chief Executive,Unspecified,99974303,180,Non-staff travel and subsistance
BEIS,UKRI - BBSRC,08/06/2023,Non-staff travel and subsistance,CE - Chief Executive,Unspecified,99974304,71,Non-staff travel and subsistance
BEIS,UKRI - BBSRC,08/06/2023,Research Grant Expenditure,SPF W1 EMBL EBI,EMBL (European Molecular Biology Laboratory),99975143,104791.76,Research Grant Expenditure
BEIS,UKRI - BBSRC,09/06/2023,Research Grant Expenditure,Postgraduate Training: Students,Pye Tait Ltd T/A Pye Tait Consulting,99965484,7177.5,Research Grant Expenditure
BEIS,UKRI - BBSRC,09/06/2023,T&S UK - Vehicle Hire,FG - Estates,Enterprise Rent-A-Car UK Ltd,99970474,15.23,T&S UK - Vehicle Hire
BEIS,UKRI - BBSRC,09/06/2023,T&S UK - Vehicle Hire,FG - Estates,Enterprise Rent-A-Car UK Ltd,99970474,76.16,T&S UK - Vehicle Hire
BEIS,UKRI - BBSRC,09/06/2023,T&S UK - Vehicle Hire,Innovation and Skills Group,Enterprise Rent-A-Car UK Ltd,99970474,15.34,T&S UK - Vehicle Hire
BEIS,UKRI - BBSRC,09/06/2023,T&S UK - Vehicle Hire,Innovation and Skills Group,Enterprise Rent-A-Car UK Ltd,99970474,76.7,T&S UK - Vehicle Hire
BEIS,UKRI - BBSRC,09/06/2023,T&S Overseas - Public Transport,CE - IRU,Unspecified,99977669,3.68,T&S Overseas - Public Transport
BEIS,UKRI - BBSRC,09/06/2023,T&S Overseas - Subsistence,CE - IRU,Unspecified,99977669,53.83,T&S Overseas - Subsistence
BEIS,UKRI - BBSRC,09/06/2023,T&S Overseas - Subsistence,CE - IRU,Unspecified,99977669,17.76,T&S Overseas - Subsistence
BEIS,UKRI - BBSRC,12/06/2023,Research Institutes - Capital Grants: Minor Works,World Class Labs,The Pirbright Institute,99968335,46077.03,Research Institutes - Capital Grants: Minor Works
BEIS,UKRI - BBSRC,12/06/2023,Research Institutes - Capital Grants: Minor Works,World Class Labs,Rothamsted Research Ltd,99978009,3882.96,Research Institutes - Capital Grants: Minor Works
BEIS,UKRI - BBSRC,13/06/2023,T&S Overseas - Public Transport,CE - IRU,Unspecified,99980898,24.89,T&S Overseas - Public Transport
BEIS,UKRI - BBSRC,13/06/2023,T&S UK - Subsistence,Innovation and Skills Group,Unspecified,99980899,14.95,T&S UK - Subsistence
BEIS,UKRI - BBSRC,13/06/2023,T&S UK - Subsistence,Innovation and Skills Group,Unspecified,99980899,22.9,T&S UK - Subsistence
BEIS,UKRI - BBSRC,13/06/2023,T&S UK - Subsistence,Innovation and Skills Group,Unspecified,99980899,14.1,T&S UK - Subsistence
BEIS,UKRI - BBSRC,14/06/2023,Conferences & Seminars,European Initiatives,Fundacio Ciutadania Multicultural,99969058,257.9,Conferences & Seminars
BEIS,UKRI - BBSRC,14/06/2023,Unspecified,Balance Sheet,HM Revenue & Customs,99975155,2201.79,PAYE Payable Salaries
BEIS,UKRI - BBSRC,14/06/2023,Unspecified,FG - Accounts & Business Planning,HM Revenue & Customs,99975156,31,Apprenticeship Levy
BEIS,UKRI - BBSRC,14/06/2023,Unspecified,Balance Sheet,HM Revenue & Customs,99975159,74059.96,PAYE Payable Salaries
BEIS,UKRI - BBSRC,14/06/2023,Unspecified,Balance Sheet,HM Revenue & Customs,99975160,4760,Student Loans
BEIS,UKRI - BBSRC,14/06/2023,Unspecified,Balance Sheet,HM Revenue & Customs,99975161,89695.59,NI Payable Salaries
BEIS,UKRI - BBSRC,14/06/2023,Unspecified,FG - Accounts & Business Planning,HM Revenue & Customs,99975162,2518,Apprenticeship Levy
BEIS,UKRI - BBSRC,14/06/2023,Research Grant Expenditure,SPF W1 EMBL EBI,EMBL (European Molecular Biology Laboratory),99981050,52268.54,Research Grant Expenditure
BEIS,UKRI - BBSRC,14/06/2023,Research Institutes - Capital Grants: Minor Works,Mid-Range Equipment,John Innes Centre,99981148,1516.2,Research Institutes - Capital Grants: Minor Works
BEIS,UKRI - BBSRC,14/06/2023,Research Institutes - Capital Grants: Minor Works,World Class Labs,John Innes Centre,99981150,40906.15,Research Institutes - Capital Grants: Minor Works
BEIS,UKRI - BBSRC,14/06/2023,T&S UK - Other Charges,Science Group,Unspecified,99983488,1.6,T&S UK - Other Charges
BEIS,UKRI - BBSRC,14/06/2023,T&S UK - Subsistence,Science Group,Unspecified,99983488,8.99,T&S UK - Subsistence
BEIS,UKRI - BBSRC,14/06/2023,T&S UK - Other Charges,Science Group,Unspecified,99983489,9.75,T&S UK - Other Charges
BEIS,UKRI - BBSRC,14/06/2023,T&S UK - Subsistence,CE - Chief Executive,Unspecified,99983490,4.79,T&S UK - Subsistence
BEIS,UKRI - BBSRC,14/06/2023,T&S UK - Subsistence,CE - Chief Executive,Unspecified,99983490,8.38,T&S UK - Subsistence
BEIS,UKRI - BBSRC,14/06/2023,T&S UK - Other Charges,Science Group – Admin Function,Unspecified,99983491,150.65,T&S UK - Other Charges
BEIS,UKRI - BBSRC,14/06/2023,T&S UK - Public Transport,Science Group – Admin Function,Unspecified,99983491,28.91,T&S UK - Public Transport
BEIS,UKRI - BBSRC,14/06/2023,T&S UK - Subsistence,Science Group – Admin Function,Unspecified,99983491,10.3,T&S UK - Subsistence
BEIS,UKRI - BBSRC,14/06/2023,T&S UK - Subsistence,Science Group – Admin Function,Unspecified,99983491,79.22,T&S UK - Subsistence
BEIS,UKRI - BBSRC,14/06/2023,T&S UK - Subsistence,Science Group – Admin Function,Unspecified,99983491,15.11,T&S UK - Subsistence
BEIS,UKRI - BBSRC,14/06/2023,T&S UK - Subsistence,Science Group – Admin Function,Unspecified,99983491,60.16,T&S UK - Subsistence
BEIS,UKRI - BBSRC,15/06/2023,Research Grant Expenditure,Research: Strategic,Rothamsted Research Ltd,99964975,15360,Research Grant Expenditure
BEIS,UKRI - BBSRC,15/06/2023,Union Deductions,Balance Sheet,PCS Union,99975163,61.38,Union Deductions
BEIS,UKRI - BBSRC,15/06/2023,Voluntary Deductions,Balance Sheet,Swindon Office Sports and Social Club,99975164,42,Voluntary Deductions
BEIS,UKRI - BBSRC,15/06/2023,Unspecified,Balance Sheet,Unspecified,99975165,19779.02,Ees Pension Deductions - JSS
BEIS,UKRI - BBSRC,15/06/2023,Unspecified,Balance Sheet,Unspecified,99975166,80331.39,Ers Pension Deductions - JSS
BEIS,UKRI - BBSRC,15/06/2023,Unspecified,Balance Sheet,Scottish Widows Life Assurance,99975167,447.16,Partnership Pension Deductions
BEIS,UKRI - BBSRC,15/06/2023,Unspecified,Balance Sheet,Scottish Widows Life Assurance,99975168,10,Other Pension Deductions
BEIS,UKRI - BBSRC,15/06/2023,Unspecified,Balance Sheet,Cabinet Office RM Shared Services,99975169,13.3,Ers Pension Deductions - JSS
BEIS,UKRI - BBSRC,15/06/2023,Unspecified,Balance Sheet,Cabinet Office RM Shared Services,99975170,11113.43,Ees Pension Deductions - MyCSP
BEIS,UKRI - BBSRC,15/06/2023,Unspecified,Balance Sheet,Cabinet Office RM Shared Services,99975171,59111.09,Ers Pension Deductions - MyCSP
BEIS,UKRI - BBSRC,15/06/2023,Nursery Deductions,Balance Sheet,UKRI - Engineering & Physical Sciences Research Council,99975172,931,Nursery Deductions
BEIS,UKRI - BBSRC,15/06/2023,Unspecified,Balance Sheet,Unspecified,99975173,215.3,Ees Pension Deductions - MRC
BEIS,UKRI - BBSRC,15/06/2023,Unspecified,Balance Sheet,Unspecified,99975174,529.97,Ers Pension Deductions - MRC
BEIS,UKRI - BBSRC,15/06/2023,Research Grant Expenditure,SPF W1 EMBL EBI,EMBL (European Molecular Biology Laboratory),99981016,2150,Research Grant Expenditure
BEIS,UKRI - BBSRC,15/06/2023,Research Institutes - Capital Grants: Minor Works,World Class Labs,John Innes Centre,99981147,23205.9,Research Institutes - Capital Grants: Minor Works
BEIS,UKRI - BBSRC,15/06/2023,Research Institutes - Capital Grants: Minor Works,World Class Labs,Rothamsted Research Ltd,99981222,23854.74,Research Institutes - Capital Grants: Minor Works
BEIS,UKRI - BBSRC,15/06/2023,Research Grant Expenditure,SPF W1 EMBL EBI,EMBL (European Molecular Biology Laboratory),99981504,618,Research Grant Expenditure
BEIS,UKRI - BBSRC,16/06/2023,T&S UK - Other Charges,Science Group,Flightlink Chauffeurs Ltd,99968672,167,T&S UK - Other Charges
BEIS,UKRI - BBSRC,16/06/2023,T&S UK - Public Transport,Science Group,Flightlink Chauffeurs Ltd,99968672,344.37,T&S UK - Public Transport
BEIS,UKRI - BBSRC,16/06/2023,Fellowships,FG - Accounts & Business Planning,University of Newcastle Upon Tyne,99975257,-5202.69,Fellowships
BEIS,UKRI - BBSRC,16/06/2023,Fellowships,FG - Accounts & Business Planning,University of Sheffield,99975258,16394.72,Fellowships
BEIS,UKRI - BBSRC,16/06/2023,Fellowships,FG - Accounts & Business Planning,University of Edinburgh,99975259,7724.52,Fellowships
BEIS,UKRI - BBSRC,16/06/2023,Fellowships,FG - Accounts & Business Planning,University of Oxford,99975260,-34352.94,Fellowships
BEIS,UKRI - BBSRC,16/06/2023,Fellowships,FG - Accounts & Business Planning,John Innes Centre,99975261,20474.56,Fellowships
BEIS,UKRI - BBSRC,16/06/2023,Capital Grants & Equipment to HEIs,FG - Accounts & Business Planning,The University of Manchester,99975262,-6247.65,Capital Grants & Equipment to HEIs
BEIS,UKRI - BBSRC,16/06/2023,Fellowships,FG - Accounts & Business Planning,The University of Manchester,99975262,15065.56,Fellowships
BEIS,UKRI - BBSRC,16/06/2023,Fellowships,FG - Accounts & Business Planning,University of Oxford,99975263,-31713.87,Fellowships
BEIS,UKRI - BBSRC,16/06/2023,Fellowships,FG - Accounts & Business Planning,University of Birmingham GRANT,99975264,-174.29,Fellowships
BEIS,UKRI - BBSRC,16/06/2023,Research Grant Expenditure,FG - Accounts & Business Planning,University of Nottingham,99975918,297499,Research Grant Expenditure
BEIS,UKRI - BBSRC,16/06/2023,Research Grant Expenditure,FG - Accounts & Business Planning,University of East Anglia,99975919,1006.07,Research Grant Expenditure
BEIS,UKRI - BBSRC,16/06/2023,Research Grant Expenditure,FG - Accounts & Business Planning,University of East Anglia,99975920,10081.01,Research Grant Expenditure
BEIS,UKRI - BBSRC,16/06/2023,Research Grant Expenditure,FG - Accounts & Business Planning,National Institute For Agricultural Botany (NIAB),99975921,1691.96,Research Grant Expenditure
BEIS,UKRI - BBSRC,16/06/2023,Research Grant Expenditure,FG - Accounts & Business Planning,The Alan Turing Institute,99975922,23589.55,Research Grant Expenditure
BEIS,UKRI - BBSRC,16/06/2023,Research Grant Expenditure,FG - Accounts & Business Planning,Royal Veterinary College,99975923,32423.78,Research Grant Expenditure
BEIS,UKRI - BBSRC,16/06/2023,Research Grant Expenditure,FG - Accounts & Business Planning,University of Bristol GRANT,99975924,35004.31,Research Grant Expenditure
BEIS,UKRI - BBSRC,16/06/2023,Research Grant Expenditure,FG - Accounts & Business Planning,University of East Anglia,99975925,241934.53,Research Grant Expenditure
BEIS,UKRI - BBSRC,16/06/2023,Research Grant Expenditure,FG - Accounts & Business Planning,National Institute For Agricultural Botany (NIAB),99975927,8167.99,Research Grant Expenditure
BEIS,UKRI - BBSRC,16/06/2023,Research Grant Expenditure,FG - Accounts & Business Planning,University of Bristol GRANT,99975928,62500,Research Grant Expenditure
BEIS,UKRI - BBSRC,16/06/2023,Research Grant Expenditure,FG - Accounts & Business Planning,University of Bristol GRANT,99975928,62500.01,Research Grant Expenditure
BEIS,UKRI - BBSRC,16/06/2023,Research Grant Expenditure,FG - Accounts & Business Planning,University of Southampton GRANT,99975929,62500,Research Grant Expenditure
BEIS,UKRI - BBSRC,16/06/2023,Research Grant Expenditure,FG - Accounts & Business Planning,University of Southampton GRANT,99975929,62500.01,Research Grant Expenditure
BEIS,UKRI - BBSRC,16/06/2023,Research Grant Expenditure,FG - Accounts & Business Planning,University of Reading,99975930,62500,Research Grant Expenditure
BEIS,UKRI - BBSRC,16/06/2023,Research Grant Expenditure,FG - Accounts & Business Planning,Quadram Institute Bioscience,99975931,62500,Research Grant Expenditure
BEIS,UKRI - BBSRC,16/06/2023,Research Grant Expenditure,FG - Accounts & Business Planning,University of Surrey,99975932,62500,Research Grant Expenditure
BEIS,UKRI - BBSRC,16/06/2023,Research Grant Expenditure,FG - Accounts & Business Planning,Imperial College London,99975933,62500,Research Grant Expenditure
BEIS,UKRI - BBSRC,16/06/2023,Research Grant Expenditure,FG - Accounts & Business Planning,Imperial College London,99975933,62500.01,Research Grant Expenditure
BEIS,UKRI - BBSRC,16/06/2023,Research Grant Expenditure,FG - Accounts & Business Planning,University of Birmingham GRANT,99975934,64749.33,Research Grant Expenditure
BEIS,UKRI - BBSRC,16/06/2023,Research Grant Expenditure,FG - Accounts & Business Planning,University of Birmingham GRANT,99975934,64749.31,Research Grant Expenditure
BEIS,UKRI - BBSRC,16/06/2023,Research Grant Expenditure,FG - Accounts & Business Planning,John Innes Centre,99975935,29015.49,Research Grant Expenditure
BEIS,UKRI - BBSRC,16/06/2023,Research Grant Expenditure,FG - Accounts & Business Planning,The University of Manchester,99975936,25000,Research Grant Expenditure
BEIS,UKRI - BBSRC,16/06/2023,Research Grant Expenditure,FG - Accounts & Business Planning,University of Liverpool,99975937,25000,Research Grant Expenditure
BEIS,UKRI - BBSRC,16/06/2023,Research Grant Expenditure,FG - Accounts & Business Planning,University of York,99975938,25000,Research Grant Expenditure
BEIS,UKRI - BBSRC,16/06/2023,Research Grant Expenditure,FG - Accounts & Business Planning,Rothamsted Research Ltd,99975939,25000,Research Grant Expenditure
BEIS,UKRI - BBSRC,16/06/2023,Research Grant Expenditure,FG - Accounts & Business Planning,University of Bristol GRANT,99975940,25000,Research Grant Expenditure
BEIS,UKRI - BBSRC,16/06/2023,Research Grant Expenditure,FG - Accounts & Business Planning,University of St Andrews,99975941,25000,Research Grant Expenditure
BEIS,UKRI - BBSRC,16/06/2023,Research Grant Expenditure,FG - Accounts & Business Planning,University of Essex,99975942,25000,Research Grant Expenditure
BEIS,UKRI - BBSRC,16/06/2023,Research Grant Expenditure,FG - Accounts & Business Planning,University of Leicester,99975943,25000,Research Grant Expenditure
BEIS,UKRI - BBSRC,16/06/2023,Research Grant Expenditure,FG - Accounts & Business Planning,University of Kent,99975944,25000,Research Grant Expenditure
BEIS,UKRI - BBSRC,16/06/2023,Research Grant Expenditure,FG - Accounts & Business Planning,University of Birmingham GRANT,99975945,25000,Research Grant Expenditure
BEIS,UKRI - BBSRC,16/06/2023,Research Grant Expenditure,FG - Accounts & Business Planning,The Pirbright Institute,99975946,25000,Research Grant Expenditure
BEIS,UKRI - BBSRC,16/06/2023,Research Grant Expenditure,FG - Accounts & Business Planning,University of Oxford,99975947,25000,Research Grant Expenditure
BEIS,UKRI - BBSRC,16/06/2023,Research Grant Expenditure,FG - Accounts & Business Planning,University of Glasgow,99975948,25000,Research Grant Expenditure
BEIS,UKRI - BBSRC,16/06/2023,Research Grant Expenditure,FG - Accounts & Business Planning,University of Edinburgh,99975949,50000,Research Grant Expenditure
BEIS,UKRI - BBSRC,16/06/2023,Research Grant Expenditure,FG - Accounts & Business Planning,University of Cambridge,99975950,25000,Research Grant Expenditure
BEIS,UKRI - BBSRC,16/06/2023,Research Grant Expenditure,FG - Accounts & Business Planning,Queen's University Belfast GRANT,99975951,25000,Research Grant Expenditure
BEIS,UKRI - BBSRC,16/06/2023,Research Grant Expenditure,FG - Accounts & Business Planning,University College London,99975952,25000,Research Grant Expenditure
BEIS,UKRI - BBSRC,16/06/2023,Research Grant Expenditure,FG - Accounts & Business Planning,Queen Mary University of London,99975953,25000,Research Grant Expenditure
BEIS,UKRI - BBSRC,16/06/2023,Research Grant Expenditure,FG - Accounts & Business Planning,Imperial College London,99975954,25000,Research Grant Expenditure
BEIS,UKRI - BBSRC,16/06/2023,Research Grant Expenditure,FG - Accounts & Business Planning,Cardiff University,99975955,25000,Research Grant Expenditure
BEIS,UKRI - BBSRC,16/06/2023,Research Grant Expenditure,FG - Accounts & Business Planning,Aston University,99975956,25000,Research Grant Expenditure
BEIS,UKRI - BBSRC,16/06/2023,Research Grant Expenditure,FG - Accounts & Business Planning,University of Leeds,99975957,25000,Research Grant Expenditure
BEIS,UKRI - BBSRC,16/06/2023,Research Grant Expenditure,FG - Accounts & Business Planning,Aberystwyth University,99975958,47500,Research Grant Expenditure
BEIS,UKRI - BBSRC,16/06/2023,Capital Grants & Equipment to HEIs,FG - Accounts & Business Planning,Lancaster University,99975959,7623.25,Capital Grants & Equipment to HEIs
BEIS,UKRI - BBSRC,16/06/2023,Research Grant Expenditure,FG - Accounts & Business Planning,Lancaster University,99975959,20998.07,Research Grant Expenditure
BEIS,UKRI - BBSRC,16/06/2023,Research Grant Expenditure,FG - Accounts & Business Planning,Moredun Research Institute,99975960,37936.18,Research Grant Expenditure
BEIS,UKRI - BBSRC,16/06/2023,Research Grant Expenditure,FG - Accounts & Business Planning,University of Cambridge,99975961,21577.62,Research Grant Expenditure
BEIS,UKRI - BBSRC,16/06/2023,Research Grant Expenditure,FG - Accounts & Business Planning,UK Centre for Ecology and Hydrology (UKCEH),99975962,24351.47,Research Grant Expenditure
BEIS,UKRI - BBSRC,16/06/2023,Research Grant Expenditure,FG - Accounts & Business Planning,University of Surrey,99975963,40252.59,Research Grant Expenditure
BEIS,UKRI - BBSRC,16/06/2023,Research Grant Expenditure,FG - Accounts & Business Planning,University of Leeds,99975964,39650.5,Research Grant Expenditure
BEIS,UKRI - BBSRC,16/06/2023,Research Grant Expenditure,FG - Accounts & Business Planning,University of East Anglia,99975965,36106.91,Research Grant Expenditure
BEIS,UKRI - BBSRC,16/06/2023,Research Grant Expenditure,FG - Accounts & Business Planning,Oxford Brookes University,99975966,32615.83,Research Grant Expenditure
BEIS,UKRI - BBSRC,16/06/2023,Research Grant Expenditure,FG - Accounts & Business Planning,Imperial College London,99975967,65361.28,Research Grant Expenditure
BEIS,UKRI - BBSRC,16/06/2023,Research Grant Expenditure,FG - Accounts & Business Planning,Imperial College London,99975968,38204.05,Research Grant Expenditure
BEIS,UKRI - BBSRC,16/06/2023,Research Grant Expenditure,FG - Accounts & Business Planning,Royal Botanic Gardens Kew,99975969,13975.29,Research Grant Expenditure
BEIS,UKRI - BBSRC,16/06/2023,Research Grant Expenditure,FG - Accounts & Business Planning,University of Cambridge,99975970,36925.98,Research Grant Expenditure
BEIS,UKRI - BBSRC,16/06/2023,Research Grant Expenditure,FG - Accounts & Business Planning,University of Nottingham,99975971,58748.73,Research Grant Expenditure
BEIS,UKRI - BBSRC,16/06/2023,Research Grant Expenditure,FG - Accounts & Business Planning,National Institute For Agricultural Botany (NIAB),99975972,3843,Research Grant Expenditure
BEIS,UKRI - BBSRC,16/06/2023,Research Grant Expenditure,FG - Accounts & Business Planning,Babraham Institute,99975973,2562.01,Research Grant Expenditure
BEIS,UKRI - BBSRC,16/06/2023,Research Grant Expenditure,FG - Accounts & Business Planning,Babraham Institute,99975974,6360.17,Research Grant Expenditure
BEIS,UKRI - BBSRC,16/06/2023,Research Grant Expenditure,FG - Accounts & Business Planning,Imperial College London,99975975,45579.29,Research Grant Expenditure
BEIS,UKRI - BBSRC,16/06/2023,Research Grant Expenditure,FG - Accounts & Business Planning,Quadram Institute Bioscience,99975976,5123.99,Research Grant Expenditure
BEIS,UKRI - BBSRC,16/06/2023,Research Grant Expenditure,FG - Accounts & Business Planning,University of Aberdeen,99975977,4564.45,Research Grant Expenditure
BEIS,UKRI - BBSRC,16/06/2023,Research Grant Expenditure,FG - Accounts & Business Planning,University of Liverpool,99975978,85650.95,Research Grant Expenditure
BEIS,UKRI - BBSRC,16/06/2023,Research Grant Expenditure,FG - Accounts & Business Planning,London School of Hygiene & Tropical Medicine,99975979,49802.99,Research Grant Expenditure
BEIS,UKRI - BBSRC,16/06/2023,Research Grant Expenditure,FG - Accounts & Business Planning,University of Glasgow,99975980,68932.78,Research Grant Expenditure
BEIS,UKRI - BBSRC,16/06/2023,Research Grant Expenditure,FG - Accounts & Business Planning,Liverpool School of Tropical Medicine,99975981,83993.64,Research Grant Expenditure
BEIS,UKRI - BBSRC,16/06/2023,Research Grant Expenditure,FG - Accounts & Business Planning,University of Greenwich,99975984,83999.48,Research Grant Expenditure
BEIS,UKRI - BBSRC,16/06/2023,Research Grant Expenditure,FG - Accounts & Business Planning,UK Centre for Ecology and Hydrology (UKCEH),99975985,75032.02,Research Grant Expenditure
BEIS,UKRI - BBSRC,16/06/2023,Research Grant Expenditure,FG - Accounts & Business Planning,The Francis Crick Institute Ltd,99975986,24306.89,Research Grant Expenditure
BEIS,UKRI - BBSRC,16/06/2023,Research Grant Expenditure,FG - Accounts & Business Planning,University of Sussex,99975987,33254,Research Grant Expenditure
BEIS,UKRI - BBSRC,16/06/2023,Research Grant Expenditure,FG - Accounts & Business Planning,University College London,99975988,25162.88,Research Grant Expenditure
BEIS,UKRI - BBSRC,16/06/2023,Research Grant Expenditure,FG - Accounts & Business Planning,University of Bristol GRANT,99975989,28986.33,Research Grant Expenditure
BEIS,UKRI - BBSRC,16/06/2023,Research Grant Expenditure,FG - Accounts & Business Planning,University of Edinburgh,99975990,27659.38,Research Grant Expenditure
BEIS,UKRI - BBSRC,16/06/2023,Research Grant Expenditure,FG - Accounts & Business Planning,University of Edinburgh,99975990,27659.38,Research Grant Expenditure
BEIS,UKRI - BBSRC,16/06/2023,Research Grant Expenditure,FG - Accounts & Business Planning,University of Bristol GRANT,99975991,33124.96,Research Grant Expenditure
BEIS,UKRI - BBSRC,16/06/2023,Research Grant Expenditure,FG - Accounts & Business Planning,University of Cambridge,99975992,18292.13,Research Grant Expenditure
BEIS,UKRI - BBSRC,16/06/2023,Research Grant Expenditure,FG - Accounts & Business Planning,University of Oxford,99975993,32101.14,Research Grant Expenditure
BEIS,UKRI - BBSRC,16/06/2023,Research Grant Expenditure,FG - Accounts & Business Planning,University of York,99975994,30170.7,Research Grant Expenditure
BEIS,UKRI - BBSRC,16/06/2023,Research Grant Expenditure,FG - Accounts & Business Planning,University of Nottingham,99975995,18210.24,Research Grant Expenditure
BEIS,UKRI - BBSRC,16/06/2023,Research Grant Expenditure,FG - Accounts & Business Planning,University of Oxford,99975996,49470.1,Research Grant Expenditure
BEIS,UKRI - BBSRC,16/06/2023,Research Grant Expenditure,FG - Accounts & Business Planning,Imperial College London,99975997,28991.22,Research Grant Expenditure
BEIS,UKRI - BBSRC,16/06/2023,Research Grant Expenditure,FG - Accounts & Business Planning,European Bioinformatics Institute,99975998,59777.95,Research Grant Expenditure
BEIS,UKRI - BBSRC,16/06/2023,Research Grant Expenditure,FG - Accounts & Business Planning,Rothamsted Research Ltd,99975999,40030.01,Research Grant Expenditure
BEIS,UKRI - BBSRC,16/06/2023,Research Grant Expenditure,FG - Accounts & Business Planning,Rothamsted Research Ltd,99975999,40030.09,Research Grant Expenditure
BEIS,UKRI - BBSRC,16/06/2023,Research Grant Expenditure,FG - Accounts & Business Planning,The James Hutton Institute,99976000,25195.06,Research Grant Expenditure
BEIS,UKRI - BBSRC,16/06/2023,Research Grant Expenditure,FG - Accounts & Business Planning,Liverpool John Moores University,99976001,47735.67,Research Grant Expenditure
BEIS,UKRI - BBSRC,16/06/2023,Research Grant Expenditure,FG - Accounts & Business Planning,John Innes Centre,99976002,26876.84,Research Grant Expenditure
BEIS,UKRI - BBSRC,16/06/2023,Research Grant Expenditure,FG - Accounts & Business Planning,University of Warwick,99976003,25200.96,Research Grant Expenditure
